{"text_format":"1","workbook":"xlsx","n_sheets":13,"sheets":["Plan1 ORIENTAÇÕES PREENCHIMENTO","Plan2 1.DADOS,2.OBJ e 2.1.Vigên","Plan3 2.2. QUADRO RESUMO","Plan4 2.3. OPERAÇÕES","Plan5 3. JUSTIFIC. e 4.BENEFIC.","Plan6 5.MET_FAS_ETA_CRON_6.METO","Plan7 7. PLA DE APL 8 Cap Int.","Plan8 9_Parâmetro e 10-11-&","Plan9 12. OBR_MONI_AVAL","Plan10 13.DOC_INTEGR_PT ","Plan11  ASSINATURAS","Serviços","Municipios"],"not_rendered":{"charts":0,"images":2,"macros":0,"external_links":1,"defined_names":12,"comments":2,"pivot_tables":0},"unopened":[],"bounds":{"document_bytes":16777216,"sheet_cells":100000,"rows_first":2000,"rows_last":500,"rows_between":2000,"halvings":0,"cell_chars":16384,"cell_head_chars":4096},"cells_cut":0,"cells_raw":0,"read":"whole","date_system":"1900"}

{"sheet":"Plan1 ORIENTAÇÕES PREENCHIMENTO","index":0,"n_rows":48,"n_cols":5,"rows_kept":48,"cut":false,"hidden":false,"merged":[[0,0,0,10],[45,0,45,10],[54,0,54,10],[47,4,52,5],[46,0,46,10],[32,1,32,10],[33,1,33,10],[34,1,34,10],[40,1,40,10],[44,1,44,10],[43,1,43,10],[42,1,42,10],[41,1,41,10],[39,1,39,10],[35,1,35,10],[36,1,36,10],[37,1,37,10],[38,1,38,10],[22,1,22,10],[23,1,23,10],[24,1,24,10],[31,1,31,10],[26,1,26,10],[29,1,29,10],[30,1,30,10],[39,0,44,0],[36,0,38,0],[1,0,1,10],[25,1,25,10],[27,1,27,10],[28,1,28,10],[15,1,15,10],[2,0,2,10],[14,1,14,10],[5,1,5,10],[4,1,4,10],[8,1,8,10],[13,1,13,10],[11,0,11,10],[7,1,7,10],[6,1,6,10],[9,1,9,10],[23,0,25,0],[28,0,29,0],[30,0,31,0],[33,0,34,0],[19,0,19,10],[21,1,21,10]]}
["PLANO DE TRABALHO  - PROGRAMA ESTRADAS DA INTEGRAÇÃO -PEI"]
[" PROJETO DE PAVIMENTAÇÃO DE ESTRADAS\n RURAIS MUNICIPAIS"]
["1 . ORIENTAÇÕES PARA O PREENCHIMENTO DA PLANILHA"]
[]
["1.1","Todas as células com a cor AZUL devem ser preenchidas pelo MUNICÍPIO"]
["1.2","Todas as células preenchidas de VERDE são resultados automáticos de fórmulas e NÃO PODEM SER MODIFICADAS. OBSERVAR O PREENCHIMENTO DAS LISTAS SUSPENSAS.\nCaso haja necessidade de incluir novas linhas na planilha é importante verificar se as fórmulas estão contemplando todas as células, conferindo o Número e Letra na fórmula ao clicar nelas. Nesse caso, excepcionalmente, deve-se fazer a correção da fórmula para anular erros (por isso as células não foram bloqueadas)."]
["1.3","A logomarca do município deve ser inserida dentro do quadro abaixo e a mesma será replicada em todas as páginas do plano de trabalho."]
["1.4","Caso a largura de alguma coluna precise ser modificada, para impressão não cortar a página, clicar em Exibir > Vizualização da Quebra de Página: arrastar a linha de quebra para contemplar toda a tabela. Depois Exibir > Normal, para voltar à visualização de planilha."]
["1.5","O valor de contrapartida municipal  é obrigatória  para todas as trasnferencias voluntárias, conforme Lei Federal- nº 14.133 e Decreto Estadual nº 10086, com base do Índice Ipardes de Desempenho Municipal, ano referencia 2021 (https://www.ipardes.pr.gov.br/Pagina/Indice-Ipardes-de-Desempenho-Municipal)"]
["1.6","O plano de trabalho deve ser preenchido, conforme Lei Federal- nº 14.133/2021 e Decreto Estadual nº 10086/2022."]
[]
["2 . ORIENTAÇÕES PARA INCLUSÃO DO PLANO DE TRABALHO NO E-PROTOCOLO"]
[]
["2.1","Para assinatura, há duas opções:\na) Preferencialmente, salvar o documento em .pdf (selecionar todas as pastas da planilha antes de converter para que todas sejam incluídas no documento). Inserir no e-protocolo e assinar eletronicamente;\nb) Ou o documento pode ser impresso englobando todas as pastas do excel. Acessar:\nArquivo> Imprimir> Configurações> Imprimir Toda a Pasta de Trabalho.\nCom o documento físico em mãos, após assinado, este será escaneado e salvo no formato pdf. Então pode ser inserido normalmente no e-protocolo. Antes de imprimir ou salvar o documento em pdf, verificar se todas as informações das planilhas estão visiveis. "]
["2.2","Com o documento físico em mãos, após assinado, este será escaneado e salvo no formato pdf. Então pode ser inserido normalmente no e-protocolo."]
["2.3","Também deverá ser inserido no e-protocolo outra versão do Plano de Trabalho no formato excel, como anexo. \nA opção de inserir anexos está localizada logo antes da etapa de encaminhamento conforme exposto na imagem abaixo."]
[]
[]
[]
["3 . ÍNDICE DE PASTAS DA PLANILHA"]
[]
[null,"Conteúdo"]
[1,"Orientações"]
[2,"1. Dados Cadastrais do Município - Ao  informar o Municipio na lista suspensa os dados -  IPDM, CNPJ, Endereço, UF, CEP, Nome do Prefeito serão preenchidos automáricamente, informar demais dados."]
[null,"2. Identificação do Objeto - Sua descrição  será ajustado automáticamente quando informado na guia suspensa da planilha  2.3. Operações (Plan4 2.3. OPERAÇÕES)"]
[null,"2.1. Período de Vigência - informado automáticamente conforme extensão do trecho em 24 ou 36 meses.)"]
[3,"2.2. Quadro Resumo (Total das Estradas Rurais/trechos indicados nos RTV’s, informar os nomes das estradas delimitada pelas coordenadas inicial e final  em UTM)"]
[4,"2.3. Operações (Plan4 2.3. OPERAÇÕES) em função do tipo de pavimentos informado através da guia suspensa  na planilha      ( Plan2 1.DADOS,2.OBJ e 2.1.Vigên), será disponibilizado automáticamente os possiveis serviços a serem projetados  na (Plan4 2.3. OPERAÇÕES), podendo estas serem ajustadas conforme a necessidade. Deverá ser apresentado em separado as memorias de calculos e o respectivo termo de referência. O DMT - Distancia Média de Transporte dos materiais a serem transportados deve ser  elaborado com base em tres possiveis fornecedores. As cotações deverão seguir o preconizado no Decreto Estadual nº 10086/2022 e anexadas ao processo."]
[5,"3. Justificativa- Descrever detalhadamente sobre a necessidade da execução da Obra, custo e beneficio em conformidade com a planilha - Plan5 3. JUSTIFIC. e 4.BENEFIC."]
[null,"4. Beneficiários elenca- los conforme Plan5 3. JUSTIFIC. e 4.BENEFIC."]
[6,"5. Definição e detalhamento das metas"]
[null,"6. Etapas de execução - Indicar todos os trechos  realacionados na Planilha 3 - 2.2 (Quadro Resumo) - Divididos em Subtrechos-  Etapas de 1.000,00 em 1.000,00 m, na quantidade que for necessária."]
[7,"7. Plano de Aplicação dos Recursos Financeiros 8. Capacidade instalada do municipio;"]
[8,"9. Previsão de início e fim da execução do objeto (considerar como ponto inicial a publicação no DIOE-PR). Os trechos especificado na planilha Plan8 8.PREVISÃO e 9 CRONOGRAMA devem estar alinhados com a planilha  Plan 6 5. METAS e 6.ETAPAS"]
[null,"10. Cronograma de desembolso (quando necessário ajustar o número de meses entre as parcelas)"]
[9,"11. DO MONITORAMENTO, AVALIAÇÃO E DA PRESTAÇÃO DE CONTAS "]
[10,"12. Documentos integrantes do plano de trabalho"]
[null,"12.1 Descrição dos documentos"]
[null,"12.2  Para obras ou serviços de engenharia e arquitetura."]
[11,"13. Declaração do Responsável Contábil pela Elaboração do Plano de Trabalho"]
[null,"14. Declaração do Responsável Técnico pela Elaboração do Plano de Trabalho"]
[null,"15.  Declaração do Município"]
[null,"16. Assinatura do Gestor do Convênio pela SEAB (Chefe do NR)"]
[null,"17.1 e 17.2  Manifestação técnica  do DEAGRO - sede"]
[null,"18. Aprovação pela SEAB"]
["FORMULÁRIO - PLANO DE TRABALHO VERSÃO 30-11-2023"]
["INSIRA DENTRO DO QUADRO A LOGO DO MUNICÍPIO"]
[null,null,null,null,"LOGO"]

{"sheet":"Plan2 1.DADOS,2.OBJ e 2.1.Vigên","index":1,"n_rows":47,"n_cols":13,"rows_kept":47,"cut":false,"hidden":false,"merged":[[33,1,33,3],[33,4,33,8],[1,2,1,8],[26,2,26,8],[27,2,27,3],[27,5,27,8],[22,2,22,8],[23,6,23,8],[23,2,23,3],[18,2,18,8],[19,2,19,8],[21,2,21,8],[20,6,20,8],[17,5,17,6],[6,2,6,8],[24,2,24,8],[7,2,7,8],[20,11,21,14],[13,2,13,8],[8,6,8,8],[8,2,8,4],[12,5,12,8],[11,2,11,8],[12,2,12,3],[9,6,9,8],[10,2,10,8],[45,1,45,2],[23,4,23,5],[17,7,17,8],[17,2,17,4],[41,1,41,8],[43,1,43,2],[37,1,37,3],[29,1,29,8],[34,1,34,3],[35,1,35,3],[30,1,31,8],[36,1,36,3],[37,4,37,8],[36,4,36,8],[35,4,35,8],[34,4,34,8]]}
[]
[null,null,"PROGRAMA ESTRADAS DA INTEGRAÇÃO  PROJETO DE PAVIMENTAÇÃO DE ESTRADAS\n RURAIS MUNICIPAIS"]
[]
[null,"1. DADOS CADASTRAIS "]
[null,"1.1 DO CONCEDENTE"]
[]
[null,"Secretaria","Secretaria da Agricultura e do Abastecimento"]
[null,"CNPJ:","76.416.957/0001-85"]
[null,"Endereço:","Rua dos Funcionários nº 1559, Cabral",null,null,"Município:","Curitiba"]
[null,"UF:","PR","CEP:","80035-050","Telefone:","(41) 3313-4000"]
[null,"Contato:","https://www.agricultura.pr.gov.br/Formulario/Fale-com-SEAB"]
[null,"Secretário","Camila Luiza Cunha Bernardo Aragão"]
[null,"Decreto n.º","9399/2025",null,"Cargo:","Diretora Geral da Secretaria de Estado da Agricultura e do Abastecimento - SEAB"]
[null,"e-mail:","camila.aragao@seab.pr.gov.br"]
[null,"Obs.: LGPD - Lei Geral de Proteção de Dados Pessoais, Lei nº 13.709/2018, IPDM - (Índice Ipardes de Desempenho Municipal)"]
[null,"1.2  DO TOMADOR"]
[]
[null,"Município:","Itapejara D'Oeste",null,null,"IPDM (IPARDES)",null,{"$f":"VLOOKUP(C18,Municipios!A:I,2,0)","v":0.79435927889054503}]
[null,"CNPJ:",{"$f":"VLOOKUP(C18,Municipios!A:I,5,0)","v":"76.995.430/0001-52"}]
[null,"Endereço:",{"$f":"VLOOKUP(C18,Municipios!A:I,7,0)","v":"Av. Manoel Ribas, 620, Centro"}]
[null,"UF:","PR","CEP:",{"$f":"VLOOKUP(C18,Municipios!A:I,8,0)","v":"85.580-000"},"Telefone:","XXXXXXX"]
[null,"e-mail:","XXXXXXXXXXX"]
[null,"Prefeito",{"$f":"VLOOKUP(C18,Municipios!A:I,9,0)","v":"Vilmar Schmoller"}]
[null,"CPF - (LGPD*):","XXXXXXXXX",null,"RG/Órgão Expedidor (LGPD*):",null,"XXXXXXXXX"]
[null,"e-mail:","XXXXXXXXX"]
[null,"Obs.: LGPD - Lei Geral de Proteção de Dados Pessoais, Lei nº 13.709/2018, IPDM - (Índice Ipardes de Desempenho Municipal)",null,null,null,null,null,null,null,null,null,"Constitui objeto deste Convênio, o desenvolvimento de ações voltadas ao desenvolvimento rural sustentável, com enfasê à agricultura familiar, visando assegurar a trafegabilidades dos trechos de estradas rurais identificadas no item 2.2 - Quadro Resumo, mediante a implementação de pavimentação com "]
[null,"Banco:","XXXXXXXXXX",null,null,null,null,null,null,null,null," em "]
[null,"Agência:","XXXXXXXXXX",null,"Conta Convênio:","XXXXXXXXXX",null,null,null,null,null," metros lineares, com largura média de "]
[null,null,null,null,null,null,null,null,null,null,null," m e uma àrea de pavimento de "]
[null,"2. IDENTIFICAÇÃO DO OBJETO",null,null,null,null,null,null,null,null,null," m², consoantes ao Programa Estradas Rurais Integrtadas aos Princípios e Sistemas Conservacionistas - Estradas da Integração (Decreto nº 6.515/2012)"]
[null,"Constitui objeto deste Convênio, o desenvolvimento de ações voltadas ao desenvolvimento rural sustentável, com enfasê à agricultura familiar, visando assegurar a trafegabilidades dos trechos de estradas rurais identificadas no item 2.2 - Quadro Resumo, mediante a implementação de pavimentação conforme descrito abaixo, consoantes ao Programa Estradas Rurais Integrtadas aos Princípios e Sistemas Conservacionistas - Estradas da Integração (Decreto nº 6.515/2012)",null,null,null,null,null,null,null,null,null,{"$f":"TEXT(E36,\"#.##0,00\")","v":"0,00"}]
[null,null,null,null,null,null,null,null,null,null,null,{"$f":"TEXT(E37,\"0,00\")","v":{"$error":"#DIV/0!"}}]
[null,null,null,null,null,null,null,null,null,null,null,{"$f":"TEXT(E38,\"#.##0,00\")","v":"0,00"}]
[null,"Fonte de Recursos",null,null,"PROGRAMA PARANÁ MAIS CIDADES (PPMC)",null,null,null,null,null,null,"Tipo de pavimento","Valor/km - R$"]
[null,"Tipo de Pavimentação",null,null,"PAVIMENTO RÍGIDO DE CONCRETO",null,null,null,null,null,null,"BLOCO SEXTAVADO",650000]
[null,"Extensão (m)",null,null,{"$f":"'Plan3 2.2. QUADRO RESUMO'!G18","v":0},null,null,null,null,null,null,"Concreto Betuminoso Usinado a Quente - CBUQ (Tipo 1)",2000000]
[null,"Média Largura (m)",null,null,{"$f":"'Plan3 2.2. QUADRO RESUMO'!L18","v":{"$error":"#DIV/0!"}},null,null,null,null,null,null,"Concreto Betuminoso Usinado a Quente - CBUQ (Tipo 2)",2000000]
[null," Área Pavimentada (m²)",null,null,{"$f":"'Plan3 2.2. QUADRO RESUMO'!M18","v":0},null,null,null,null,null,null,"PARALELEPIPEDO",1300000]
[null,null,null,null,null,null,null,null,null,null,null,"PAVERS",1100000]
[null,null,null,null,null,null,null,null,null,null,null,"PAVIMENTO RÍGIDO DE CONCRETO"]
[null,null,null,null,null,null,null,null,null,null,null,"PEDRA IRREGULAR",1100000]
[null,"2.1.  Prazo de Vigência e Execução"]
[null,null,null,null,null,null,null,null,null,null,null,"PROGRAMA PARANÁ MAIS CIDADES (PPMC)"]
[null,"Vigência",null,{"$f":"D46+6","v":6}," meses ",null,null,null,null,null,null,"NÃO PROGRAMA PARANÁ MAIS CIDADES (PPMC)"]
[]
[null,"Execução: ",null,null," meses "]
[null,"Obs. A data de inicio da vigência estar previsto no Termo de Convênio"]

{"sheet":"Plan3 2.2. QUADRO RESUMO","index":2,"n_rows":20,"n_cols":13,"rows_kept":20,"cut":false,"hidden":false,"merged":[[19,1,21,12],[18,1,18,5],[17,1,17,5],[1,4,1,12],[3,1,3,12],[5,1,6,1],[5,2,6,2],[1,1,1,2],[5,11,6,11],[5,12,6,12],[5,6,6,6],[5,3,5,5],[5,7,6,7],[5,9,6,9],[5,8,6,8],[5,10,6,10]]}
[]
[null,null,null,null,"PROGRAMA ESTRADAS DA INTEGRAÇÃO  PROJETO DE PAVIMENTAÇÃO DE ESTRADAS\n RURAIS MUNICIPAIS"]
[]
[null,"2.2. Quadro Resumo (Total das Estradas Rurais/trechos indicados nos RTV*)"]
[]
[null,"nº","Estrada Rural/ Nome/ Trechos","Coordenadas UTM - DATUM SIRGAS\n2000 OU WGS84",null,null,"Extensão (m)","Larg. do Calçamento (m)","Largura conteção lateral\n(m)**","Largura cordão*** \n(m)**","Área de calçamento (m²)","Largura total (m)","Área a ser pavimentada total (m²)"]
[null,null,null,"FUSO","Início                        Lat./Long.","Término                       Lat./Long."]
[null,1,"XXXX",null,null,null,0,0,0,0,{"$f":"G8*H8","v":0},0,{"$f":"G8*L8","v":0}]
[null,2,null,null,null,null,null,null,null,null,{"$f":"G9*H9","v":0},{"$f":"H9+J9","v":0},{"$f":"G9*L9","v":0}]
[null,3,null,null,null,null,null,null,null,null,{"$f":"G10*H10","v":0},0,0]
[null,4,null,null,null,null,null,null,null,null,0,0,0]
[null,5,null,null,null,null,null,null,null,null,0,0,0]
[null,6,null,null,null,null,null,null,null,null,0,0,0]
[null,7,null,null,null,null,null,null,null,null,0,0,0]
[null,8,null,null,null,null,null,null,null,null,0,0,0]
[null,9,null,null,null,null,null,null,null,null,0,0,0]
[null,10,null,null,null,null,null,null,null,null,0,0,0]
[null,"TOTAL/m.",null,null,null,null,{"$f":"SUM(G8:G17)","v":0},null,null,null,{"$f":"SUM(K8:K17)","v":0},{"$f":"SUMPRODUCT(G8:G17,L8:L17)/SUM(G8:G17)","v":{"$error":"#DIV/0!"}},{"$f":"SUM(M8:M17)","v":0}]
[null,"TOTAL/Km",null,null,null,null,{"$f":"G18/1000","v":0}]
[null,"*Relatórios Técnico de Vistorias  (01 por trecho/estrada rural)\n**Soma lateral direita e esquerda\n*** Exceto para pavimentação asfáltica\n"]

{"sheet":"Plan4 2.3. OPERAÇÕES","index":3,"n_rows":53,"n_cols":19,"rows_kept":53,"cut":false,"hidden":false,"merged":[[2,6,2,11],[4,1,5,12],[3,12,3,18],[44,3,44,11],[45,3,45,4],[43,1,43,11],[7,1,7,3],[8,2,8,3],[45,10,45,11],[7,11,9,11],[1,17,1,18],[1,12,2,14],[7,16,7,18],[2,17,2,18],[7,13,7,14],[5,17,5,18],[4,17,4,18],[4,13,4,14],[5,13,5,14],[46,3,47,3],[46,4,47,4],[46,5,47,5],[46,6,47,6],[8,17,8,18],[8,16,9,16],[46,7,46,8],[46,9,47,9],[46,10,47,10],[46,11,47,11],[7,12,9,12],[7,5,9,5],[7,6,9,6],[7,7,9,7],[7,8,7,10],[45,5,45,9]]}
[]
[null,null,null,null,null,null,null,null,null,null,null,null,"Contrapartida  ",null,null,"Municipio","IPDM","% DA CONTRAPARTDIDA"]
[null,null,null,null,null,null,"PROGRAMA ESTRADAS DA INTEGRAÇÃO  PROJETO DE PAVIMENTAÇÃO DE ESTRADAS\n RURAIS MUNICIPAIS",null,null,null,null,null,null,null,null,{"$f":"'Plan2 1.DADOS,2.OBJ e 2.1.Vigên'!C18","v":"Itapejara D'Oeste"},{"$f":"VLOOKUP(P3,Municipios!A:C,2,0)","v":0.79435927889054503},{"$f":"VALUE(VLOOKUP(Q3,Municipios!B:D,2,0))","v":0.1}]
[null,null,null,null,null,null,null,null,null,null,null,null,"Obs. : caso o municipio queira dar  uma contrapartida maior em um  único item deve ser feita de forma manual. A planilha, esta calculando automáticamente somente no financeiro."]
[null,"2.3. Operações a serem executadas nos trechos (Preferencialmente utilizar como referência: Tabelas de custos SEIL/DER/PR e, excepcionalmente, SINAPI E DNIT, nos casos de serviços não contemplados pela tabeLa do DER-PR",null,null,null,null,null,null,null,null,null,null,null,"SINAPI (MM/AAAA)",null,null,"DNIT (MM/AAAA)"]
[null,null,null,null,null,null,null,null,null,null,null,null,null,"DER/PR (MM/AAAA)",null,null,"Outros: (MM/AAAA)"]
[]
[null,"Tipo \nRevestimento:",null,null,{"$f":"'Plan2 1.DADOS,2.OBJ e 2.1.Vigên'!E35","v":"PAVIMENTO RÍGIDO DE CONCRETO"},"Unid.","Valor unitário (R$)¹","Qtd.","Custo Transp. (R$)",null,null,"Total s/ BDI (R$)","BDI % (material ou serviços)","Total c/ BDI (R$)",null,"SEAB","CONTRAPARTIDA (MUNICÍPIO)²"]
[null,null,"REFERENCIA",null,null,null,null,null,null,null,null,null,null,null,null,null,"FINANCEIRA R$","FÍSICA"]
[null,"Natureza de despesa","INSTITUIÇÃO","Código ","Itens",null,null,null,"QUANTIDADE (T)","UNITÁRIO","TOTAL",null,null,"Total c/ BDI (R$)","%","R$",null,"SERVIÇOS","BENS"]
[null,{"$f":"IF($E$8=Serviços!$E$2,Serviços!B4,IF($E$8=Serviços!$E$40,Serviços!B42,IF($E$8=Serviços!$E$77,Serviços!B79,IF($E$8=Serviços!$E$113,Serviços!B115,IF($E$8=Serviços!$E$149,Serviços!B151,IF($E$8=Serviços!$E$185,Serviços!B187,IF($E$8=Serviços!$E$221,Serviços!B223,\"Serviço não localizado\")))))))","v":"4.4.90.51.00"},{"$f":"IF($E$8=Serviços!$E$2,Serviços!C4,IF($E$8=Serviços!$E$40,Serviços!C42,IF($E$8=Serviços!$E$77,Serviços!C79,IF($E$8=Serviços!$E$113,Serviços!C115,IF($E$8=Serviços!$E$149,Serviços!C151,IF($E$8=Serviços!$E$185,Serviços!C187,IF($E$8=Serviços!$E$221,Serviços!C223,\"Serviço não localizado\")))))))","v":"SINAPI"},{"$f":"IF($E$8=Serviços!$E$2,Serviços!D4,IF($E$8=Serviços!$E$40,Serviços!D42,IF($E$8=Serviços!$E$77,Serviços!D79,IF($E$8=Serviços!$E$113,Serviços!D115,IF($E$8=Serviços!$E$149,Serviços!D151,IF($E$8=Serviços!$E$185,Serviços!D187,IF($E$8=Serviços!$E$221,Serviços!D223,\"Serviço não localizado\")))))))","v":103689},{"$f":"IF($E$8=Serviços!$E$2,Serviços!E4,IF($E$8=Serviços!$E$40,Serviços!E42,IF($E$8=Serviços!$E$77,Serviços!E79,IF($E$8=Serviços!$E$113,Serviços!E115,IF($E$8=Serviços!$E$149,Serviços!E151,IF($E$8=Serviços!$E$185,Serviços!E187,IF($E$8=Serviços!$E$221,Serviços!E223,\"Serviço não localizado\")))))))","v":"Placa de obra (para construção civil) em chapa galvanizada *n. 22*, adesivada, (3,00m x 1,50m)"},{"$f":"IF($E$8=Serviços!$E$2,Serviços!F4,IF($E$8=Serviços!$E$40,Serviços!F42,IF($E$8=Serviços!$E$77,Serviços!F79,IF($E$8=Serviços!$E$113,Serviços!F115,IF($E$8=Serviços!$E$149,Serviços!F151,IF($E$8=Serviços!$E$185,Serviços!F187,IF($E$8=Serviços!$E$221,Serviços!F223,\"Serviço não localizado\")))))))","v":"ud"},null,null,0,0,{"$f":"I11*J11","v":0},{"$f":"(G11*H11)+K11","v":0},0,{"$f":"IF(M11>0,L11+L11*M11,L11)","v":0},{"$f":"N11/N$42","v":{"$error":"#DIV/0!"}},{"$f":"N11-Q11-R11-S11","v":0},{"$f":"N11*$R$3-R11-S11","v":0},0,0]
[null,{"$f":"IF($E$8=Serviços!$E$2,Serviços!B5,IF($E$8=Serviços!$E$40,Serviços!B43,IF($E$8=Serviços!$E$77,Serviços!B80,IF($E$8=Serviços!$E$113,Serviços!B116,IF($E$8=Serviços!$E$149,Serviços!B152,IF($E$8=Serviços!$E$185,Serviços!B188,IF($E$8=Serviços!$E$221,Serviços!B224,\"Serviço não localizado\")))))))","v":"4.4.90.51.00"},{"$f":"IF($E$8=Serviços!$E$2,Serviços!C5,IF($E$8=Serviços!$E$40,Serviços!C43,IF($E$8=Serviços!$E$77,Serviços!C80,IF($E$8=Serviços!$E$113,Serviços!C116,IF($E$8=Serviços!$E$149,Serviços!C152,IF($E$8=Serviços!$E$185,Serviços!C188,IF($E$8=Serviços!$E$221,Serviços!C224,\"Serviço não localizado\")))))))","v":"SINAPI"},{"$f":"IF($E$8=Serviços!$E$2,Serviços!D5,IF($E$8=Serviços!$E$40,Serviços!D43,IF($E$8=Serviços!$E$77,Serviços!D80,IF($E$8=Serviços!$E$113,Serviços!D116,IF($E$8=Serviços!$E$149,Serviços!D152,IF($E$8=Serviços!$E$185,Serviços!D188,IF($E$8=Serviços!$E$221,Serviços!D224,\"Serviço não localizado\")))))))","v":103694},{"$f":"IF($E$8=Serviços!$E$2,Serviços!E5,IF($E$8=Serviços!$E$40,Serviços!E43,IF($E$8=Serviços!$E$77,Serviços!E80,IF($E$8=Serviços!$E$113,Serviços!E116,IF($E$8=Serviços!$E$149,Serviços!E152,IF($E$8=Serviços!$E$185,Serviços!E188,IF($E$8=Serviços!$E$221,Serviços!E224,\"Serviço não localizado\")))))))","v":"Suporte de madeira 3\"x3\" p/ placa DE OBRA"},{"$f":"IF($E$8=Serviços!$E$2,Serviços!F5,IF($E$8=Serviços!$E$40,Serviços!F43,IF($E$8=Serviços!$E$77,Serviços!F80,IF($E$8=Serviços!$E$113,Serviços!F116,IF($E$8=Serviços!$E$149,Serviços!F152,IF($E$8=Serviços!$E$185,Serviços!F188,IF($E$8=Serviços!$E$221,Serviços!F224,\"Serviço não localizado\")))))))","v":"m²"},null,null,null,null,0,{"$f":"(G12*H12)+K12","v":0},null,0,{"$error":"#DIV/0!"},{"$f":"N12-Q12-R12-S12","v":0},{"$f":"N12*$R$3-R12-S12","v":0},0,0]
[null,{"$f":"IF($E$8=Serviços!$E$2,Serviços!B6,IF($E$8=Serviços!$E$40,Serviços!B44,IF($E$8=Serviços!$E$77,Serviços!B81,IF($E$8=Serviços!$E$113,Serviços!B117,IF($E$8=Serviços!$E$149,Serviços!B153,IF($E$8=Serviços!$E$185,Serviços!B189,IF($E$8=Serviços!$E$221,Serviços!B225,\"Serviço não localizado\")))))))","v":"4.4.90.51.00"},{"$f":"IF($E$8=Serviços!$E$2,Serviços!C6,IF($E$8=Serviços!$E$40,Serviços!C44,IF($E$8=Serviços!$E$77,Serviços!C81,IF($E$8=Serviços!$E$113,Serviços!C117,IF($E$8=Serviços!$E$149,Serviços!C153,IF($E$8=Serviços!$E$185,Serviços!C189,IF($E$8=Serviços!$E$221,Serviços!C225,\"Serviço não localizado\")))))))","v":"DER/PR"},{"$f":"IF($E$8=Serviços!$E$2,Serviços!D6,IF($E$8=Serviços!$E$40,Serviços!D44,IF($E$8=Serviços!$E$77,Serviços!D81,IF($E$8=Serviços!$E$113,Serviços!D117,IF($E$8=Serviços!$E$149,Serviços!D153,IF($E$8=Serviços!$E$185,Serviços!D189,IF($E$8=Serviços!$E$221,Serviços!D225,\"Serviço não localizado\")))))))","v":50000},{"$f":"IF($E$8=Serviços!$E$2,Serviços!E6,IF($E$8=Serviços!$E$40,Serviços!E44,IF($E$8=Serviços!$E$77,Serviços!E81,IF($E$8=Serviços!$E$113,Serviços!E117,IF($E$8=Serviços!$E$149,Serviços!E153,IF($E$8=Serviços!$E$185,Serviços!E189,IF($E$8=Serviços!$E$221,Serviços!E225,\"Serviço não localizado\")))))))","v":"Escarificação,regularização e compactação subleito"},{"$f":"IF($E$8=Serviços!$E$2,Serviços!F6,IF($E$8=Serviços!$E$40,Serviços!F44,IF($E$8=Serviços!$E$77,Serviços!F81,IF($E$8=Serviços!$E$113,Serviços!F117,IF($E$8=Serviços!$E$149,Serviços!F153,IF($E$8=Serviços!$E$185,Serviços!F189,IF($E$8=Serviços!$E$221,Serviços!F225,\"Serviço não localizado\")))))))","v":"m²"},null,null,null,null,0,0,null,0,{"$error":"#DIV/0!"},0,0,0,0]
[null,{"$f":"IF($E$8=Serviços!$E$2,Serviços!B7,IF($E$8=Serviços!$E$40,Serviços!B45,IF($E$8=Serviços!$E$77,Serviços!B82,IF($E$8=Serviços!$E$113,Serviços!B118,IF($E$8=Serviços!$E$149,Serviços!B154,IF($E$8=Serviços!$E$185,Serviços!B190,IF($E$8=Serviços!$E$221,Serviços!B226,\"Serviço não localizado\")))))))","v":"4.4.90.51.00"},{"$f":"IF($E$8=Serviços!$E$2,Serviços!C7,IF($E$8=Serviços!$E$40,Serviços!C45,IF($E$8=Serviços!$E$77,Serviços!C82,IF($E$8=Serviços!$E$113,Serviços!C118,IF($E$8=Serviços!$E$149,Serviços!C154,IF($E$8=Serviços!$E$185,Serviços!C190,IF($E$8=Serviços!$E$221,Serviços!C226,\"Serviço não localizado\")))))))","v":"DER/PR"},{"$f":"IF($E$8=Serviços!$E$2,Serviços!D7,IF($E$8=Serviços!$E$40,Serviços!D45,IF($E$8=Serviços!$E$77,Serviços!D82,IF($E$8=Serviços!$E$113,Serviços!D118,IF($E$8=Serviços!$E$149,Serviços!D154,IF($E$8=Serviços!$E$185,Serviços!D190,IF($E$8=Serviços!$E$221,Serviços!D226,\"Serviço não localizado\")))))))","v":511100},{"$f":"IF($E$8=Serviços!$E$2,Serviços!E7,IF($E$8=Serviços!$E$40,Serviços!E45,IF($E$8=Serviços!$E$77,Serviços!E82,IF($E$8=Serviços!$E$113,Serviços!E118,IF($E$8=Serviços!$E$149,Serviços!E154,IF($E$8=Serviços!$E$185,Serviços!E190,IF($E$8=Serviços!$E$221,Serviços!E226,\"Serviço não localizado\")))))))","v":"Regularização compactação. Subleito 100% PN"},{"$f":"IF($E$8=Serviços!$E$2,Serviços!F7,IF($E$8=Serviços!$E$40,Serviços!F45,IF($E$8=Serviços!$E$77,Serviços!F82,IF($E$8=Serviços!$E$113,Serviços!F118,IF($E$8=Serviços!$E$149,Serviços!F154,IF($E$8=Serviços!$E$185,Serviços!F190,IF($E$8=Serviços!$E$221,Serviços!F226,\"Serviço não localizado\")))))))","v":"m²"},null,null,null,null,{"$f":"I14*J14","v":0},0,null,0,{"$error":"#DIV/0!"},0,0,0,0]
[null,{"$f":"IF($E$8=Serviços!$E$2,Serviços!B8,IF($E$8=Serviços!$E$40,Serviços!B46,IF($E$8=Serviços!$E$77,Serviços!B83,IF($E$8=Serviços!$E$113,Serviços!B119,IF($E$8=Serviços!$E$149,Serviços!B155,IF($E$8=Serviços!$E$185,Serviços!B191,IF($E$8=Serviços!$E$221,Serviços!B227,\"Serviço não localizado\")))))))","v":"4.4.90.51.00"},{"$f":"IF($E$8=Serviços!$E$2,Serviços!C8,IF($E$8=Serviços!$E$40,Serviços!C46,IF($E$8=Serviços!$E$77,Serviços!C83,IF($E$8=Serviços!$E$113,Serviços!C119,IF($E$8=Serviços!$E$149,Serviços!C155,IF($E$8=Serviços!$E$185,Serviços!C191,IF($E$8=Serviços!$E$221,Serviços!C227,\"Serviço não localizado\")))))))","v":"DER/PR"},{"$f":"IF($E$8=Serviços!$E$2,Serviços!D8,IF($E$8=Serviços!$E$40,Serviços!D46,IF($E$8=Serviços!$E$77,Serviços!D83,IF($E$8=Serviços!$E$113,Serviços!D119,IF($E$8=Serviços!$E$149,Serviços!D155,IF($E$8=Serviços!$E$185,Serviços!D191,IF($E$8=Serviços!$E$221,Serviços!D227,\"Serviço não localizado\")))))))","v":530200},{"$f":"IF($E$8=Serviços!$E$2,Serviços!E8,IF($E$8=Serviços!$E$40,Serviços!E46,IF($E$8=Serviços!$E$77,Serviços!E83,IF($E$8=Serviços!$E$113,Serviços!E119,IF($E$8=Serviços!$E$149,Serviços!E155,IF($E$8=Serviços!$E$185,Serviços!E191,IF($E$8=Serviços!$E$221,Serviços!E227,\"Serviço não localizado\")))))))","v":"BRITA GRADUADA 4 A - BICA CORRIDA"},{"$f":"IF($E$8=Serviços!$E$2,Serviços!F8,IF($E$8=Serviços!$E$40,Serviços!F46,IF($E$8=Serviços!$E$77,Serviços!F83,IF($E$8=Serviços!$E$113,Serviços!F119,IF($E$8=Serviços!$E$149,Serviços!F155,IF($E$8=Serviços!$E$185,Serviços!F191,IF($E$8=Serviços!$E$221,Serviços!F227,\"Serviço não localizado\")))))))","v":"m³"},null,null,null,null,0,0,null,0,{"$error":"#DIV/0!"},0,0,0,0]
[null,{"$f":"IF($E$8=Serviços!$E$2,Serviços!B9,IF($E$8=Serviços!$E$40,Serviços!B47,IF($E$8=Serviços!$E$77,Serviços!B84,IF($E$8=Serviços!$E$113,Serviços!B120,IF($E$8=Serviços!$E$149,Serviços!B156,IF($E$8=Serviços!$E$185,Serviços!B192,IF($E$8=Serviços!$E$221,Serviços!B228,\"Serviço não localizado\")))))))","v":"4.4.90.51.00"},{"$f":"IF($E$8=Serviços!$E$2,Serviços!C9,IF($E$8=Serviços!$E$40,Serviços!C47,IF($E$8=Serviços!$E$77,Serviços!C84,IF($E$8=Serviços!$E$113,Serviços!C120,IF($E$8=Serviços!$E$149,Serviços!C156,IF($E$8=Serviços!$E$185,Serviços!C192,IF($E$8=Serviços!$E$221,Serviços!C228,\"Serviço não localizado\")))))))","v":"DER/PR"},{"$f":"IF($E$8=Serviços!$E$2,Serviços!D9,IF($E$8=Serviços!$E$40,Serviços!D47,IF($E$8=Serviços!$E$77,Serviços!D84,IF($E$8=Serviços!$E$113,Serviços!D120,IF($E$8=Serviços!$E$149,Serviços!D156,IF($E$8=Serviços!$E$185,Serviços!D192,IF($E$8=Serviços!$E$221,Serviços!D228,\"Serviço não localizado\")))))))","v":"Composição"},{"$f":"IF($E$8=Serviços!$E$2,Serviços!E9,IF($E$8=Serviços!$E$40,Serviços!E47,IF($E$8=Serviços!$E$77,Serviços!E84,IF($E$8=Serviços!$E$113,Serviços!E120,IF($E$8=Serviços!$E$149,Serviços!E156,IF($E$8=Serviços!$E$185,Serviços!E192,IF($E$8=Serviços!$E$221,Serviços!E228,\"Serviço não localizado\")))))))","v":"Sub base BRITA GRADUADA 4 A  - BICA CORRIDA TRANSPORTE - DMT ...km"},{"$f":"IF($E$8=Serviços!$E$2,Serviços!F9,IF($E$8=Serviços!$E$40,Serviços!F47,IF($E$8=Serviços!$E$77,Serviços!F84,IF($E$8=Serviços!$E$113,Serviços!F120,IF($E$8=Serviços!$E$149,Serviços!F156,IF($E$8=Serviços!$E$185,Serviços!F192,IF($E$8=Serviços!$E$221,Serviços!F228,\"Serviço não localizado\")))))))","v":"ton."},null,null,null,null,0,0,null,0,{"$error":"#DIV/0!"},0,0,0,0]
[null,{"$f":"IF($E$8=Serviços!$E$2,Serviços!B10,IF($E$8=Serviços!$E$40,Serviços!B48,IF($E$8=Serviços!$E$77,Serviços!B85,IF($E$8=Serviços!$E$113,Serviços!B121,IF($E$8=Serviços!$E$149,Serviços!B157,IF($E$8=Serviços!$E$185,Serviços!B193,IF($E$8=Serviços!$E$221,Serviços!B229,\"Serviço não localizado\")))))))","v":"4.4.90.51.00"},{"$f":"IF($E$8=Serviços!$E$2,Serviços!C10,IF($E$8=Serviços!$E$40,Serviços!C48,IF($E$8=Serviços!$E$77,Serviços!C85,IF($E$8=Serviços!$E$113,Serviços!C121,IF($E$8=Serviços!$E$149,Serviços!C157,IF($E$8=Serviços!$E$185,Serviços!C193,IF($E$8=Serviços!$E$221,Serviços!C229,\"Serviço não localizado\")))))))","v":"DER/PR"},{"$f":"IF($E$8=Serviços!$E$2,Serviços!D10,IF($E$8=Serviços!$E$40,Serviços!D48,IF($E$8=Serviços!$E$77,Serviços!D85,IF($E$8=Serviços!$E$113,Serviços!D121,IF($E$8=Serviços!$E$149,Serviços!D157,IF($E$8=Serviços!$E$185,Serviços!D193,IF($E$8=Serviços!$E$221,Serviços!D229,\"Serviço não localizado\")))))))","v":401160},{"$f":"IF($E$8=Serviços!$E$2,Serviços!E10,IF($E$8=Serviços!$E$40,Serviços!E48,IF($E$8=Serviços!$E$77,Serviços!E85,IF($E$8=Serviços!$E$113,Serviços!E121,IF($E$8=Serviços!$E$149,Serviços!E157,IF($E$8=Serviços!$E$185,Serviços!E193,IF($E$8=Serviços!$E$221,Serviços!E229,\"Serviço não localizado\")))))))","v":"Regularização, conformação e compactação "},{"$f":"IF($E$8=Serviços!$E$2,Serviços!F10,IF($E$8=Serviços!$E$40,Serviços!F48,IF($E$8=Serviços!$E$77,Serviços!F85,IF($E$8=Serviços!$E$113,Serviços!F121,IF($E$8=Serviços!$E$149,Serviços!F157,IF($E$8=Serviços!$E$185,Serviços!F193,IF($E$8=Serviços!$E$221,Serviços!F229,\"Serviço não localizado\")))))))","v":"m2"},null,null,null,null,0,0,null,0,{"$error":"#DIV/0!"},0,0,0,0]
[null,{"$f":"IF($E$8=Serviços!$E$2,Serviços!B11,IF($E$8=Serviços!$E$40,Serviços!B49,IF($E$8=Serviços!$E$77,Serviços!B86,IF($E$8=Serviços!$E$113,Serviços!B122,IF($E$8=Serviços!$E$149,Serviços!B158,IF($E$8=Serviços!$E$185,Serviços!B194,IF($E$8=Serviços!$E$221,Serviços!B230,\"Serviço não localizado\")))))))","v":"4.4.90.51.00"},{"$f":"IF($E$8=Serviços!$E$2,Serviços!C11,IF($E$8=Serviços!$E$40,Serviços!C49,IF($E$8=Serviços!$E$77,Serviços!C86,IF($E$8=Serviços!$E$113,Serviços!C122,IF($E$8=Serviços!$E$149,Serviços!C158,IF($E$8=Serviços!$E$185,Serviços!C194,IF($E$8=Serviços!$E$221,Serviços!C230,\"Serviço não localizado\")))))))","v":"DER/PR"},{"$f":"IF($E$8=Serviços!$E$2,Serviços!D11,IF($E$8=Serviços!$E$40,Serviços!D49,IF($E$8=Serviços!$E$77,Serviços!D86,IF($E$8=Serviços!$E$113,Serviços!D122,IF($E$8=Serviços!$E$149,Serviços!D158,IF($E$8=Serviços!$E$185,Serviços!D194,IF($E$8=Serviços!$E$221,Serviços!D230,\"Serviço não localizado\")))))))","v":531350},{"$f":"IF($E$8=Serviços!$E$2,Serviços!E11,IF($E$8=Serviços!$E$40,Serviços!E49,IF($E$8=Serviços!$E$77,Serviços!E86,IF($E$8=Serviços!$E$113,Serviços!E122,IF($E$8=Serviços!$E$149,Serviços!E158,IF($E$8=Serviços!$E$185,Serviços!E194,IF($E$8=Serviços!$E$221,Serviços!E230,\"Serviço não localizado\")))))))","v":"Macadame seco britado preenchido com bica corrida"},{"$f":"IF($E$8=Serviços!$E$2,Serviços!F11,IF($E$8=Serviços!$E$40,Serviços!F49,IF($E$8=Serviços!$E$77,Serviços!F86,IF($E$8=Serviços!$E$113,Serviços!F122,IF($E$8=Serviços!$E$149,Serviços!F158,IF($E$8=Serviços!$E$185,Serviços!F194,IF($E$8=Serviços!$E$221,Serviços!F230,\"Serviço não localizado\")))))))","v":"m³"},null,null,null,null,0,0,null,0,{"$error":"#DIV/0!"},0,0,0,0]
[null,{"$f":"IF($E$8=Serviços!$E$2,Serviços!B12,IF($E$8=Serviços!$E$40,Serviços!B50,IF($E$8=Serviços!$E$77,Serviços!B87,IF($E$8=Serviços!$E$113,Serviços!B123,IF($E$8=Serviços!$E$149,Serviços!B159,IF($E$8=Serviços!$E$185,Serviços!B195,IF($E$8=Serviços!$E$221,Serviços!B231,\"Serviço não localizado\")))))))","v":"4.4.90.51.00"},{"$f":"IF($E$8=Serviços!$E$2,Serviços!C12,IF($E$8=Serviços!$E$40,Serviços!C50,IF($E$8=Serviços!$E$77,Serviços!C87,IF($E$8=Serviços!$E$113,Serviços!C123,IF($E$8=Serviços!$E$149,Serviços!C159,IF($E$8=Serviços!$E$185,Serviços!C195,IF($E$8=Serviços!$E$221,Serviços!C231,\"Serviço não localizado\")))))))","v":"DER/PR"},{"$f":"IF($E$8=Serviços!$E$2,Serviços!D12,IF($E$8=Serviços!$E$40,Serviços!D50,IF($E$8=Serviços!$E$77,Serviços!D87,IF($E$8=Serviços!$E$113,Serviços!D123,IF($E$8=Serviços!$E$149,Serviços!D159,IF($E$8=Serviços!$E$185,Serviços!D195,IF($E$8=Serviços!$E$221,Serviços!D231,\"Serviço não localizado\")))))))","v":560100},{"$f":"IF($E$8=Serviços!$E$2,Serviços!E12,IF($E$8=Serviços!$E$40,Serviços!E50,IF($E$8=Serviços!$E$77,Serviços!E87,IF($E$8=Serviços!$E$113,Serviços!E123,IF($E$8=Serviços!$E$149,Serviços!E159,IF($E$8=Serviços!$E$185,Serviços!E195,IF($E$8=Serviços!$E$221,Serviços!E231,\"Serviço não localizado\")))))))","v":"Imprimação impermeabilizante, exclusive fornecimento da emulsão"},{"$f":"IF($E$8=Serviços!$E$2,Serviços!F12,IF($E$8=Serviços!$E$40,Serviços!F50,IF($E$8=Serviços!$E$77,Serviços!F87,IF($E$8=Serviços!$E$113,Serviços!F123,IF($E$8=Serviços!$E$149,Serviços!F159,IF($E$8=Serviços!$E$185,Serviços!F195,IF($E$8=Serviços!$E$221,Serviços!F231,\"Serviço não localizado\")))))))","v":"m²"},null,null,null,null,0,0,null,0,{"$error":"#DIV/0!"},0,0,0,0]
[null,{"$f":"IF($E$8=Serviços!$E$2,Serviços!B13,IF($E$8=Serviços!$E$40,Serviços!B51,IF($E$8=Serviços!$E$77,Serviços!B88,IF($E$8=Serviços!$E$113,Serviços!B124,IF($E$8=Serviços!$E$149,Serviços!B160,IF($E$8=Serviços!$E$185,Serviços!B196,IF($E$8=Serviços!$E$221,Serviços!B232,\"Serviço não localizado\")))))))","v":"4.4.90.51.00"},{"$f":"IF($E$8=Serviços!$E$2,Serviços!C13,IF($E$8=Serviços!$E$40,Serviços!C51,IF($E$8=Serviços!$E$77,Serviços!C88,IF($E$8=Serviços!$E$113,Serviços!C124,IF($E$8=Serviços!$E$149,Serviços!C160,IF($E$8=Serviços!$E$185,Serviços!C196,IF($E$8=Serviços!$E$221,Serviços!C232,\"Serviço não localizado\")))))))","v":"DER/PR"},{"$f":"IF($E$8=Serviços!$E$2,Serviços!D13,IF($E$8=Serviços!$E$40,Serviços!D51,IF($E$8=Serviços!$E$77,Serviços!D88,IF($E$8=Serviços!$E$113,Serviços!D124,IF($E$8=Serviços!$E$149,Serviços!D160,IF($E$8=Serviços!$E$185,Serviços!D196,IF($E$8=Serviços!$E$221,Serviços!D232,\"Serviço não localizado\")))))))","v":561100},{"$f":"IF($E$8=Serviços!$E$2,Serviços!E13,IF($E$8=Serviços!$E$40,Serviços!E51,IF($E$8=Serviços!$E$77,Serviços!E88,IF($E$8=Serviços!$E$113,Serviços!E124,IF($E$8=Serviços!$E$149,Serviços!E160,IF($E$8=Serviços!$E$185,Serviços!E196,IF($E$8=Serviços!$E$221,Serviços!E232,\"Serviço não localizado\")))))))","v":"Pintura de ligação exclusive fornec. da emulsão"},{"$f":"IF($E$8=Serviços!$E$2,Serviços!F13,IF($E$8=Serviços!$E$40,Serviços!F51,IF($E$8=Serviços!$E$77,Serviços!F88,IF($E$8=Serviços!$E$113,Serviços!F124,IF($E$8=Serviços!$E$149,Serviços!F160,IF($E$8=Serviços!$E$185,Serviços!F196,IF($E$8=Serviços!$E$221,Serviços!F232,\"Serviço não localizado\")))))))","v":"m²"},null,null,null,null,0,0,null,0,{"$error":"#DIV/0!"},0,0,0,0]
[null,{"$f":"IF($E$8=Serviços!$E$2,Serviços!B14,IF($E$8=Serviços!$E$40,Serviços!B52,IF($E$8=Serviços!$E$77,Serviços!B89,IF($E$8=Serviços!$E$113,Serviços!B125,IF($E$8=Serviços!$E$149,Serviços!B161,IF($E$8=Serviços!$E$185,Serviços!B197,IF($E$8=Serviços!$E$221,Serviços!B233,\"Serviço não localizado\")))))))","v":"4.4.90.51.00"},{"$f":"IF($E$8=Serviços!$E$2,Serviços!C14,IF($E$8=Serviços!$E$40,Serviços!C52,IF($E$8=Serviços!$E$77,Serviços!C89,IF($E$8=Serviços!$E$113,Serviços!C125,IF($E$8=Serviços!$E$149,Serviços!C161,IF($E$8=Serviços!$E$185,Serviços!C197,IF($E$8=Serviços!$E$221,Serviços!C233,\"Serviço não localizado\")))))))","v":"DER/PR"},{"$f":"IF($E$8=Serviços!$E$2,Serviços!D14,IF($E$8=Serviços!$E$40,Serviços!D52,IF($E$8=Serviços!$E$77,Serviços!D89,IF($E$8=Serviços!$E$113,Serviços!D125,IF($E$8=Serviços!$E$149,Serviços!D161,IF($E$8=Serviços!$E$185,Serviços!D197,IF($E$8=Serviços!$E$221,Serviços!D233,\"Serviço não localizado\")))))))","v":570000},{"$f":"IF($E$8=Serviços!$E$2,Serviços!E14,IF($E$8=Serviços!$E$40,Serviços!E52,IF($E$8=Serviços!$E$77,Serviços!E89,IF($E$8=Serviços!$E$113,Serviços!E125,IF($E$8=Serviços!$E$149,Serviços!E161,IF($E$8=Serviços!$E$185,Serviços!E197,IF($E$8=Serviços!$E$221,Serviços!E233,\"Serviço não localizado\")))))))","v":"C.B.U.Q.- aplicação, excl. fornec. do CAP (até 10.000 t)"},{"$f":"IF($E$8=Serviços!$E$2,Serviços!F14,IF($E$8=Serviços!$E$40,Serviços!F52,IF($E$8=Serviços!$E$77,Serviços!F89,IF($E$8=Serviços!$E$113,Serviços!F125,IF($E$8=Serviços!$E$149,Serviços!F161,IF($E$8=Serviços!$E$185,Serviços!F197,IF($E$8=Serviços!$E$221,Serviços!F233,\"Serviço não localizado\")))))))","v":"t"},null,null,null,null,0,0,null,0,{"$error":"#DIV/0!"},0,0,0,0]
[null,{"$f":"IF($E$8=Serviços!$E$2,Serviços!B15,IF($E$8=Serviços!$E$40,Serviços!B53,IF($E$8=Serviços!$E$77,Serviços!B90,IF($E$8=Serviços!$E$113,Serviços!B126,IF($E$8=Serviços!$E$149,Serviços!B162,IF($E$8=Serviços!$E$185,Serviços!B198,IF($E$8=Serviços!$E$221,Serviços!B234,\"Serviço não localizado\")))))))","v":"4.4.90.51.00"},{"$f":"IF($E$8=Serviços!$E$2,Serviços!C15,IF($E$8=Serviços!$E$40,Serviços!C53,IF($E$8=Serviços!$E$77,Serviços!C90,IF($E$8=Serviços!$E$113,Serviços!C126,IF($E$8=Serviços!$E$149,Serviços!C162,IF($E$8=Serviços!$E$185,Serviços!C198,IF($E$8=Serviços!$E$221,Serviços!C234,\"Serviço não localizado\")))))))","v":"DER/PR"},{"$f":"IF($E$8=Serviços!$E$2,Serviços!D15,IF($E$8=Serviços!$E$40,Serviços!D53,IF($E$8=Serviços!$E$77,Serviços!D90,IF($E$8=Serviços!$E$113,Serviços!D126,IF($E$8=Serviços!$E$149,Serviços!D162,IF($E$8=Serviços!$E$185,Serviços!D198,IF($E$8=Serviços!$E$221,Serviços!D234,\"Serviço não localizado\")))))))","v":589000},{"$f":"IF($E$8=Serviços!$E$2,Serviços!E15,IF($E$8=Serviços!$E$40,Serviços!E53,IF($E$8=Serviços!$E$77,Serviços!E90,IF($E$8=Serviços!$E$113,Serviços!E126,IF($E$8=Serviços!$E$149,Serviços!E162,IF($E$8=Serviços!$E$185,Serviços!E198,IF($E$8=Serviços!$E$221,Serviços!E234,\"Serviço não localizado\")))))))","v":"Fornecimento de C.A.P.- 50/70"},{"$f":"IF($E$8=Serviços!$E$2,Serviços!F15,IF($E$8=Serviços!$E$40,Serviços!F53,IF($E$8=Serviços!$E$77,Serviços!F90,IF($E$8=Serviços!$E$113,Serviços!F126,IF($E$8=Serviços!$E$149,Serviços!F162,IF($E$8=Serviços!$E$185,Serviços!F198,IF($E$8=Serviços!$E$221,Serviços!F234,\"Serviço não localizado\")))))))","v":"t"},null,null,null,null,0,0,null,0,{"$error":"#DIV/0!"},0,0,0,0]
[null,{"$f":"IF($E$8=Serviços!$E$2,Serviços!B16,IF($E$8=Serviços!$E$40,Serviços!B54,IF($E$8=Serviços!$E$77,Serviços!B91,IF($E$8=Serviços!$E$113,Serviços!B127,IF($E$8=Serviços!$E$149,Serviços!B163,IF($E$8=Serviços!$E$185,Serviços!B199,IF($E$8=Serviços!$E$221,Serviços!B235,\"Serviço não localizado\")))))))","v":"4.4.90.51.00"},{"$f":"IF($E$8=Serviços!$E$2,Serviços!C16,IF($E$8=Serviços!$E$40,Serviços!C54,IF($E$8=Serviços!$E$77,Serviços!C91,IF($E$8=Serviços!$E$113,Serviços!C127,IF($E$8=Serviços!$E$149,Serviços!C163,IF($E$8=Serviços!$E$185,Serviços!C199,IF($E$8=Serviços!$E$221,Serviços!C235,\"Serviço não localizado\")))))))","v":"DER/PR"},{"$f":"IF($E$8=Serviços!$E$2,Serviços!D16,IF($E$8=Serviços!$E$40,Serviços!D54,IF($E$8=Serviços!$E$77,Serviços!D91,IF($E$8=Serviços!$E$113,Serviços!D127,IF($E$8=Serviços!$E$149,Serviços!D163,IF($E$8=Serviços!$E$185,Serviços!D199,IF($E$8=Serviços!$E$221,Serviços!D235,\"Serviço não localizado\")))))))","v":589190},{"$f":"IF($E$8=Serviços!$E$2,Serviços!E16,IF($E$8=Serviços!$E$40,Serviços!E54,IF($E$8=Serviços!$E$77,Serviços!E91,IF($E$8=Serviços!$E$113,Serviços!E127,IF($E$8=Serviços!$E$149,Serviços!E163,IF($E$8=Serviços!$E$185,Serviços!E199,IF($E$8=Serviços!$E$221,Serviços!E235,\"Serviço não localizado\")))))))","v":"Fornecimento de emulsão asfaltica E.A.I. para imprimação"},{"$f":"IF($E$8=Serviços!$E$2,Serviços!F16,IF($E$8=Serviços!$E$40,Serviços!F54,IF($E$8=Serviços!$E$77,Serviços!F91,IF($E$8=Serviços!$E$113,Serviços!F127,IF($E$8=Serviços!$E$149,Serviços!F163,IF($E$8=Serviços!$E$185,Serviços!F199,IF($E$8=Serviços!$E$221,Serviços!F235,\"Serviço não localizado\")))))))","v":"t"},null,null,null,null,0,0,null,0,{"$error":"#DIV/0!"},0,0,0,0]
[null,{"$f":"IF($E$8=Serviços!$E$2,Serviços!B17,IF($E$8=Serviços!$E$40,Serviços!B55,IF($E$8=Serviços!$E$77,Serviços!B92,IF($E$8=Serviços!$E$113,Serviços!B128,IF($E$8=Serviços!$E$149,Serviços!B164,IF($E$8=Serviços!$E$185,Serviços!B200,IF($E$8=Serviços!$E$221,Serviços!B236,\"Serviço não localizado\")))))))","v":"4.4.90.51.00"},{"$f":"IF($E$8=Serviços!$E$2,Serviços!C17,IF($E$8=Serviços!$E$40,Serviços!C55,IF($E$8=Serviços!$E$77,Serviços!C92,IF($E$8=Serviços!$E$113,Serviços!C128,IF($E$8=Serviços!$E$149,Serviços!C164,IF($E$8=Serviços!$E$185,Serviços!C200,IF($E$8=Serviços!$E$221,Serviços!C236,\"Serviço não localizado\")))))))","v":"DER/PR"},{"$f":"IF($E$8=Serviços!$E$2,Serviços!D17,IF($E$8=Serviços!$E$40,Serviços!D55,IF($E$8=Serviços!$E$77,Serviços!D92,IF($E$8=Serviços!$E$113,Serviços!D128,IF($E$8=Serviços!$E$149,Serviços!D164,IF($E$8=Serviços!$E$185,Serviços!D200,IF($E$8=Serviços!$E$221,Serviços!D236,\"Serviço não localizado\")))))))","v":589520},{"$f":"IF($E$8=Serviços!$E$2,Serviços!E17,IF($E$8=Serviços!$E$40,Serviços!E55,IF($E$8=Serviços!$E$77,Serviços!E92,IF($E$8=Serviços!$E$113,Serviços!E128,IF($E$8=Serviços!$E$149,Serviços!E164,IF($E$8=Serviços!$E$185,Serviços!E200,IF($E$8=Serviços!$E$221,Serviços!E236,\"Serviço não localizado\")))))))","v":"Fornecimento de emulsão asfáltica RR-2C"},{"$f":"IF($E$8=Serviços!$E$2,Serviços!F17,IF($E$8=Serviços!$E$40,Serviços!F55,IF($E$8=Serviços!$E$77,Serviços!F92,IF($E$8=Serviços!$E$113,Serviços!F128,IF($E$8=Serviços!$E$149,Serviços!F164,IF($E$8=Serviços!$E$185,Serviços!F200,IF($E$8=Serviços!$E$221,Serviços!F236,\"Serviço não localizado\")))))))","v":"t"},null,null,null,null,0,0,null,0,{"$error":"#DIV/0!"},0,0,0,0]
[null,{"$f":"IF($E$8=Serviços!$E$2,Serviços!B18,IF($E$8=Serviços!$E$40,Serviços!B56,IF($E$8=Serviços!$E$77,Serviços!B93,IF($E$8=Serviços!$E$113,Serviços!B129,IF($E$8=Serviços!$E$149,Serviços!B165,IF($E$8=Serviços!$E$185,Serviços!B201,IF($E$8=Serviços!$E$221,Serviços!B237,\"Serviço não localizado\")))))))","v":"4.4.90.51.00"},{"$f":"IF($E$8=Serviços!$E$2,Serviços!C18,IF($E$8=Serviços!$E$40,Serviços!C56,IF($E$8=Serviços!$E$77,Serviços!C93,IF($E$8=Serviços!$E$113,Serviços!C129,IF($E$8=Serviços!$E$149,Serviços!C165,IF($E$8=Serviços!$E$185,Serviços!C201,IF($E$8=Serviços!$E$221,Serviços!C237,\"Serviço não localizado\")))))))","v":"DER/PR"},{"$f":"IF($E$8=Serviços!$E$2,Serviços!D18,IF($E$8=Serviços!$E$40,Serviços!D56,IF($E$8=Serviços!$E$77,Serviços!D93,IF($E$8=Serviços!$E$113,Serviços!D129,IF($E$8=Serviços!$E$149,Serviços!D165,IF($E$8=Serviços!$E$185,Serviços!D201,IF($E$8=Serviços!$E$221,Serviços!D237,\"Serviço não localizado\")))))))","v":822000},{"$f":"IF($E$8=Serviços!$E$2,Serviços!E18,IF($E$8=Serviços!$E$40,Serviços!E56,IF($E$8=Serviços!$E$77,Serviços!E93,IF($E$8=Serviços!$E$113,Serviços!E129,IF($E$8=Serviços!$E$149,Serviços!E165,IF($E$8=Serviços!$E$185,Serviços!E201,IF($E$8=Serviços!$E$221,Serviços!E237,\"Serviço não localizado\")))))))","v":"Faixa de sinalização Horizontal c/ tinta resina acrílica base solvente (0,0034m²/m²)"},{"$f":"IF($E$8=Serviços!$E$2,Serviços!F18,IF($E$8=Serviços!$E$40,Serviços!F56,IF($E$8=Serviços!$E$77,Serviços!F93,IF($E$8=Serviços!$E$113,Serviços!F129,IF($E$8=Serviços!$E$149,Serviços!F165,IF($E$8=Serviços!$E$185,Serviços!F201,IF($E$8=Serviços!$E$221,Serviços!F237,\"Serviço não localizado\")))))))","v":"m²"},null,null,null,null,0,0,null,0,{"$error":"#DIV/0!"},0,0,0,0]
[null,{"$f":"IF($E$8=Serviços!$E$2,Serviços!B19,IF($E$8=Serviços!$E$40,Serviços!B57,IF($E$8=Serviços!$E$77,Serviços!B94,IF($E$8=Serviços!$E$113,Serviços!B130,IF($E$8=Serviços!$E$149,Serviços!B166,IF($E$8=Serviços!$E$185,Serviços!B202,IF($E$8=Serviços!$E$221,Serviços!B238,\"Serviço não localizado\")))))))","v":"4.4.90.51.00"},{"$f":"IF($E$8=Serviços!$E$2,Serviços!C19,IF($E$8=Serviços!$E$40,Serviços!C57,IF($E$8=Serviços!$E$77,Serviços!C94,IF($E$8=Serviços!$E$113,Serviços!C130,IF($E$8=Serviços!$E$149,Serviços!C166,IF($E$8=Serviços!$E$185,Serviços!C202,IF($E$8=Serviços!$E$221,Serviços!C238,\"Serviço não localizado\")))))))","v":"DER/PR"},{"$f":"IF($E$8=Serviços!$E$2,Serviços!D19,IF($E$8=Serviços!$E$40,Serviços!D57,IF($E$8=Serviços!$E$77,Serviços!D94,IF($E$8=Serviços!$E$113,Serviços!D130,IF($E$8=Serviços!$E$149,Serviços!D166,IF($E$8=Serviços!$E$185,Serviços!D202,IF($E$8=Serviços!$E$221,Serviços!D238,\"Serviço não localizado\")))))))","v":"820000A"},{"$f":"IF($E$8=Serviços!$E$2,Serviços!E19,IF($E$8=Serviços!$E$40,Serviços!E57,IF($E$8=Serviços!$E$77,Serviços!E94,IF($E$8=Serviços!$E$113,Serviços!E130,IF($E$8=Serviços!$E$149,Serviços!E166,IF($E$8=Serviços!$E$185,Serviços!E202,IF($E$8=Serviços!$E$221,Serviços!E238,\"Serviço não localizado\")))))))","v":"Placa de Sinalização refletiva - SEM SUPORTE "},{"$f":"IF($E$8=Serviços!$E$2,Serviços!F19,IF($E$8=Serviços!$E$40,Serviços!F57,IF($E$8=Serviços!$E$77,Serviços!F94,IF($E$8=Serviços!$E$113,Serviços!F130,IF($E$8=Serviços!$E$149,Serviços!F166,IF($E$8=Serviços!$E$185,Serviços!F202,IF($E$8=Serviços!$E$221,Serviços!F238,\"Serviço não localizado\")))))))","v":"m²"},null,null,null,null,0,0,null,0,{"$error":"#DIV/0!"},0,0,0,0]
[null,{"$f":"IF($E$8=Serviços!$E$2,Serviços!B20,IF($E$8=Serviços!$E$40,Serviços!B58,IF($E$8=Serviços!$E$77,Serviços!B95,IF($E$8=Serviços!$E$113,Serviços!B131,IF($E$8=Serviços!$E$149,Serviços!B167,IF($E$8=Serviços!$E$185,Serviços!B203,IF($E$8=Serviços!$E$221,Serviços!B239,\"Serviço não localizado\")))))))","v":"4.4.90.51.00"},{"$f":"IF($E$8=Serviços!$E$2,Serviços!C20,IF($E$8=Serviços!$E$40,Serviços!C58,IF($E$8=Serviços!$E$77,Serviços!C95,IF($E$8=Serviços!$E$113,Serviços!C131,IF($E$8=Serviços!$E$149,Serviços!C167,IF($E$8=Serviços!$E$185,Serviços!C203,IF($E$8=Serviços!$E$221,Serviços!C239,\"Serviço não localizado\")))))))","v":"DER/PR"},{"$f":"IF($E$8=Serviços!$E$2,Serviços!D20,IF($E$8=Serviços!$E$40,Serviços!D58,IF($E$8=Serviços!$E$77,Serviços!D95,IF($E$8=Serviços!$E$113,Serviços!D131,IF($E$8=Serviços!$E$149,Serviços!D167,IF($E$8=Serviços!$E$185,Serviços!D203,IF($E$8=Serviços!$E$221,Serviços!D239,\"Serviço não localizado\")))))))","v":821000},{"$f":"IF($E$8=Serviços!$E$2,Serviços!E20,IF($E$8=Serviços!$E$40,Serviços!E58,IF($E$8=Serviços!$E$77,Serviços!E95,IF($E$8=Serviços!$E$113,Serviços!E131,IF($E$8=Serviços!$E$149,Serviços!E167,IF($E$8=Serviços!$E$185,Serviços!E203,IF($E$8=Serviços!$E$221,Serviços!E239,\"Serviço não localizado\")))))))","v":"Suporte de madeira 3\"x3\" p/ placa sinalização"},{"$f":"IF($E$8=Serviços!$E$2,Serviços!F20,IF($E$8=Serviços!$E$40,Serviços!F58,IF($E$8=Serviços!$E$77,Serviços!F95,IF($E$8=Serviços!$E$113,Serviços!F131,IF($E$8=Serviços!$E$149,Serviços!F167,IF($E$8=Serviços!$E$185,Serviços!F203,IF($E$8=Serviços!$E$221,Serviços!F239,\"Serviço não localizado\")))))))","v":"Unid."},null,null,null,null,0,0,null,0,{"$error":"#DIV/0!"},0,0,0,0]
[null,{"$f":"IF($E$8=Serviços!$E$2,Serviços!B21,IF($E$8=Serviços!$E$40,Serviços!B59,IF($E$8=Serviços!$E$77,Serviços!B96,IF($E$8=Serviços!$E$113,Serviços!B132,IF($E$8=Serviços!$E$149,Serviços!B168,IF($E$8=Serviços!$E$185,Serviços!B204,IF($E$8=Serviços!$E$221,Serviços!B240,\"Serviço não localizado\")))))))","v":"4.4.90.51.00"},{"$f":"IF($E$8=Serviços!$E$2,Serviços!C21,IF($E$8=Serviços!$E$40,Serviços!C59,IF($E$8=Serviços!$E$77,Serviços!C96,IF($E$8=Serviços!$E$113,Serviços!C132,IF($E$8=Serviços!$E$149,Serviços!C168,IF($E$8=Serviços!$E$185,Serviços!C204,IF($E$8=Serviços!$E$221,Serviços!C240,\"Serviço não localizado\")))))))","v":"cotações"},{"$f":"IF($E$8=Serviços!$E$2,Serviços!D21,IF($E$8=Serviços!$E$40,Serviços!D59,IF($E$8=Serviços!$E$77,Serviços!D96,IF($E$8=Serviços!$E$113,Serviços!D132,IF($E$8=Serviços!$E$149,Serviços!D168,IF($E$8=Serviços!$E$185,Serviços!D204,IF($E$8=Serviços!$E$221,Serviços!D240,\"Serviço não localizado\")))))))","v":"xxx"},{"$f":"IF($E$8=Serviços!$E$2,Serviços!E21,IF($E$8=Serviços!$E$40,Serviços!E59,IF($E$8=Serviços!$E$77,Serviços!E96,IF($E$8=Serviços!$E$113,Serviços!E132,IF($E$8=Serviços!$E$149,Serviços!E168,IF($E$8=Serviços!$E$185,Serviços!E204,IF($E$8=Serviços!$E$221,Serviços!E240,\"Serviço não localizado\")))))))","v":"Ensaio de Massa Específica - In Situ - Método Frasco de Areia (Grau de Compactação) - Terraplenagem "},{"$f":"IF($E$8=Serviços!$E$2,Serviços!F21,IF($E$8=Serviços!$E$40,Serviços!F59,IF($E$8=Serviços!$E$77,Serviços!F96,IF($E$8=Serviços!$E$113,Serviços!F132,IF($E$8=Serviços!$E$149,Serviços!F168,IF($E$8=Serviços!$E$185,Serviços!F204,IF($E$8=Serviços!$E$221,Serviços!F240,\"Serviço não localizado\")))))))","v":"Unid."},null,null,null,null,0,0,null,0,{"$error":"#DIV/0!"},0,0,0,0]
[null,{"$f":"IF($E$8=Serviços!$E$2,Serviços!B22,IF($E$8=Serviços!$E$40,Serviços!B60,IF($E$8=Serviços!$E$77,Serviços!B97,IF($E$8=Serviços!$E$113,Serviços!B133,IF($E$8=Serviços!$E$149,Serviços!B169,IF($E$8=Serviços!$E$185,Serviços!B205,IF($E$8=Serviços!$E$221,Serviços!B241,\"Serviço não localizado\")))))))","v":"4.4.90.51.00"},{"$f":"IF($E$8=Serviços!$E$2,Serviços!C22,IF($E$8=Serviços!$E$40,Serviços!C60,IF($E$8=Serviços!$E$77,Serviços!C97,IF($E$8=Serviços!$E$113,Serviços!C133,IF($E$8=Serviços!$E$149,Serviços!C169,IF($E$8=Serviços!$E$185,Serviços!C205,IF($E$8=Serviços!$E$221,Serviços!C241,\"Serviço não localizado\")))))))","v":"cotações"},{"$f":"IF($E$8=Serviços!$E$2,Serviços!D22,IF($E$8=Serviços!$E$40,Serviços!D60,IF($E$8=Serviços!$E$77,Serviços!D97,IF($E$8=Serviços!$E$113,Serviços!D133,IF($E$8=Serviços!$E$149,Serviços!D169,IF($E$8=Serviços!$E$185,Serviços!D205,IF($E$8=Serviços!$E$221,Serviços!D241,\"Serviço não localizado\")))))))","v":"xxx"},{"$f":"IF($E$8=Serviços!$E$2,Serviços!E22,IF($E$8=Serviços!$E$40,Serviços!E60,IF($E$8=Serviços!$E$77,Serviços!E97,IF($E$8=Serviços!$E$113,Serviços!E133,IF($E$8=Serviços!$E$149,Serviços!E169,IF($E$8=Serviços!$E$185,Serviços!E205,IF($E$8=Serviços!$E$221,Serviços!E241,\"Serviço não localizado\")))))))","v":"Ensaio de Massa Específica - In Situ - Método Frasco de Areia (Grau de Compactação) - Reforço do Subleito "},{"$f":"IF($E$8=Serviços!$E$2,Serviços!F22,IF($E$8=Serviços!$E$40,Serviços!F60,IF($E$8=Serviços!$E$77,Serviços!F97,IF($E$8=Serviços!$E$113,Serviços!F133,IF($E$8=Serviços!$E$149,Serviços!F169,IF($E$8=Serviços!$E$185,Serviços!F205,IF($E$8=Serviços!$E$221,Serviços!F241,\"Serviço não localizado\")))))))","v":"Unid."},null,null,null,null,0,0,null,0,{"$error":"#DIV/0!"},0,0,0,0]
[null,{"$f":"IF($E$8=Serviços!$E$2,Serviços!B23,IF($E$8=Serviços!$E$40,Serviços!B61,IF($E$8=Serviços!$E$77,Serviços!B98,IF($E$8=Serviços!$E$113,Serviços!B134,IF($E$8=Serviços!$E$149,Serviços!B170,IF($E$8=Serviços!$E$185,Serviços!B206,IF($E$8=Serviços!$E$221,Serviços!B242,\"Serviço não localizado\")))))))","v":"4.4.90.51.00"},{"$f":"IF($E$8=Serviços!$E$2,Serviços!C23,IF($E$8=Serviços!$E$40,Serviços!C61,IF($E$8=Serviços!$E$77,Serviços!C98,IF($E$8=Serviços!$E$113,Serviços!C134,IF($E$8=Serviços!$E$149,Serviços!C170,IF($E$8=Serviços!$E$185,Serviços!C206,IF($E$8=Serviços!$E$221,Serviços!C242,\"Serviço não localizado\")))))))","v":"cotações"},{"$f":"IF($E$8=Serviços!$E$2,Serviços!D23,IF($E$8=Serviços!$E$40,Serviços!D61,IF($E$8=Serviços!$E$77,Serviços!D98,IF($E$8=Serviços!$E$113,Serviços!D134,IF($E$8=Serviços!$E$149,Serviços!D170,IF($E$8=Serviços!$E$185,Serviços!D206,IF($E$8=Serviços!$E$221,Serviços!D242,\"Serviço não localizado\")))))))","v":"xxx"},{"$f":"IF($E$8=Serviços!$E$2,Serviços!E23,IF($E$8=Serviços!$E$40,Serviços!E61,IF($E$8=Serviços!$E$77,Serviços!E98,IF($E$8=Serviços!$E$113,Serviços!E134,IF($E$8=Serviços!$E$149,Serviços!E170,IF($E$8=Serviços!$E$185,Serviços!E206,IF($E$8=Serviços!$E$221,Serviços!E242,\"Serviço não localizado\")))))))","v":"Ensaio de Massa Específica - In Situ - Método Frasco de Areia (Grau de Compactação) - Regularização e Compactação do Subleito"},{"$f":"IF($E$8=Serviços!$E$2,Serviços!F23,IF($E$8=Serviços!$E$40,Serviços!F61,IF($E$8=Serviços!$E$77,Serviços!F98,IF($E$8=Serviços!$E$113,Serviços!F134,IF($E$8=Serviços!$E$149,Serviços!F170,IF($E$8=Serviços!$E$185,Serviços!F206,IF($E$8=Serviços!$E$221,Serviços!F242,\"Serviço não localizado\")))))))","v":"Unid."},null,null,null,null,0,0,null,0,{"$error":"#DIV/0!"},0,0,0,0]
[null,{"$f":"IF($E$8=Serviços!$E$2,Serviços!B24,IF($E$8=Serviços!$E$40,Serviços!B62,IF($E$8=Serviços!$E$77,Serviços!B99,IF($E$8=Serviços!$E$113,Serviços!B135,IF($E$8=Serviços!$E$149,Serviços!B171,IF($E$8=Serviços!$E$185,Serviços!B207,IF($E$8=Serviços!$E$221,Serviços!B243,\"Serviço não localizado\")))))))","v":"4.4.90.51.00"},{"$f":"IF($E$8=Serviços!$E$2,Serviços!C24,IF($E$8=Serviços!$E$40,Serviços!C62,IF($E$8=Serviços!$E$77,Serviços!C99,IF($E$8=Serviços!$E$113,Serviços!C135,IF($E$8=Serviços!$E$149,Serviços!C171,IF($E$8=Serviços!$E$185,Serviços!C207,IF($E$8=Serviços!$E$221,Serviços!C243,\"Serviço não localizado\")))))))","v":"cotações"},{"$f":"IF($E$8=Serviços!$E$2,Serviços!D24,IF($E$8=Serviços!$E$40,Serviços!D62,IF($E$8=Serviços!$E$77,Serviços!D99,IF($E$8=Serviços!$E$113,Serviços!D135,IF($E$8=Serviços!$E$149,Serviços!D171,IF($E$8=Serviços!$E$185,Serviços!D207,IF($E$8=Serviços!$E$221,Serviços!D243,\"Serviço não localizado\")))))))","v":"xxx"},{"$f":"IF($E$8=Serviços!$E$2,Serviços!E24,IF($E$8=Serviços!$E$40,Serviços!E62,IF($E$8=Serviços!$E$77,Serviços!E99,IF($E$8=Serviços!$E$113,Serviços!E135,IF($E$8=Serviços!$E$149,Serviços!E171,IF($E$8=Serviços!$E$185,Serviços!E207,IF($E$8=Serviços!$E$221,Serviços!E243,\"Serviço não localizado\")))))))","v":"Ensaio de Massa Específica - In Situ - Método Frasco de Areia (Grau de Compactação) - Sub-base"},{"$f":"IF($E$8=Serviços!$E$2,Serviços!F24,IF($E$8=Serviços!$E$40,Serviços!F62,IF($E$8=Serviços!$E$77,Serviços!F99,IF($E$8=Serviços!$E$113,Serviços!F135,IF($E$8=Serviços!$E$149,Serviços!F171,IF($E$8=Serviços!$E$185,Serviços!F207,IF($E$8=Serviços!$E$221,Serviços!F243,\"Serviço não localizado\")))))))","v":"Unid."},null,null,null,null,0,0,null,0,{"$error":"#DIV/0!"},0,0,0,0]
[null,{"$f":"IF($E$8=Serviços!$E$2,Serviços!B25,IF($E$8=Serviços!$E$40,Serviços!B63,IF($E$8=Serviços!$E$77,Serviços!B100,IF($E$8=Serviços!$E$113,Serviços!B136,IF($E$8=Serviços!$E$149,Serviços!B172,IF($E$8=Serviços!$E$185,Serviços!B208,IF($E$8=Serviços!$E$221,Serviços!B244,\"Serviço não localizado\")))))))","v":"4.4.90.51.00"},{"$f":"IF($E$8=Serviços!$E$2,Serviços!C25,IF($E$8=Serviços!$E$40,Serviços!C63,IF($E$8=Serviços!$E$77,Serviços!C100,IF($E$8=Serviços!$E$113,Serviços!C136,IF($E$8=Serviços!$E$149,Serviços!C172,IF($E$8=Serviços!$E$185,Serviços!C208,IF($E$8=Serviços!$E$221,Serviços!C244,\"Serviço não localizado\")))))))","v":"cotações"},{"$f":"IF($E$8=Serviços!$E$2,Serviços!D25,IF($E$8=Serviços!$E$40,Serviços!D63,IF($E$8=Serviços!$E$77,Serviços!D100,IF($E$8=Serviços!$E$113,Serviços!D136,IF($E$8=Serviços!$E$149,Serviços!D172,IF($E$8=Serviços!$E$185,Serviços!D208,IF($E$8=Serviços!$E$221,Serviços!D244,\"Serviço não localizado\")))))))","v":"xxx"},{"$f":"IF($E$8=Serviços!$E$2,Serviços!E25,IF($E$8=Serviços!$E$40,Serviços!E63,IF($E$8=Serviços!$E$77,Serviços!E100,IF($E$8=Serviços!$E$113,Serviços!E136,IF($E$8=Serviços!$E$149,Serviços!E172,IF($E$8=Serviços!$E$185,Serviços!E208,IF($E$8=Serviços!$E$221,Serviços!E244,\"Serviço não localizado\")))))))","v":"Ensaio de Massa Específica - In Situ - Método Frasco de Areia (Grau de Compactação) - Base"},{"$f":"IF($E$8=Serviços!$E$2,Serviços!F25,IF($E$8=Serviços!$E$40,Serviços!F63,IF($E$8=Serviços!$E$77,Serviços!F100,IF($E$8=Serviços!$E$113,Serviços!F136,IF($E$8=Serviços!$E$149,Serviços!F172,IF($E$8=Serviços!$E$185,Serviços!F208,IF($E$8=Serviços!$E$221,Serviços!F244,\"Serviço não localizado\")))))))","v":"Gb"},null,null,null,null,{"$f":"I32*J32","v":0},{"$f":"(G32*H32)+K32","v":0},null,{"$f":"IF(M32>0,L32+L32*M32,L32)","v":0},{"$f":"N32/N$42","v":{"$error":"#DIV/0!"}},{"$f":"N32-Q32-R32-S32","v":0},0,0,0]
[null,{"$f":"IF($E$8=Serviços!$E$2,Serviços!B26,IF($E$8=Serviços!$E$40,Serviços!B64,IF($E$8=Serviços!$E$77,Serviços!B101,IF($E$8=Serviços!$E$113,Serviços!B137,IF($E$8=Serviços!$E$149,Serviços!B173,IF($E$8=Serviços!$E$185,Serviços!B209,IF($E$8=Serviços!$E$221,Serviços!B245,\"Serviço não localizado\")))))))","v":"4.4.90.51.00"},{"$f":"IF($E$8=Serviços!$E$2,Serviços!C26,IF($E$8=Serviços!$E$40,Serviços!C64,IF($E$8=Serviços!$E$77,Serviços!C101,IF($E$8=Serviços!$E$113,Serviços!C137,IF($E$8=Serviços!$E$149,Serviços!C173,IF($E$8=Serviços!$E$185,Serviços!C209,IF($E$8=Serviços!$E$221,Serviços!C245,\"Serviço não localizado\")))))))","v":"cotações"},{"$f":"IF($E$8=Serviços!$E$2,Serviços!D26,IF($E$8=Serviços!$E$40,Serviços!D64,IF($E$8=Serviços!$E$77,Serviços!D101,IF($E$8=Serviços!$E$113,Serviços!D137,IF($E$8=Serviços!$E$149,Serviços!D173,IF($E$8=Serviços!$E$185,Serviços!D209,IF($E$8=Serviços!$E$221,Serviços!D245,\"Serviço não localizado\")))))))","v":"xxx"},{"$f":"IF($E$8=Serviços!$E$2,Serviços!E26,IF($E$8=Serviços!$E$40,Serviços!E64,IF($E$8=Serviços!$E$77,Serviços!E101,IF($E$8=Serviços!$E$113,Serviços!E137,IF($E$8=Serviços!$E$149,Serviços!E173,IF($E$8=Serviços!$E$185,Serviços!E209,IF($E$8=Serviços!$E$221,Serviços!E245,\"Serviço não localizado\")))))))","v":"Ensaio de Granulometria do Agregado"},{"$f":"IF($E$8=Serviços!$E$2,Serviços!F26,IF($E$8=Serviços!$E$40,Serviços!F64,IF($E$8=Serviços!$E$77,Serviços!F101,IF($E$8=Serviços!$E$113,Serviços!F137,IF($E$8=Serviços!$E$149,Serviços!F173,IF($E$8=Serviços!$E$185,Serviços!F209,IF($E$8=Serviços!$E$221,Serviços!F245,\"Serviço não localizado\")))))))","v":"Unid."},null,null,null,null,0,0,null,0,{"$error":"#DIV/0!"},0,0,0,0]
[null,{"$f":"IF($E$8=Serviços!$E$2,Serviços!B27,IF($E$8=Serviços!$E$40,Serviços!B65,IF($E$8=Serviços!$E$77,Serviços!B102,IF($E$8=Serviços!$E$113,Serviços!B138,IF($E$8=Serviços!$E$149,Serviços!B174,IF($E$8=Serviços!$E$185,Serviços!B210,IF($E$8=Serviços!$E$221,Serviços!B246,\"Serviço não localizado\")))))))","v":"4.4.90.51.00"},{"$f":"IF($E$8=Serviços!$E$2,Serviços!C27,IF($E$8=Serviços!$E$40,Serviços!C65,IF($E$8=Serviços!$E$77,Serviços!C102,IF($E$8=Serviços!$E$113,Serviços!C138,IF($E$8=Serviços!$E$149,Serviços!C174,IF($E$8=Serviços!$E$185,Serviços!C210,IF($E$8=Serviços!$E$221,Serviços!C246,\"Serviço não localizado\")))))))","v":"cotações"},{"$f":"IF($E$8=Serviços!$E$2,Serviços!D27,IF($E$8=Serviços!$E$40,Serviços!D65,IF($E$8=Serviços!$E$77,Serviços!D102,IF($E$8=Serviços!$E$113,Serviços!D138,IF($E$8=Serviços!$E$149,Serviços!D174,IF($E$8=Serviços!$E$185,Serviços!D210,IF($E$8=Serviços!$E$221,Serviços!D246,\"Serviço não localizado\")))))))","v":"composição"},{"$f":"IF($E$8=Serviços!$E$2,Serviços!E27,IF($E$8=Serviços!$E$40,Serviços!E65,IF($E$8=Serviços!$E$77,Serviços!E102,IF($E$8=Serviços!$E$113,Serviços!E138,IF($E$8=Serviços!$E$149,Serviços!E174,IF($E$8=Serviços!$E$185,Serviços!E210,IF($E$8=Serviços!$E$221,Serviços!E246,\"Serviço não localizado\")))))))","v":"Topografia para locação dos serviços a executar e  aferição dos serviços executados, ver memorial descritivo"},{"$f":"IF($E$8=Serviços!$E$2,Serviços!F27,IF($E$8=Serviços!$E$40,Serviços!F65,IF($E$8=Serviços!$E$77,Serviços!F102,IF($E$8=Serviços!$E$113,Serviços!F138,IF($E$8=Serviços!$E$149,Serviços!F174,IF($E$8=Serviços!$E$185,Serviços!F210,IF($E$8=Serviços!$E$221,Serviços!F246,\"Serviço não localizado\")))))))","v":"km"},null,null,null,null,0,0,null,0,{"$error":"#DIV/0!"},0,0,0,0]
[null,{"$f":"IF($E$8=Serviços!$E$2,Serviços!B28,IF($E$8=Serviços!$E$40,Serviços!B66,IF($E$8=Serviços!$E$77,Serviços!B103,IF($E$8=Serviços!$E$113,Serviços!B139,IF($E$8=Serviços!$E$149,Serviços!B175,IF($E$8=Serviços!$E$185,Serviços!B211,IF($E$8=Serviços!$E$221,Serviços!B247,\"Serviço não localizado\")))))))","v":"4.4.90.51.00"},{"$f":"IF($E$8=Serviços!$E$2,Serviços!C28,IF($E$8=Serviços!$E$40,Serviços!C66,IF($E$8=Serviços!$E$77,Serviços!C103,IF($E$8=Serviços!$E$113,Serviços!C139,IF($E$8=Serviços!$E$149,Serviços!C175,IF($E$8=Serviços!$E$185,Serviços!C211,IF($E$8=Serviços!$E$221,Serviços!C247,\"Serviço não localizado\")))))))","v":0},{"$f":"IF($E$8=Serviços!$E$2,Serviços!D28,IF($E$8=Serviços!$E$40,Serviços!D66,IF($E$8=Serviços!$E$77,Serviços!D103,IF($E$8=Serviços!$E$113,Serviços!D139,IF($E$8=Serviços!$E$149,Serviços!D175,IF($E$8=Serviços!$E$185,Serviços!D211,IF($E$8=Serviços!$E$221,Serviços!D247,\"Serviço não localizado\")))))))","v":0},{"$f":"IF($E$8=Serviços!$E$2,Serviços!E28,IF($E$8=Serviços!$E$40,Serviços!E66,IF($E$8=Serviços!$E$77,Serviços!E103,IF($E$8=Serviços!$E$113,Serviços!E139,IF($E$8=Serviços!$E$149,Serviços!E175,IF($E$8=Serviços!$E$185,Serviços!E211,IF($E$8=Serviços!$E$221,Serviços!E247,\"Serviço não localizado\")))))))","v":0},{"$f":"IF($E$8=Serviços!$E$2,Serviços!F28,IF($E$8=Serviços!$E$40,Serviços!F66,IF($E$8=Serviços!$E$77,Serviços!F103,IF($E$8=Serviços!$E$113,Serviços!F139,IF($E$8=Serviços!$E$149,Serviços!F175,IF($E$8=Serviços!$E$185,Serviços!F211,IF($E$8=Serviços!$E$221,Serviços!F247,\"Serviço não localizado\")))))))","v":0},null,null,null,null,0,0,null,0,{"$error":"#DIV/0!"},0,0,0,0]
[null,{"$f":"IF($E$8=Serviços!$E$2,Serviços!B29,IF($E$8=Serviços!$E$40,Serviços!B67,IF($E$8=Serviços!$E$77,Serviços!B104,IF($E$8=Serviços!$E$113,Serviços!B140,IF($E$8=Serviços!$E$149,Serviços!B176,IF($E$8=Serviços!$E$185,Serviços!B212,IF($E$8=Serviços!$E$221,Serviços!B248,\"Serviço não localizado\")))))))","v":"4.4.90.51.00"},{"$f":"IF($E$8=Serviços!$E$2,Serviços!C29,IF($E$8=Serviços!$E$40,Serviços!C67,IF($E$8=Serviços!$E$77,Serviços!C104,IF($E$8=Serviços!$E$113,Serviços!C140,IF($E$8=Serviços!$E$149,Serviços!C176,IF($E$8=Serviços!$E$185,Serviços!C212,IF($E$8=Serviços!$E$221,Serviços!C248,\"Serviço não localizado\")))))))","v":0},{"$f":"IF($E$8=Serviços!$E$2,Serviços!D29,IF($E$8=Serviços!$E$40,Serviços!D67,IF($E$8=Serviços!$E$77,Serviços!D104,IF($E$8=Serviços!$E$113,Serviços!D140,IF($E$8=Serviços!$E$149,Serviços!D176,IF($E$8=Serviços!$E$185,Serviços!D212,IF($E$8=Serviços!$E$221,Serviços!D248,\"Serviço não localizado\")))))))","v":0},{"$f":"IF($E$8=Serviços!$E$2,Serviços!E29,IF($E$8=Serviços!$E$40,Serviços!E67,IF($E$8=Serviços!$E$77,Serviços!E104,IF($E$8=Serviços!$E$113,Serviços!E140,IF($E$8=Serviços!$E$149,Serviços!E176,IF($E$8=Serviços!$E$185,Serviços!E212,IF($E$8=Serviços!$E$221,Serviços!E248,\"Serviço não localizado\")))))))","v":0},{"$f":"IF($E$8=Serviços!$E$2,Serviços!F29,IF($E$8=Serviços!$E$40,Serviços!F67,IF($E$8=Serviços!$E$77,Serviços!F104,IF($E$8=Serviços!$E$113,Serviços!F140,IF($E$8=Serviços!$E$149,Serviços!F176,IF($E$8=Serviços!$E$185,Serviços!F212,IF($E$8=Serviços!$E$221,Serviços!F248,\"Serviço não localizado\")))))))","v":0},null,null,null,null,0,0,null,0,{"$error":"#DIV/0!"},0,0,0,0]
[null,{"$f":"IF($E$8=Serviços!$E$2,Serviços!B30,IF($E$8=Serviços!$E$40,Serviços!B68,IF($E$8=Serviços!$E$77,Serviços!B105,IF($E$8=Serviços!$E$113,Serviços!B141,IF($E$8=Serviços!$E$149,Serviços!B177,IF($E$8=Serviços!$E$185,Serviços!B213,IF($E$8=Serviços!$E$221,Serviços!B249,\"Serviço não localizado\")))))))","v":"4.4.90.51.00"},{"$f":"IF($E$8=Serviços!$E$2,Serviços!C30,IF($E$8=Serviços!$E$40,Serviços!C68,IF($E$8=Serviços!$E$77,Serviços!C105,IF($E$8=Serviços!$E$113,Serviços!C141,IF($E$8=Serviços!$E$149,Serviços!C177,IF($E$8=Serviços!$E$185,Serviços!C213,IF($E$8=Serviços!$E$221,Serviços!C249,\"Serviço não localizado\")))))))","v":0},{"$f":"IF($E$8=Serviços!$E$2,Serviços!D30,IF($E$8=Serviços!$E$40,Serviços!D68,IF($E$8=Serviços!$E$77,Serviços!D105,IF($E$8=Serviços!$E$113,Serviços!D141,IF($E$8=Serviços!$E$149,Serviços!D177,IF($E$8=Serviços!$E$185,Serviços!D213,IF($E$8=Serviços!$E$221,Serviços!D249,\"Serviço não localizado\")))))))","v":0},{"$f":"IF($E$8=Serviços!$E$2,Serviços!E30,IF($E$8=Serviços!$E$40,Serviços!E68,IF($E$8=Serviços!$E$77,Serviços!E105,IF($E$8=Serviços!$E$113,Serviços!E141,IF($E$8=Serviços!$E$149,Serviços!E177,IF($E$8=Serviços!$E$185,Serviços!E213,IF($E$8=Serviços!$E$221,Serviços!E249,\"Serviço não localizado\")))))))","v":0},{"$f":"IF($E$8=Serviços!$E$2,Serviços!F30,IF($E$8=Serviços!$E$40,Serviços!F68,IF($E$8=Serviços!$E$77,Serviços!F105,IF($E$8=Serviços!$E$113,Serviços!F141,IF($E$8=Serviços!$E$149,Serviços!F177,IF($E$8=Serviços!$E$185,Serviços!F213,IF($E$8=Serviços!$E$221,Serviços!F249,\"Serviço não localizado\")))))))","v":0},null,null,null,null,0,0,null,0,{"$error":"#DIV/0!"},0,0,0,0]
[null,{"$f":"IF($E$8=Serviços!$E$2,Serviços!B31,IF($E$8=Serviços!$E$40,Serviços!B69,IF($E$8=Serviços!$E$77,Serviços!B106,IF($E$8=Serviços!$E$113,Serviços!B142,IF($E$8=Serviços!$E$149,Serviços!B178,IF($E$8=Serviços!$E$185,Serviços!B214,IF($E$8=Serviços!$E$221,Serviços!B250,\"Serviço não localizado\")))))))","v":"4.4.90.51.00"},{"$f":"IF($E$8=Serviços!$E$2,Serviços!C31,IF($E$8=Serviços!$E$40,Serviços!C69,IF($E$8=Serviços!$E$77,Serviços!C106,IF($E$8=Serviços!$E$113,Serviços!C142,IF($E$8=Serviços!$E$149,Serviços!C178,IF($E$8=Serviços!$E$185,Serviços!C214,IF($E$8=Serviços!$E$221,Serviços!C250,\"Serviço não localizado\")))))))","v":0},{"$f":"IF($E$8=Serviços!$E$2,Serviços!D31,IF($E$8=Serviços!$E$40,Serviços!D69,IF($E$8=Serviços!$E$77,Serviços!D106,IF($E$8=Serviços!$E$113,Serviços!D142,IF($E$8=Serviços!$E$149,Serviços!D178,IF($E$8=Serviços!$E$185,Serviços!D214,IF($E$8=Serviços!$E$221,Serviços!D250,\"Serviço não localizado\")))))))","v":0},{"$f":"IF($E$8=Serviços!$E$2,Serviços!E31,IF($E$8=Serviços!$E$40,Serviços!E69,IF($E$8=Serviços!$E$77,Serviços!E106,IF($E$8=Serviços!$E$113,Serviços!E142,IF($E$8=Serviços!$E$149,Serviços!E178,IF($E$8=Serviços!$E$185,Serviços!E214,IF($E$8=Serviços!$E$221,Serviços!E250,\"Serviço não localizado\")))))))","v":0},{"$f":"IF($E$8=Serviços!$E$2,Serviços!F31,IF($E$8=Serviços!$E$40,Serviços!F69,IF($E$8=Serviços!$E$77,Serviços!F106,IF($E$8=Serviços!$E$113,Serviços!F142,IF($E$8=Serviços!$E$149,Serviços!F178,IF($E$8=Serviços!$E$185,Serviços!F214,IF($E$8=Serviços!$E$221,Serviços!F250,\"Serviço não localizado\")))))))","v":0},null,null,null,null,0,0,null,0,{"$error":"#DIV/0!"},0,0,0,0]
[null,{"$f":"IF($E$8=Serviços!$E$2,Serviços!B32,IF($E$8=Serviços!$E$40,Serviços!B70,IF($E$8=Serviços!$E$77,Serviços!B107,IF($E$8=Serviços!$E$113,Serviços!B143,IF($E$8=Serviços!$E$149,Serviços!B179,IF($E$8=Serviços!$E$185,Serviços!B215,IF($E$8=Serviços!$E$221,Serviços!B251,\"Serviço não localizado\")))))))","v":"4.4.90.51.00"},{"$f":"IF($E$8=Serviços!$E$2,Serviços!C32,IF($E$8=Serviços!$E$40,Serviços!C70,IF($E$8=Serviços!$E$77,Serviços!C107,IF($E$8=Serviços!$E$113,Serviços!C143,IF($E$8=Serviços!$E$149,Serviços!C179,IF($E$8=Serviços!$E$185,Serviços!C215,IF($E$8=Serviços!$E$221,Serviços!C251,\"Serviço não localizado\")))))))","v":0},{"$f":"IF($E$8=Serviços!$E$2,Serviços!D32,IF($E$8=Serviços!$E$40,Serviços!D70,IF($E$8=Serviços!$E$77,Serviços!D107,IF($E$8=Serviços!$E$113,Serviços!D143,IF($E$8=Serviços!$E$149,Serviços!D179,IF($E$8=Serviços!$E$185,Serviços!D215,IF($E$8=Serviços!$E$221,Serviços!D251,\"Serviço não localizado\")))))))","v":0},{"$f":"IF($E$8=Serviços!$E$2,Serviços!E32,IF($E$8=Serviços!$E$40,Serviços!E70,IF($E$8=Serviços!$E$77,Serviços!E107,IF($E$8=Serviços!$E$113,Serviços!E143,IF($E$8=Serviços!$E$149,Serviços!E179,IF($E$8=Serviços!$E$185,Serviços!E215,IF($E$8=Serviços!$E$221,Serviços!E251,\"Serviço não localizado\")))))))","v":0},{"$f":"IF($E$8=Serviços!$E$2,Serviços!F32,IF($E$8=Serviços!$E$40,Serviços!F70,IF($E$8=Serviços!$E$77,Serviços!F107,IF($E$8=Serviços!$E$113,Serviços!F143,IF($E$8=Serviços!$E$149,Serviços!F179,IF($E$8=Serviços!$E$185,Serviços!F215,IF($E$8=Serviços!$E$221,Serviços!F251,\"Serviço não localizado\")))))))","v":0},null,null,null,null,0,0,null,0,{"$error":"#DIV/0!"},0,0,0,0]
[null,{"$f":"IF($E$8=Serviços!$E$2,Serviços!B33,IF($E$8=Serviços!$E$40,Serviços!B71,IF($E$8=Serviços!$E$77,Serviços!B108,IF($E$8=Serviços!$E$113,Serviços!B144,IF($E$8=Serviços!$E$149,Serviços!B180,IF($E$8=Serviços!$E$185,Serviços!B216,IF($E$8=Serviços!$E$221,Serviços!B252,\"Serviço não localizado\")))))))","v":"4.4.90.51.00"},{"$f":"IF($E$8=Serviços!$E$2,Serviços!C33,IF($E$8=Serviços!$E$40,Serviços!C71,IF($E$8=Serviços!$E$77,Serviços!C108,IF($E$8=Serviços!$E$113,Serviços!C144,IF($E$8=Serviços!$E$149,Serviços!C180,IF($E$8=Serviços!$E$185,Serviços!C216,IF($E$8=Serviços!$E$221,Serviços!C252,\"Serviço não localizado\")))))))","v":0},{"$f":"IF($E$8=Serviços!$E$2,Serviços!D33,IF($E$8=Serviços!$E$40,Serviços!D71,IF($E$8=Serviços!$E$77,Serviços!D108,IF($E$8=Serviços!$E$113,Serviços!D144,IF($E$8=Serviços!$E$149,Serviços!D180,IF($E$8=Serviços!$E$185,Serviços!D216,IF($E$8=Serviços!$E$221,Serviços!D252,\"Serviço não localizado\")))))))","v":0},{"$f":"IF($E$8=Serviços!$E$2,Serviços!E33,IF($E$8=Serviços!$E$40,Serviços!E71,IF($E$8=Serviços!$E$77,Serviços!E108,IF($E$8=Serviços!$E$113,Serviços!E144,IF($E$8=Serviços!$E$149,Serviços!E180,IF($E$8=Serviços!$E$185,Serviços!E216,IF($E$8=Serviços!$E$221,Serviços!E252,\"Serviço não localizado\")))))))","v":0},{"$f":"IF($E$8=Serviços!$E$2,Serviços!F33,IF($E$8=Serviços!$E$40,Serviços!F71,IF($E$8=Serviços!$E$77,Serviços!F108,IF($E$8=Serviços!$E$113,Serviços!F144,IF($E$8=Serviços!$E$149,Serviços!F180,IF($E$8=Serviços!$E$185,Serviços!F216,IF($E$8=Serviços!$E$221,Serviços!F252,\"Serviço não localizado\")))))))","v":0},null,null,null,null,0,0,null,0,{"$f":"N40/N$42","v":{"$error":"#DIV/0!"}},0,0,0,0]
[null,{"$f":"IF($E$8=Serviços!$E$2,Serviços!B34,IF($E$8=Serviços!$E$40,Serviços!B72,IF($E$8=Serviços!$E$77,Serviços!B109,IF($E$8=Serviços!$E$113,Serviços!B145,IF($E$8=Serviços!$E$149,Serviços!B181,IF($E$8=Serviços!$E$185,Serviços!B217,IF($E$8=Serviços!$E$221,Serviços!B253,\"Serviço não localizado\")))))))","v":"4.4.90.51.00"},{"$f":"IF($E$8=Serviços!$E$2,Serviços!C34,IF($E$8=Serviços!$E$40,Serviços!C72,IF($E$8=Serviços!$E$77,Serviços!C109,IF($E$8=Serviços!$E$113,Serviços!C145,IF($E$8=Serviços!$E$149,Serviços!C181,IF($E$8=Serviços!$E$185,Serviços!C217,IF($E$8=Serviços!$E$221,Serviços!C253,\"Serviço não localizado\")))))))","v":0},{"$f":"IF($E$8=Serviços!$E$2,Serviços!D34,IF($E$8=Serviços!$E$40,Serviços!D72,IF($E$8=Serviços!$E$77,Serviços!D109,IF($E$8=Serviços!$E$113,Serviços!D145,IF($E$8=Serviços!$E$149,Serviços!D181,IF($E$8=Serviços!$E$185,Serviços!D217,IF($E$8=Serviços!$E$221,Serviços!D253,\"Serviço não localizado\")))))))","v":0},{"$f":"IF($E$8=Serviços!$E$2,Serviços!E34,IF($E$8=Serviços!$E$40,Serviços!E72,IF($E$8=Serviços!$E$77,Serviços!E109,IF($E$8=Serviços!$E$113,Serviços!E145,IF($E$8=Serviços!$E$149,Serviços!E181,IF($E$8=Serviços!$E$185,Serviços!E217,IF($E$8=Serviços!$E$221,Serviços!E253,\"Serviço não localizado\")))))))","v":0},{"$f":"IF($E$8=Serviços!$E$2,Serviços!F34,IF($E$8=Serviços!$E$40,Serviços!F72,IF($E$8=Serviços!$E$77,Serviços!F109,IF($E$8=Serviços!$E$113,Serviços!F145,IF($E$8=Serviços!$E$149,Serviços!F181,IF($E$8=Serviços!$E$185,Serviços!F217,IF($E$8=Serviços!$E$221,Serviços!F253,\"Serviço não localizado\")))))))","v":0},null,null,null,null,0,0,null,0,{"$f":"N41/N$42","v":{"$error":"#DIV/0!"}},0,0,0,0]
[null,"TOTAL",null,null,null,null,null,null,null,null,null,{"$f":"SUM(L11:L41)","v":0},{"$f":"M11","v":0},{"$f":"SUM(N11:N41)","v":0},{"$error":"#DIV/0!"},0,0,0,0]
[null,"Obs.:"]
[null,"1 - Os quantitativos foram levandados a partir de projetos especificos não cabendo a utilização de metodologia expedita ;                                                                                                                                              \n2 - As operações previstas neste plano de trabalho foram extraidas do orçamento do projeto , parte integrande deste plano de trabalho\n3 - Apresentar memoria de calculos do TRANSPORTE, BDI e CONTRAPARTIDA FISICA/SERVIÇOS.                                                                                            \n4 - Ex . cod. de orçamento: Obra de Pavimentação de Estrada Rural. 4490.51.04 – Obras e Instalações (51) – Obras Rodoviárias de Domínio Público (04).                                                                                                                                                                                                                                              5 - Quando o municipio participar com contrapartida fisica não existe natureza de despesa. Deverá apresentar os memoriais de calculos e qual sera o serviço e/ou bem."]
[null,null,null,"Resumo fisico e financeiro "]
[null,null,null,"SEAB",null,"Contrapartida Município",null,null,null,null,"Valor Global"]
[null,null,null,"%","Total (R$)","%","Dinheiro (R$)","Fisico (R$)",null,"Total","%","(R$)"]
[null,null,null,null,null,null,null,"SERVIÇOS","BENS"]
[null,null,null,{"$f":"E49/L49","v":{"$error":"#DIV/0!"}},{"$f":"L49-J49","v":0},{"$f":"J49/L49","v":{"$error":"#DIV/0!"}},{"$f":"Q42","v":0},{"$f":"R42","v":0},{"$f":"S42","v":0},{"$f":"G49+H49+I49","v":0},1,{"$f":"N42","v":0}]
[null,null,null,null,null,{"$f":"VALUE(R3)","v":0.1}]
[]
[null,"[1] O valor unitário deverá ter sido obtido por meio de orçamento devidamente detalhado em planilhas nos termos dos arts. 368 a 372 e dos arts. 484 a 486 do Decreto Estadual 10.086/2022"]
[null,"[2] Art. 669, § 1º. I, II e III, estipulou percentuais fixados de acordo com a capacidade financeira do convenente, com base nos dados do IPARDES"]

{"sheet":"Plan5 3. JUSTIFIC. e 4.BENEFIC.","index":4,"n_rows":31,"n_cols":7,"rows_kept":31,"cut":false,"hidden":false,"merged":[[29,1,29,3],[27,4,27,5],[29,4,29,5],[30,1,30,5],[21,1,21,3],[22,1,22,3],[23,1,23,3],[24,1,24,3],[25,1,25,3],[26,1,26,3],[27,1,27,3],[28,1,28,3],[11,1,11,3],[12,1,12,3],[13,1,13,3],[14,1,14,3],[15,1,15,3],[16,1,16,3],[17,1,17,3],[18,1,18,3],[19,1,19,3],[20,1,20,3],[1,3,1,5],[5,1,5,5],[1,1,1,2],[9,4,9,5],[9,1,10,3],[3,1,3,5]]}
[]
[null,null,null,"PROGRAMA ESTRADAS DA INTEGRAÇÃO                                   PROJETO DE PAVIMENTAÇÃO DE ESTRADAS\n RURAIS MUNICIPAIS"]
[]
[null,"3. RAZÕES PARA CELEBRAÇÃO - JUSTIFICATIVA"]
[]
[null,"1. Discorrer as razões que justificam a celebração do instrumento, caracterizando (evidenciando) e indicando, entre outras:\na) Descrever critérios técnico, para a escolha do tipo de pavimento a ser utilizado;\nb) Interesse recíprocos entre a Seab e o Município, e o atendimento da(s) necessidade (s) da comunidade (s) a serem benficiadas;\nc) relação entre a proposta apresentada, operações a serem executadas e objetivos do plano, programa, projeto ou proposta estadual ou municipal;\nd) qualificação do público alvo;\ne) problemas a serem resolvidos; \nf) resultados esperados;\n\n2. Demonstrar que os resultados (os benefícios para a coletividade) que se espera alcançar com a implantação do projeto serão muito maiores que as respectivas despesas (o recurso transferido somado à contrapartida). Equação “investimentos” versus “resultados” positiva.\n"]
[]
[null,"4. BENEFICIÁRIOS"]
[]
[null,"Nome da(s)  comunidade(s)",null,null,"Quantidade Usuários ( *)"]
[null,null,null,null,"Diretos","Indiretos"]
[null,null,null,null,null,null,{"$f":"IF(B12<>\"\",1,0)","v":0}]
[null,null,null,null,null,null,0]
[null,null,null,null,null,null,0]
[null,null,null,null,null,null,0]
[null,null,null,null,null,null,0]
[null,null,null,null,null,null,0]
[null,null,null,null,null,null,0]
[null,null,null,null,null,null,0]
[null,null,null,null,null,null,0]
[null,null,null,null,null,null,0]
[null,null,null,null,null,null,0]
[null,null,null,null,null,null,0]
[null,null,null,null,null,null,0]
[null,null,null,null,null,null,0]
[null,null,null,null,null,null,0]
[null,null,null,null,null,null,0]
[null,"Total de Comunidades:",null,null,{"$f":"SUM(G12:G27)","v":0}]
[null,"Subtotais - usuários",null,null,{"$f":"SUM(E12:E27)","v":0},{"$f":"SUM(F12:F27)","v":0}]
[null,"Total geral de usuários",null,null,{"$f":"E29+F29","v":0}]
[null,"(*) Os Beneficiários indiretos recebem impactos positivos do projeto."]

{"sheet":"Plan6 5.MET_FAS_ETA_CRON_6.METO","index":5,"n_rows":40,"n_cols":15,"rows_kept":40,"cut":false,"hidden":false,"merged":[[39,1,52,12],[37,1,37,12],[26,2,27,2],[26,1,27,1],[38,1,38,12],[30,1,30,12],[31,2,31,12],[32,2,32,12],[33,2,33,12],[34,2,34,12],[35,2,35,12],[16,12,23,12],[11,5,13,5],[9,1,9,2],[8,1,8,12],[9,4,10,4],[9,3,10,3],[14,1,23,1],[14,7,23,7],[14,8,23,8],[14,2,23,2],[9,5,9,6],[9,7,9,8],[16,11,23,11],[0,4,3,12],[14,9,23,9],[14,10,23,10],[9,9,9,10],[11,6,13,6],[11,7,13,7],[11,8,13,8],[11,9,13,9],[11,10,13,10],[9,11,10,11],[9,12,10,12],[5,1,5,12],[11,1,13,1],[11,2,13,2],[14,5,23,5],[14,6,23,6]]}
[null,null,null,null,"PROGRAMA ESTRADAS DA INTEGRAÇÃO                                  \nPROJETO DE PAVIMENTAÇÃO DE ESTRADAS\nRURAIS MUNICIPAIS"]
[]
[]
[]
[]
[null,"5. DEFINIÇÃO E DETALHAMENTO DAS METAS COM AS FASES E ETAPAS DE EXECUÇÃO E O CRONOGRAMA DE FISICO/ FINANCEIRO DA EXECUÇÃO A CONSIDERAR"]
[]
[]
[null,{"$f":"CONCATENATE(\"Meta: Melhoria da trafegabilidade, por meio da pavimentação de \",O10,\" m², com \",O9)","v":"Meta: Melhoria da trafegabilidade, por meio da pavimentação de 0,00 m², com PAVIMENTO RÍGIDO DE CONCRETO"},null,null,null,null,null,null,null,null,null,null,null,null,{"$f":"'Plan2 1.DADOS,2.OBJ e 2.1.Vigên'!E35","v":"PAVIMENTO RÍGIDO DE CONCRETO"}]
[null,"Fases",null,"Etapa","Especificação","Indicador Físico",null,"Custo (R$)",null,"Período de execução",null,"Responsável","Instrumentos de avaliação do cumprimento da fase ou etapa ",null,{"$f":"'Plan2 1.DADOS,2.OBJ e 2.1.Vigên'!L33","v":"0,00"}]
[null,"nº","Descrição",null,null,"Unidade","Quantidade","Unitário - (R$)","Total (R$)","Inicio - meses","Final - após a publicação DIOE"]
[null,1,"Contratação de empresa de engenharia",1,"Licitação","#","#","#","#","A partir da publicação no DIOE","até 4 meses após a publicação","Município","Processo completo de licitação, onde consta a empresa vencedora."]
[null,null,null,3,"Contratação",null,null,null,null,null,null,"Município","Contrato assinado com a empresa vencedora e publicação em diário oficial.  Abertura da CNO"]
[null,null,null,4,"Emissão da ordem de Serviço",null,null,null,null,null,null,"Município","Conforme especificado no contrato"]
[null,2,"Execução dos serviços previstos em projeto",1,"Emissão da CNO - Cadastro Nacional de Obras conforme legislação","m\n(extensão do trecho)",0,{"$f":"I15/G15","v":{"$error":"#DIV/0!"}},0,"4º meses após a publicação","até o prazo final da execução","Município","Empresa informa oficialmente o municipio"]
[null,null,null,2,"SERVIÇOS PRELIMINARES",null,null,null,null,null,null,"Município","Placas de identificação da obra instaladas"]
[null,null,null,3,"TERRAPLANAGEM E COMPACTAÇÃO",null,null,null,null,null,null,"Município","Serviços executados nos prazos, conforme pactuado em contrato com o municipio. \n\nEmissão de relatórios de medições dos serviços. \n\nLevantamento topográfico para aferir os serviços. \n\nAs operações serão executadas concomitantemente."]
[null,null,null,4,"BASE / SUB-BASE"]
[null,null,null,5,"REVESTIMENTO"]
[null,null,null,6,"MEIO-FIO E SARJETA"]
[null,null,null,7,"DRENAGEM"]
[null,null,null,8,"ENSAIOS TECNOLÓGICOS "]
[null,null,null,9,"SERVIÇOS DE URBANIZAÇÃO"]
[null,null,null,10,"SINALIZAÇÃO DE TRÂNSITO"]
[null,3,"Pagamento da 1ª parcela",1,"Primeira Transferência de Recurso para o Município após a homologação e início da execução da obra","#","#","#","#","conclusão x etapas","liberação pelo fiscal","SEAB","Medição aprovada pela SEAB"]
[null,4,"Pagamento das parcelas intermediárias",1,"Prestação de contas parcial","#","#","#","#","Compravação da aplicação da parcela anterior","Conforme o previsto no cronograma de desembolso","Município","Apresentação de Relatórios de Execução Física e Financeira (contábil); \nComprovantes de despesas; \nRelatórios Fotográficos;\nCND parcial"]
[null,5,"Cumprimento da meta",1,"Conclusão da execução da obra","#","#","#","#","Liberação da última parcela","Termo final do prazo de execução","Município","Certidão de regularidade fiscal de obra (CND) final da obra"]
[null,null,null,2,"Avaliação do cumprimento da meta","#","#","#","#","Termo final do prazo de execução","Termo final da vigência","Município\nSEAB","Relatório final de execução física e financeira\nCertificado de Atingimernto do Objetivo"]
[]
[]
[null,"6. DESCRIÇÃO DA METODOLOGIA QUE SERÁ USADA NA EXECUÇÃO DAS FASES/ETAPAS"]
[null,"Fases","6.1. Descrever as ações, os procedimentos, as técnicas e os meios que serão empregados para o atingimento das metas.   "]
[null,1,"Contratação de empresa de engenharia"]
[null,2,"Execução dos serviços previstos em projeto"]
[null,3,"Pagamento das parelas intermediárias"]
[null,4,"Avaliação do Cumprimento da meta"]
[]
[null,"6.2. Descrever, detalhadamente, a forma e frequência do acompanhamento e fiscalização da execução das metas do pactuado através dos  Responsáveis Técnicos do municipio."]
[null,"6.3. Planejamento das ações para garantir a execução da Meta*"]
[null,"* Para preencher o item 6.3, utilizar como referência o texto abaixo, o que deverá ser deletado após o preenchimento:\n1. Quais são os critérios objetivos para selecionar os trechos de estradas a receberem as melhorias (fluxo de veículos, características dos produtos a serem transportados, existência de estabelecimentos comerciais, número de propriedades ao longo do trecho, etc)?\n2. Quais as intervenções necessárias? Adequação, readequação, melhoria ou manutenção?\n3. Qual estratégia será adotada para a elaboração dos Projetos Técnicos e Relatório Técnico de Vistoria (RTV), para definição dos serviços a serem executados?\n4. Como os proprietários lindeiros serão estimulados à adoção das práticas conservacionistas (ações de educação e conscientização, como palestras, reuniões e visitas a Unidades Demonstrativas, audiências públicas, etc)? \n5. Como serão feitos o acompanhamento e a avaliação do impacto da melhoria da trafegabilidade e da adoção das práticas conservacionistas? (indicadores de trafegabilidade, rentabilidade, sustentabilidade, etc)?\n6. Existe ou se pretende alguma parceria ou suporte de outras organizações ou entidades para alcançar essa meta (exemplo: IDR, ou empresas, auxiliarão a elaboração dos projetos e RTV)?\n7. Como serão avaliados e comunicados o progresso e os resultados alcançados aos envolvidos e à comunidade em geral (relatórios, eventos, mídias sociais, etc)?\n\nÉ pertinente neste tópico a resposta a toda pergunta que auxilie o planejamento e a execução da ação que garanta que as metas sejam alcançadas, incluindo as ações apontadas no RTV para adequação do trecho, quando necessário, para que os benefícios da pavimentação da estrada sejam os maiores possíveis.\nNão esquecer a “solução como um todo”: a descrição da solução como um todo deve considerar todo o ciclo de vida do objeto executado, inclusive as questões relacionadas à manutenção, utilização, depreciação e impacto ambiental, entre outros fatores vinculados ao seu ciclo de vida, o que definirá o dispêndio a ser efetuado durante seu uso."]

{"sheet":"Plan7 7. PLA DE APL 8 Cap Int.","index":6,"n_rows":34,"n_cols":17,"rows_kept":34,"cut":false,"hidden":false,"merged":[[12,1,14,1],[8,4,8,5],[6,3,7,3],[6,2,7,2],[21,6,22,6],[19,2,19,9],[20,8,21,9],[20,5,20,7],[7,4,7,5],[23,8,23,9],[24,8,24,9],[20,4,22,4],[28,2,28,10],[29,2,29,10],[31,1,31,10],[27,8,27,9],[25,8,25,9],[26,8,26,9],[32,1,32,10],[33,1,37,10],[1,4,1,8],[6,6,6,8],[20,2,27,2],[6,9,7,9],[6,4,6,5],[15,4,15,5],[20,3,22,3],[21,7,22,7],[21,5,22,5],[12,4,12,8],[13,6,13,8],[13,4,14,5],[3,1,3,10],[22,8,22,9],[5,2,5,9]]}
[]
[null,null,null,null,"PROGRAMA ESTRADAS DA INTEGRAÇÃO  \nPROJETO DE PAVIMENTAÇÃO DE ESTRADAS\n RURAIS MUNICIPAIS"]
[]
[null,"7. PLANO DE APLICAÇÃO DOS RECURSOS e COM CRONOGRAMA DE DESEMBOLSO"]
[]
[null,null,"PLANO DE APLICAÇÃO DE RECURSOS - RESUMO DAS METAS ",null,null,null,null,null,null,null,null,null,null,null,null,"Pavimentação","Valor Base:"]
[null,null,"Descrição ","NATUREZA DE DESPESA","SEAB",null,"Contrapartida Município",null,null,"Valor Global - (R$)",null,null,null,null,null,{"$f":"'Plan2 1.DADOS,2.OBJ e 2.1.Vigên'!E35","v":"PAVIMENTO RÍGIDO DE CONCRETO"},{"$f":"VLOOKUP(P7,'Plan2 1.DADOS,2.OBJ e 2.1.Vigên'!L35:M41,2,0)","v":0}]
[null,null,null,null,"(R$)",null,"Financeira (R$)","Bens e/ou serviços (R$)","Total  (R$)"]
[null,null,"Contratação de empresa especializada para execução de 75.600m² de pavimentação com bloco sextavado","44.90.51.00",{"$f":"'Plan4 2.3. OPERAÇÕES'!E49","v":0},null,{"$f":"'Plan4 2.3. OPERAÇÕES'!G49","v":0},{"$f":"'Plan4 2.3. OPERAÇÕES'!H49+'Plan4 2.3. OPERAÇÕES'!I49","v":0},{"$f":"G9+H9","v":0},{"$f":"E9+I9","v":0}]
[]
[]
[]
[null,"Quantidade de parcelas:",null,null,"Valor da Parcela"]
[null,null,null,null,"SEAB",null,"Contrapartida Município"]
[null,null,null,null,null,null,"Financeira (R$)","Fisica (R$)","Total  (R$)"]
[null,null,null,null,null,null,{"$f":"ROUNDDOWN(G9/$B$18,2)","v":0},{"$f":"H9/$B$18","v":0},{"$f":"I9/$B$18","v":0}]
[]
[null,{"$f":"IF(E9<=Q7,2,IF((E9/Q7)>4,4,IF(F18>0,ROUND($E$18,0)+1,E18)))","v":2},null,null,{"$f":"ROUNDDOWN(E9/Q7,0)","v":{"$error":"#DIV/0!"}},{"$f":"MOD(E9,Q7)","v":{"$error":"#DIV/0!"}},"Sobra"]
[]
[null,null,"CRONOGRAMA DE DESEMBOLSO"]
[null,null,"Parcelas (R$)","Número de Parcelas","Percentual (%) da execução","Valores (R$)",null,null,"LIBERAÇÃO de PARCELAS"]
[null,null,null,null,null,"SEAB","Município","Total Geral"]
[null,null,null,null,null,null,null,null,"PRAZOS"]
[null,null,null,1,0,0,0,{"$f":"F24+G24","v":0},"1 mês após a homologação do termo de convênio, de acordo com o cronograma físico financeiro e com apresentação da medição com os serviços executados.",null,null,null,null,"2023-11-13"]
[null,null,null,2,0,0,0,{"$f":"F25+G25","v":0},"1 mês após a parcela anterior, de acordo com o cronograma físico financeiro e com apresentação da medição com os serviços executados.",null,null,null,{"$f":"(('Plan2 1.DADOS,2.OBJ e 2.1.Vigên'!$D$46-12)/3)*30","v":-120}]
[null,null,null,3,0,0,0,0,"1 mês após a parcela anterior, de acordo com o cronograma físico financeiro e com apresentação da medição com os serviços executados.",null,null,null,{"$f":"(('Plan2 1.DADOS,2.OBJ e 2.1.Vigên'!$D$46-12)/3)*30","v":-120}]
[null,null,null,4,0,0,0,0,"1 mês após a parcela anterior, de acordo com o cronograma físico financeiro e com apresentação da medição com os serviços executados.",null,null,null,{"$f":"(('Plan2 1.DADOS,2.OBJ e 2.1.Vigên'!$D$46-12)/3)*30","v":-120}]
[null,null,null,"Total",{"$f":"SUM(E24:E27)","v":0},0,0,0]
[null,null,"Obs. (*) O Depósito da contrapartida finaceira deverá ser concomitante ao recebimento do recurso do concedente."]
[null,null,"(**) É obrigatória a apresentação da prestação de contas parcial para a liberação das parcelas"]
[]
[null,"8. CAPACIDADE INSTALADA DO MUNICÍPIO"]
[]
[null,"a) Descrever, detalhadamente, a capacidade instalada do Município, demonstrando que é suficiente para garantir o cumprimento das obrigações acordadas e executar as atividades de forma eficaz. Por exemplo:\na) Recursos Humanos (há pessoal qualificado e em número suficiente);\nb) Recursos Técnicos (há equipamentos, tecnologia e conhecimento técnico).\nc) Recursos Físicos (há espaços físicos, instalações e infraestrutura);\nd) Recursos Financeiros (há capacidade financeira para arcar com os custos relacionados às atividades do convênio).\nExcluir esse texto após o preenchimento                                                                                                                                                                                                                                       "]

{"sheet":"Plan8 9_Parâmetro e 10-11-&","index":7,"n_rows":23,"n_cols":2,"rows_kept":23,"cut":false,"hidden":false,"merged":[[21,1,21,12],[5,1,5,12],[11,1,19,12],[22,1,36,12],[1,1,1,3],[1,5,1,12],[3,1,3,12],[10,1,10,12],[6,1,8,12]]}
[]
[]
[]
[]
[]
[null,"9. PARÂMETRO(S) PARA AFERIÇÃO DO CUMPRIMENTO DA META"]
[null,"Descrever a forma, modo, de avaliação dos resultados que permitirão a aferição dos resultados do convênio (ou seja, a conferência de seu objeto ter sido cumprido).\nConsiderar que para cada “problema” houve um modo, meio ou forma que o detectou ou o avaliou, sendo esse o parâmetro objetivo de avaliação.\n\nOs trechos serão classificados em Padrão A, B, C ou D, de acordo com sua condição atual, conforme os procedimentos para seleção. O cumprimento da meta será verificado pela mudança de Padrão, de acordo com a seguinte legenda:\n\n1. Padrão A: Estrada Rural com segmentos críticos, impedindo o tráfego contínuo em períodos prolongados do ano.\n2. Padrão B: Estrada Rural adequada, readequada ou melhorada, com conservação regular e pontos críticos que ainda impedem o tráfego contínuo em períodos sazonais.\n3. Padrão C: Estrada Rural adequada, readequada ou melhorada, com boa conservação, mas ainda com pontos críticos que impedem o tráfego contínuo em períodos esporádicos.\n4. Padrão D: Estrada Rural adequada, conservada, com práticas eficientes de conservação de solos e água, possibilitando o tráfego contínuo ao longo de todos os meses do ano.\n\nApós o preenchimento, deletar o texto em vermelho.\n"]
[]
[]
[]
[null,"10. COMPATIBILIDADE DOS CUSTOS COM OS PREÇOS PRATICADOS NO MERCADO"]
[null,"Elementos que demonstrem a compatibilidade dos custos com os preços praticados no mercado, por meio de “orçamentos preliminares”, especificando qual das formas de cálculo permitida, foi utilizada para fins de definição do custo (média, mediana ou menor valor)\n\nExemplo: Para evidenciar a compatibilidade dos custos com os preços praticados no mercado, foram empregados tabelas referenciais, as quais servem como uma ferramenta transparente para demonstrar a consistência entre os custos associados à obra e os preços estabelecidos para os produtos ou serviços no mercado.\nO detalhamento desses elementos em tabelas referenciais, fornece uma visão clara do processo de cálculo de custos e como esses custos estão alinhados com os preços praticados no mercado. \nApós o preenchimento, deletar o texto em vermelho."]
[]
[]
[]
[]
[]
[]
[]
[]
[]
[null,"11. RELAÇÃO CUSTO/BENEFÍCIO"]
[null,"Demonstrar que existe adequação e proporcionalidade entre o recurso público alocado e os resultados esperados (projetados) pelo seu emprego é possível por meio, de um ou mais, dos critérios abaixo:\n• A relação entre despesas e resultados deve ser computada com base em critérios claros e transparentes.\n• A transferência de recursos deve ser relevante para a satisfação de necessidades ou objetivos públicos específicos.\n• As alternativas possíveis devem ser avaliadas para identificar a opção mais apropriada e vantajosa em termos de custo-benefício.\n• Os riscos financeiros, operacionais e outros envolvidos no projeto devem ser identificados e avaliados.\n• Por outras formas possíveis de acordo com o caso concreto.\n\nExemplo: Enfatizamos que há conexão entre a alocação de recursos e os resultados esperados (projetados) e que seu emprego é de extrema relevância para atender às necessidades e interesses públicos específicos do município. Esta prática não apenas fortalece a transparência na gestão, mas também contribui para uma eficiente utilização dos recursos, garantindo que cada investimento público esteja alinhado com os objetivos estratégicos e necessidades reais da comunidade, tais como: melhorias na mobilidade e acessibilidade, oportunidades de novos negócios, melhoria na renda e qualidade de vida, impactos ambientais positivos do projeto e de  sustentabilidade a longo prazo, .....\n\nApós o preenchimento, deletar o texto em vermelho."]

{"sheet":"Plan9 12. OBR_MONI_AVAL","index":8,"n_rows":17,"n_cols":3,"rows_kept":17,"cut":false,"hidden":false,"merged":[[1,2,1,11],[13,1,13,11],[16,1,16,11],[6,1,6,11],[15,1,15,11],[14,1,14,11],[10,1,10,11],[11,1,11,11],[12,1,12,11],[3,1,3,11],[5,1,5,11],[7,1,7,11],[8,1,8,11],[9,1,9,11],[4,1,4,11]]}
[]
[null,null,"PROGRAMA ESTRADAS DA INTEGRAÇÃO  PROJETO DE PAVIMENTAÇÃO DE ESTRADAS RURAIS MUNICIPAIS"]
[]
[null,"12. OBRIGAÇÕES"]
[null,"DO MONITORAMENTO, AVALIAÇÃO E DA PRESTAÇÃO DE CONTAS "]
[null,"1. O CONVENENTE TOMADOR realizará a prestação de contas através do Sistema Integrado de Transferências do TCE (SIT) conforme previsões das resoluções nº 28/2011, 46/2014 e a Instrução Normativa 61/2011 e as Cláusulas do Convênio"]
[null,"2.  Entregará ao fiscal da SEAB, cópia de ata da homologação do processo licitatório, contrato, CNO - Cadastro Nacional de Obras, licença ambiental do fornecedor ( pedreira)  do material a ser utilizado na pavimentação."]
[null,"3. O CONVENENTE TOMADOR, apresentará as informações dos resultados alcançados sob os aspectos técnicos e financeiros obtidos com a execução do objeto da parceria na seguinte forma e periodicidade:"]
[null,"3.1)    Bimestralmente, anualmente, e a cada liberação de parcela (R$) e após a Conclusão do Convênio  por meio de: "]
[null,"a.  Relatório de Execução do Objeto (PARCIAL E FINAL e a cada liberação de parcela): documento que descreverá as atividades desenvolvidas, comparativo das metas propostas e resultados alcançados, acompanhado do respectivo material comprobatório. ( mapas de medição e notas fiscais comprobatórias, CND da obra, fotos e filmagens). Obs.: será encaminhado junto com a solicitação de liberação de parcela."]
[null,"b.  Relatório de Execução Financeira (PARCIAL E FINAL e a cada liberação de parcela): documento que relaciona os pagamentos efetuados em face das despesas previstas neste Plano de Trabalho e a conciliação bancária aferida pela correlação entre despesas constantes na relação de pagamentos e os débitos efetuados na conta corrente específica da parceria e devidos nexos de causalidade entre umas e outras, sua conformidade e o cumprimento das normas pertinentes. Obs.: será encaminhado junto com a solicitação de liberação de parcela."]
[null,"c.  Cópia do Extratos Bancários (conta aplicação e conta corrente);"]
[null,"d. Devera ser encaminhado a SEAB a CND a obra, até 30 (trinta) dias após a conclusão da execução do objeto do convênio, previsto no projeto e plano de trabalho;"]
[null,"e.  Comprovante de recolhimento de saldo ao Tesouro Estadual (se necessário ou houver)."]
[null,"4. O CONCEDENTE - deverá efetuar fiscalização bimenstralmente e ou quando necessário, gerando  TAF - Termo de Acompanhamento e Fiscalização, e se for o caso folha de informação. "]
[null,"a . Quando da fiscalização da SEAB, for verificado inconformidades, devera o fiscal informar o gestor passando a este cópia do TAF - Termo de acompanhamento e fiscalização para que o gestor tome as providencias necessárias, ou seja, proceder a notificação ao Tomador (municipio). "]
[null,"b. O envio dos documentos (TAFs, folha de informação da Divisão de Apoio Técnico do DEAGRO/SEAB, e notificações) e relatórios previstos no item 3 será feito de forma eletrônica através do e-protocolo, deverá ser enviado ao NUCONV para anexar ao e-protocolo do termo de convênio."]

{"sheet":"Plan10 13.DOC_INTEGR_PT ","index":9,"n_rows":24,"n_cols":6,"rows_kept":24,"cut":false,"hidden":false,"merged":[[3,1,3,3],[1,2,1,3],[4,1,4,3],[5,1,5,3],[6,1,6,3],[7,1,7,3],[8,1,8,3],[9,1,9,3],[10,1,10,3],[11,1,11,3],[12,1,12,3],[13,1,13,3],[14,1,14,3],[15,1,15,3],[16,1,16,3],[22,1,22,3],[23,1,23,3],[17,1,17,3],[18,1,18,3],[19,1,19,3],[20,1,20,3],[21,1,21,3]]}
[]
[null,null,"PROGRAMA ESTRADAS DA INTEGRAÇÃO  PROJETO DE PAVIMENTAÇÃO DE ESTRADAS  RURAIS MUNICIPAIS"]
[]
[null,"13. DOCUMENTOS INTEGRANTES DO PLANO DE TRABALHO "]
[null,"13.1 Descrição do Documento"]
[null,{"$f":"CONCATENATE(\"a) Declaração de Contrapartida (FISICA OU FINANCEIRA) no valor de R$ \", F6)","v":"a) Declaração de Contrapartida (FISICA OU FINANCEIRA) no valor de R$ 0,00"},null,null,null,{"$f":"TEXT('Plan4 2.3. OPERAÇÕES'!G49,\"#.##0,00\")","v":"0,00"}]
[null,"b) Orçamentos devidamente detalhado em planilha nos termos dos arts.368 a 372 e dos atrs. 484 a 486 do decreto Estadual 10.086/2022. Se forem com base em tabelas oficiais (DER-PR, SINAPE-PR, DNIT - SICRO,...amplamente divulgados em sitios eletronicos devidamente informados no memorial descritivo pagina de localização"]
[null,"C) Outros documentos necessários para execução do objeto (Caracterizar os documentos)"]
[]
[null,"13.2 PARA OBRAS OU SERVIÇOS DE ENGENHARIA E ARQUITETURA "]
[null,"a) Projeto Básico e/ou Executivo da Obra "]
[null,"Projeto Geotécnico,"]
[null,"Projeto topográfico, "]
[null,"Projeto terraplanagem, "]
[null,"Projeto de Drenagem, (quando indicado  no RTV),"]
[null,"Projeto de Pavimentação, "]
[null,"Projeto de Sinalização horizontal e vertical (para asfalto),"]
[null,"Memoriais de cálculos, (DMT, BDI,.....)"]
[null,"Memorial descritivo, "]
[null,"b) Planilha de Custos da Obra (expressando a composição dos custos unitários ou fundamentado em quantitativos de obras, serviços)."]
[null,"c) Anotações e/ou Registros de Responsabilidade Técnica de ELABORAÇÃO, FISCALIZAÇÃO  e  EXECUÇÃO dos projetos e orçamentos, dos respectivos conselhos de classe CAU E OU CREA."]
[null,"d) Apresentação da CNO – CERTIDÃO NEGATIVA DE DA OBRA  (apresentar logo após o homologação da licitação e assinatura do contrato),"]
[null,"e) Relatório de impactos ambientais e/ou licenças ambientais, quando exigido pelos órgãos competentes (se houver ) ."]
[null,"f) Apresentar cópia do plano diretor do municipio, com o mapa  do sistema viário rural contemplando, a estrada a ser pavimentada, não serão aceitos trechos estradas dentro de perimetro urbano. Na ausencia deste, apresentar documento oficial da posse e da área de dominio da estrada, e anuência  nos casos de estradas a serem trabalhadas pertencer a União ou Estado."]

{"sheet":"Plan11  ASSINATURAS","index":10,"n_rows":38,"n_cols":15,"rows_kept":38,"cut":false,"hidden":false,"merged":[[18,2,18,7],[18,8,18,10],[1,3,1,10],[1,1,1,2],[3,1,3,10],[4,1,4,10],[5,2,5,7],[5,8,10,10],[6,2,6,7],[7,1,7,4],[7,5,7,7],[8,2,8,7],[9,2,9,7],[10,2,10,7],[11,2,11,7],[11,8,11,10],[13,1,13,10],[14,2,14,7],[14,8,17,10],[15,2,15,7],[16,2,16,7],[17,2,17,7],[22,1,22,10],[23,1,25,6],[26,1,26,6],[20,1,20,10],[21,1,21,10],[26,9,26,10],[37,1,37,6],[27,1,27,6],[30,1,30,10],[31,1,31,10],[33,1,34,6],[35,1,36,6],[36,9,36,10]]}
[]
[null,null,null,"PROGRAMA ESTRADAS DA INTEGRAÇÃO  PROJETO DE PAVIMENTAÇÃO DE ESTRADAS  RURAIS MUNICIPAIS"]
[]
[null,"14. RESPONSÁVEL TÉCNICO PELA ELABORAÇÃO DO PLANO DE TRABALHO"]
[null,{"$f":"CONCATENATE(N5,N6)","v":"O presente Plano de Trabalho foi por mim elaborado de acordo com as normas técnicas aplicáveis e está compatível com as prioridades de atendimento da agricultura familiar e com os recursos financeiros destinados pelo Projeto de Pavimentação com PAVIMENTO RÍGIDO DE CONCRETO"},null,null,null,null,null,null,null,null,null,null,null,"O presente Plano de Trabalho foi por mim elaborado de acordo com as normas técnicas aplicáveis e está compatível com as prioridades de atendimento da agricultura familiar e com os recursos financeiros destinados pelo Projeto de Pavimentação com "]
[null,"Nome:",null,null,null,null,null,null,"__________________________",null,null,null,null,{"$f":"'Plan2 1.DADOS,2.OBJ e 2.1.Vigên'!E35","v":"PAVIMENTO RÍGIDO DE CONCRETO"}]
[null,"Cargo:","ENGENHEIRO (a) CIVIL"]
[null,"N.º Registro Conselho de Classe:",null,null,null,"CREA PRXXXXX/D"]
[null,"Local:","XXXXXX"]
[null,"Nº telefone"]
[null,"e-mail"]
[null,"Data:",{"$f":"TODAY()","v":"2025-08-07"},null,null,null,null,null,"Assinatura"]
[]
[null,"15. APROVAÇÃO DO(A) PREFEITO(A) MUNICIPAL"]
[null,"Nome:",{"$f":"'[1]Plan2 1.DADOS,2.OBJ e 2.1.Vigên'!C15:I15","v":"XXXXXXXXX"}]
[null,"Cargo:","PREFEITO MUNICIPAL"]
[null,"CPF (LGPD):",{"$f":"'[1]Plan2 1.DADOS,2.OBJ e 2.1.Vigên'!C16:D16","v":"XXXXXXXXX"}]
[null,"Local:",{"$f":"'[1]Plan2 1.DADOS,2.OBJ e 2.1.Vigên'!C6:I6","v":"XXXXXXXXXXX"}]
[null,"Data:",{"$f":"TODAY()","v":"2025-08-07"},null,null,null,null,null,"Assinatura"]
[null,"LGPD - Lei Geral de Proteção de Dados Pessoais, Lei nº 13.709/2018,"]
[null,"16.  MANIFESTAÇÃO TÉCNICA DO DEAGRO – SEDE"]
[null,"Atestamos, para os devidos fins, que este Plano de Trabalho se encontra em condições técnicas para a sua aprovação pelo Sr. Secretário da Agricultura e do Abastecimento."]
[null,"16.1. Chefe do Departamento de Desenvolvimento Rural Sustentável - DEAGRO."]
[null,"Documento assinado eletronicamente"]
[]
[]
[null,"Bruno Luis Krevoruczka",null,null,null,null,null,null,"Curitiba, ",{"$f":"TODAY()","v":"2025-08-07"}]
[null,"CREA-PR 123.461/D"]
[]
[]
[null,"17. APROVAÇÃO DO SECRETÁRIO"]
[null,{"$f":"CONCATENATE(O32,N6,O33)","v":"Aprovamos, para os devidos fins, este Plano de Trabalho por encontrar-se em conformidade com as diretrizes do Projeto de Pavimentação com PAVIMENTO RÍGIDO DE CONCRETO, estando apto para sua efetivação via convênio."},null,null,null,null,null,null,null,null,null,null,null,null,"Aprovamos, para os devidos fins, este Plano de Trabalho por encontrar-se em conformidade com as diretrizes do Projeto de Pavimentação com "]
[null,null,null,null,null,null,null,null,null,null,null,null,null,null,", estando apto para sua efetivação via convênio."]
[null,"Documento assinado eletronicamente"]
[]
[null,"Diretora Geral da Secretaria de Estado da Agricultura e do Abastecimento"]
[null,null,null,null,null,null,null,null,"Curitiba, ",{"$f":"TODAY()","v":"2025-08-07"}]
[null,"Camila Luiza Cunha Bernardo Aragão"]

{"sheet":"Serviços","index":11,"n_rows":255,"n_cols":18,"rows_kept":255,"cut":false,"hidden":true,"merged":[[1,1,1,3],[1,13,1,14],[1,16,1,17],[1,8,1,10],[76,1,76,3],[76,13,76,14],[76,16,76,17],[39,1,39,3],[39,13,39,14],[39,16,39,17],[73,1,73,4],[110,1,110,4],[148,1,148,3],[148,8,148,10],[148,13,148,14],[148,16,148,17],[112,1,112,3],[112,13,112,14],[112,16,112,17],[220,1,220,3],[220,13,220,14],[220,16,220,17],[254,1,254,4],[182,1,182,4],[184,1,184,3],[184,8,184,10],[184,13,184,14],[184,16,184,17],[218,1,218,4]]}
[]
[null,"Tipo \nRevestimento:",null,null,"BLOCO SEXTAVADO",null,null,null,"Custo Transp. (R$)",null,null,null,null,"Total c/ BDI (R$)",null,"SEAB","CONTRAPARTIDA (MUNICÍPIO)²"]
[null,"Natureza de despesa","INTITUIÇÃO","Código","Itens","Unid.","Valor unitário (R$)¹","Qtd.","QUANTIDADE (T)","UNITÁRIO","TOTAL","Total s/ BDI (R$)","BDI %","Total c/ BDI (R$)","%","R$","FINANCEIRA R$","FÍSICA/SERVIÇOS"]
[null,"4.4.90.51.00","SINAPI",103689,"Placa de obra (para construção civil) em chapa galvanizada *n. 22*, adesivada, (3,00m x 1,50m)","m²",null,null,null,null,0,{"$f":"(G4*H4)+K4","v":0},null,{"$f":"IF(M4>0,L4+L4*M4,L4)","v":0},{"$f":"N4/N$35","v":{"$error":"#DIV/0!"}},{"$f":"N4-Q4-R4","v":0},{"$f":"L4*10%","v":0},0]
[null,"4.4.90.51.00","SINAPI",103694,"Suporte de madeira 3\"x3\" p/ placa DE OBRA","ud",null,null,null,null,0,{"$f":"(G5*H5)+K5","v":0},null,0,{"$error":"#DIV/0!"},0,0,0]
[null,"4.4.90.51.00","DER/PR",520100,"Escavação e carga mat. jazida 1a. cat. (reaterro)","m³",null,null,null,null,0,0,null,0,{"$error":"#DIV/0!"},0,0,0]
[null,"4.4.90.51.00","DER/PR",411000,"Esc. carga e transp. 1a. cat.(bota fora)","m³",null,null,null,null,0,0,null,0,{"$error":"#DIV/0!"},0,0,0]
[null,"4.4.90.51.00","DER/PR",511100,"Regularização compac.subleito 100% PN","m²",null,null,null,null,0,0,null,0,{"$error":"#DIV/0!"},0,0,0]
[null,"4.4.90.51.00","DER/PR",544000,"Solo cimento mist. pista (4%) 100% PN (Sub-Base 15 cm) .","m³",null,null,null,null,{"$f":"I9*J9","v":0},0,null,0,{"$error":"#DIV/0!"},0,0,0]
[null,"4.4.90.51.00","DER/PR",544000,"Solo cimento mist. pista (4%) 100% PN (Base 15 cm)","m³",null,null,null,null,{"$f":"I10*J10","v":0},0,null,0,{"$error":"#DIV/0!"},0,0,0]
[null,"4.4.90.51.00","DER/PR",810250,"Meio-fio de concreto tipo 3","m",null,null,null,null,0,0,null,0,{"$error":"#DIV/0!"},0,0,0]
[null,"4.4.90.51.00","DER/PR",561100,"Pintura de ligação exclusive fornec. da emulsão","m²",null,null,null,null,{"$f":"I12*J12","v":0},0,null,0,{"$error":"#DIV/0!"},0,0,0]
[null,"4.4.90.51.00","DER/PR",589420,"Fornecimento de emulsão asfáltica RR-1C","t",null,null,null,null,0,0,null,0,{"$error":"#DIV/0!"},0,0,0]
[null,"4.4.90.51.00","DER/PR",534908,"Pavimento c/ bloco intertravado concreto (Paver-cor natural) e=8cm, incl.colchão areia. ","m²",null,null,null,null,{"$f":"I14*J14","v":0},0,null,0,{"$error":"#DIV/0!"},0,0,0]
[null,"4.4.90.51.00","DER/PR",534908,"Transporte da areia","m² ",null,null,null,null,{"$f":"I15*J15","v":0},0,null,0,{"$error":"#DIV/0!"},0,0,0]
[null,"4.4.90.51.00","DER/PR",800000,"Enleivamento","m²",null,null,null,null,{"$f":"I16*J16","v":0},0,null,0,{"$error":"#DIV/0!"},0,0,0]
[null,"4.4.90.51.00","cotações","xxx","Ensaio de Massa Específica - In Situ - Método Frasco de Areia (Grau de Compactação) - Terraplenagem ","unid",null,null,null,null,{"$f":"I17*J17","v":0},{"$f":"(G17*H17)+K17","v":0},null,0,{"$error":"#DIV/0!"},{"$f":"N17-Q17-R17","v":0},0,0]
[null,"4.4.90.51.00","cotações","xxx","Ensaio de Massa Específica - In Situ - Método Frasco de Areia (Grau de Compactação) - Reforço do Subleito ","unid",null,null,null,null,0,0,null,0,{"$error":"#DIV/0!"},0,0,0]
[null,"4.4.90.51.00","cotações","xxx","Ensaio de Massa Específica - In Situ - Método Frasco de Areia (Grau de Compactação) - Regularização e Compactação do Subleito","unid",null,null,null,null,0,0,null,0,{"$error":"#DIV/0!"},0,0,0]
[null,"4.4.90.51.00","cotações","xxx","Ensaio de Massa Específica - In Situ - Método Frasco de Areia (Grau de Compactação) - Sub-base","unid",null,null,null,null,0,0,null,0,{"$error":"#DIV/0!"},0,0,0]
[null,"4.4.90.51.00","cotações","xxx","Ensaio de Massa Específica - In Situ - Método Frasco de Areia (Grau de Compactação) - Base","unid",null,null,null,null,{"$f":"I21*J21","v":0},{"$f":"(G21*H21)+K21","v":0},null,{"$f":"IF(M21>0,L21+L21*M21,L21)","v":0},{"$error":"#DIV/0!"},{"$f":"N21-Q21-R21","v":0},{"$f":"L21*10%","v":0},0]
[null,"4.4.90.51.00","cotações","xxx","Ensaio de Granulometria do Agregado","unid",null,null,null,null,0,0,null,0,{"$error":"#DIV/0!"},0,0,0]
[null,"4.4.90.51.00","cotações","composição","Topografia para locação dos serviços a executar e  aferição dos serviços executados, ver memorial descritivo","KM",null,null,null,null,0,0,null,0,{"$error":"#DIV/0!"},0,0,0]
[null,"4.4.90.51.00",null,null,null,null,null,null,null,null,{"$f":"I24*J24","v":0},{"$f":"(G24*H24)+K24","v":0},null,{"$f":"IF(M24>0,L24+L24*M24,L24)","v":0},{"$error":"#DIV/0!"},0,{"$f":"L24*10%","v":0},0]
[null,"4.4.90.51.00"]
[null,"4.4.90.51.00"]
[null,"4.4.90.51.00"]
[null,"4.4.90.51.00"]
[null,"4.4.90.51.00"]
[null,"4.4.90.51.00"]
[null,"4.4.90.51.00"]
[null,"4.4.90.51.00"]
[null,"4.4.90.51.00"]
[null,"4.4.90.51.00",null,null,null,null,null,null,null,null,0,0,null,0,{"$error":"#DIV/0!"},0,0,0]
[null,"TOTAL",null,null,null,null,null,null,null,null,null,{"$f":"SUM(L4:L34)","v":0},{"$f":"M4","v":0},{"$f":"SUM(N4:N34)","v":0},{"$error":"#DIV/0!"},{"$f":"SUM(P4:P34)","v":0},{"$f":"SUM(Q4:Q34)","v":0},{"$f":"SUM(R4:R34)","v":0}]
[]
[]
[]
[]
[null,"Tipo \nRevestimento:",null,null,"PEDRA IRREGULAR",null,null,null,"Custo Transp. (R$)",null,null,null,null,"Total c/ BDI (R$)",null,"SEAB","CONTRAPARTIDA (MUNICÍPIO)²"]
[null,"Natureza de despesa","INTITUIÇÃO","Código","Itens","Unid.","Valor unitário (R$)¹","Qtd.","QUANTIDADE (T)","UNITÁRIO","TOTAL","Total s/ BDI (R$)","BDI %","Total c/ BDI (R$)","%","R$","FINANCEIRA R$","FÍSICA/SERVIÇOS"]
[null,"4.4.90.51.00","SINAPI",103689,"Placa de obra (para construção civil) em chapa galvanizada *n. 22*, adesivada, (3,00m x 1,50m)","m²",null,null,null,null,{"$f":"I42*J42","v":0},{"$f":"(G42*H42)+K42","v":0},null,{"$f":"IF(M42>0,L42+L42*M42,L42)","v":0},{"$f":"N42/N$73","v":{"$error":"#DIV/0!"}},{"$f":"N42-Q42-R42","v":0},{"$f":"L42*10%","v":0},0]
[null,"4.4.90.51.00","SINAPI",103694,"Suporte de madeira 3\"x3\" p/ placa DE OBRA","ud",null,null,null,null,0,0,null,0,{"$error":"#DIV/0!"},0,{"$f":"L43*10%","v":0},0]
[null,"4.4.90.51.00","DER/PR",500000,"Escarificação,regularização e compactação subleito","m²",null,null,null,null,0,0,null,0,{"$error":"#DIV/0!"},0,0,0]
[null,"4.4.90.51.00","DER/PR",130080,"Colchão de pó de pedra  p/paviment. Poliédrica","m²",null,null,null,null,0,0,null,0,{"$error":"#DIV/0!"},0,0,0]
[null,"4.4.90.51.00","DER/PR",52145,"Extração, carga,transp.preparo e assent. Poliédrico","m²",null,null,null,null,0,0,null,0,{"$error":"#DIV/0!"},0,0,0]
[null,"4.4.90.51.00","DER/PR",130080,"Enchimento com pó de pedra","m²",null,null,null,null,{"$f":"I47*J47","v":0},0,null,0,{"$error":"#DIV/0!"},0,0,0]
[null,"4.4.90.51.01","DER/PR",53270,"Compactação do Pavimento Poliédrico","m²",null,null,null,null,{"$f":"I48*J48","v":0},0,null,0,{"$error":"#DIV/0!"},0,0,0]
[null,"4.4.90.51.02","DER/PR",57510,"Contenção Lat. Com solo local (minimo 1 m de cada lado)","m²",null,null,null,null,0,0,null,0,{"$error":"#DIV/0!"},0,0,0]
[null,"4.4.90.51.00","DER/PR",810250,"Meio-fio de concreto tipo 3","m",null,null,null,null,0,0,null,0,{"$error":"#DIV/0!"},0,0,0]
[null,"4.4.90.51.00","DER/PR",810250,"Transporte lastro de brita","ton.",null,null,null,null,{"$f":"I51*J51","v":0},0,null,0,{"$error":"#DIV/0!"},0,0,0]
[null,"4.4.90.51.00","DER/PR",800000,"Enleivamento","m²",null,null,null,null,{"$f":"I52*J52","v":0},0,null,0,{"$error":"#DIV/0!"},0,0,0]
[null,"4.4.90.51.00","cotações","xxx","Ensaio de Massa Específica - In Situ - Método Frasco de Areia (Grau de Compactação) - Terraplenagem ","unid",null,null,null,null,{"$f":"I53*J53","v":0},0,null,0,{"$error":"#DIV/0!"},0,0,0]
[null,"4.4.90.51.00","cotações","xxx","Ensaio de Massa Específica - In Situ - Método Frasco de Areia (Grau de Compactação) - Reforço do Subleito ","unid",null,null,null,null,0,0,null,0,{"$error":"#DIV/0!"},0,0,0]
[null,"4.4.90.51.00","cotações","xxx","Ensaio de Massa Específica - In Situ - Método Frasco de Areia (Grau de Compactação) - Regularização e Compactação do Subleito","unid",null,null,null,null,0,0,null,0,{"$error":"#DIV/0!"},0,0,0]
[null,"4.4.90.51.00","cotações","xxx","Ensaio de Massa Específica - In Situ - Método Frasco de Areia (Grau de Compactação) - Sub-base","unid",null,null,null,null,0,0,null,0,{"$error":"#DIV/0!"},0,0,0]
[null,"4.4.90.51.00","cotações","xxx","Ensaio de Massa Específica - In Situ - Método Frasco de Areia (Grau de Compactação) - Base","unid",null,null,null,null,0,0,null,0,{"$error":"#DIV/0!"},0,0,{"$f":"L57","v":0}]
[null,"4.4.90.51.00","cotações","composição","Topografia para locação dos serviços a executar e  aferição dos serviços executados, ver memorial descritivo","km",null,null,null,null,0,0,null,0,{"$error":"#DIV/0!"},{"$f":"N58-Q58-R58","v":0},0,{"$f":"L58","v":0}]
[null,"4.4.90.51.00",null,null,null,null,null,null,null,null,0,0,null,0,{"$error":"#DIV/0!"},{"$f":"N59-Q59-R59","v":0},0,0]
[null,"4.4.90.51.00"]
[null,"4.4.90.51.00"]
[null,"4.4.90.51.00"]
[null,"4.4.90.51.00"]
[null,"4.4.90.51.00"]
[null,"4.4.90.51.00"]
[null,"4.4.90.51.00"]
[null,"4.4.90.51.00"]
[null,"4.4.90.51.00"]
[null,"4.4.90.51.00"]
[null,"4.4.90.51.00"]
[null,"4.4.90.51.00"]
[null,"4.4.90.51.00",null,null,null,null,null,null,null,null,0,0,null,0,{"$f":"N72/N$73","v":{"$error":"#DIV/0!"}},0,0,0]
[null,"TOTAL",null,null,null,null,null,null,null,null,null,{"$f":"SUM(L42:L72)","v":0},{"$f":"M42","v":0},{"$f":"SUM(N42:N72)","v":0},{"$error":"#DIV/0!"},{"$f":"SUM(P42:P72)","v":0},{"$f":"SUM(Q42:Q72)","v":0},{"$f":"SUM(R42:R72)","v":0}]
[null,"Obs: se necessário reforço do subleito e leito adicionar as operações faltantes"]
[]
[]
[null,"Tipo \nRevestimento:",null,null,"Concreto Betuminoso Usinado a Quente - CBUQ (Tipo 1)",null,null,null,"Custo Transp. (R$)",null,null,null,null,"Total c/ BDI (R$)",null,"SEAB","CONTRAPARTIDA (MUNICÍPIO)²"]
[null,"Natureza de despesa","INTITUIÇÃO","Código","Itens","Unid.","Valor unitário (R$)¹","Qtd.","QUANTIDADE (T)","UNITÁRIO","TOTAL","Total s/ BDI (R$)","BDI %","Total c/ BDI (R$)","%","R$","FINANCEIRA R$","FÍSICA/SERVIÇOS"]
[null,"4.4.90.51.00","SINAPI",103689,"Placa de obra (para construção civil) em chapa galvanizada *n. 22*, adesivada, (3,00m x 1,50m)","ud",null,null,null,null,{"$f":"I79*J79","v":0},{"$f":"(G79*H79)+K79","v":0},null,{"$f":"IF(M79>0,L79+L79*M79,L79)","v":0},{"$f":"N79/N$110","v":{"$error":"#DIV/0!"}},{"$f":"N79-Q79-R79","v":0},{"$f":"L79*10%","v":0},0]
[null,"4.4.90.51.00","SINAPI",103694,"Suporte de madeira 3\"x3\" p/ placa DE OBRA","m²",null,null,null,null,0,0,null,0,{"$f":"N80/N$110","v":{"$error":"#DIV/0!"}},0,{"$f":"L80*10%","v":0},0]
[null,"4.4.90.51.00","DER/PR",50000,"Escarificação,regularização e compactação subleito","m²",null,null,null,null,0,0,null,0,{"$error":"#DIV/0!"},0,0,0]
[null,"4.4.90.51.00","DER/PR",511100,"Regularização compactação. Subleito 100% PN","m²",null,null,null,null,{"$f":"I82*J82","v":0},{"$f":"(G82*H82)+K82","v":0},null,{"$f":"IF(M82>0,L82+L82*M82,L82)","v":0},{"$error":"#DIV/0!"},{"$f":"N82-Q82-R82","v":0},{"$f":"L82*10%","v":0},0]
[null,"4.4.90.51.00","DER/PR",530200,"BRITA GRADUADA 4 A - BICA CORRIDA","m³",null,null,null,null,0,0,null,0,{"$f":"N83/N$110","v":{"$error":"#DIV/0!"}},0,0,0]
[null,"4.4.90.51.00","DER/PR","Composição","Sub base BRITA GRADUADA 4 A  - BICA CORRIDA TRANSPORTE - DMT ...km","ton.",null,null,null,null,0,0,null,0,{"$error":"#DIV/0!"},0,0,0]
[null,"4.4.90.51.00","DER/PR",401160,"Regularização, conformação e compactação ","m2",null,null,null,null,0,0,null,0,{"$error":"#DIV/0!"},0,0,0]
[null,"4.4.90.51.00","DER/PR",531350,"Macadame seco britado preenchido com bica corrida","m³",null,null,null,null,0,0,null,0,{"$error":"#DIV/0!"},0,0,0]
[null,"4.4.90.51.00","DER/PR",560100,"Imprimação impermeabilizante, exclusive fornecimento da emulsão","m²",null,null,null,null,{"$f":"I87*J87","v":0},0,null,0,{"$error":"#DIV/0!"},0,0,0]
[null,"4.4.90.51.00","DER/PR",561100,"Pintura de ligação exclusive fornec. da emulsão","m²",null,null,null,null,{"$f":"I88*J88","v":0},0,null,0,{"$error":"#DIV/0!"},0,0,0]
[null,"4.4.90.51.00","DER/PR",570000,"C.B.U.Q.- aplicação, excl. fornec. do CAP (até 10.000 t)","t",null,null,null,null,{"$f":"I89*J89","v":0},0,null,0,{"$error":"#DIV/0!"},0,0,0]
[null,"4.4.90.51.00","DER/PR",589000,"Fornecimento de C.A.P.- 50/70","t",null,null,null,null,0,0,null,0,{"$error":"#DIV/0!"},0,0,0]
[null,"4.4.90.51.00","DER/PR",589190,"Fornecimento de emulsão asfaltica E.A.I. para imprimação","t",null,null,null,null,0,0,null,0,{"$error":"#DIV/0!"},0,0,0]
[null,"4.4.90.51.00","DER/PR",589520,"Fornecimento de emulsão asfáltica RR-2C","t",null,null,null,null,{"$f":"I92*J92","v":0},0,null,0,{"$error":"#DIV/0!"},0,0,0]
[null,"4.4.90.51.00","DER/PR",822000,"Faixa de sinalização Horizontal c/ tinta resina acrílica base solvente (0,0034m²/m²)","m²",null,null,null,null,{"$f":"I93*J93","v":0},0,null,0,{"$error":"#DIV/0!"},0,0,0]
[null,"4.4.90.51.00","DER/PR","820000A","Placa de Sinalização refletiva - SEM SUPORTE ","m²",null,null,null,null,{"$f":"I94*J94","v":0},0,null,0,{"$error":"#DIV/0!"},0,0,0]
[null,"4.4.90.51.00","DER/PR",821000,"Suporte de madeira 3\"x3\" p/ placa sinalização","Unid.",null,null,null,null,0,0,null,0,{"$error":"#DIV/0!"},0,0,0]
[null,"4.4.90.51.00","cotações","xxx","Ensaio de Massa Específica - In Situ - Método Frasco de Areia (Grau de Compactação) - Terraplenagem ","Unid.",null,null,null,null,0,0,null,0,{"$error":"#DIV/0!"},0,0,0]
[null,"4.4.90.51.00","cotações","xxx","Ensaio de Massa Específica - In Situ - Método Frasco de Areia (Grau de Compactação) - Reforço do Subleito ","Unid.",null,null,null,null,0,0,null,0,{"$error":"#DIV/0!"},0,0,0]
[null,"4.4.90.51.00","cotações","xxx","Ensaio de Massa Específica - In Situ - Método Frasco de Areia (Grau de Compactação) - Regularização e Compactação do Subleito","Unid.",null,null,null,null,0,0,null,0,{"$error":"#DIV/0!"},0,0,{"$f":"L98","v":0}]
[null,"4.4.90.51.00","cotações","xxx","Ensaio de Massa Específica - In Situ - Método Frasco de Areia (Grau de Compactação) - Sub-base","Unid.",null,null,null,null,0,0,null,0,{"$error":"#DIV/0!"},{"$f":"N99-Q99-R99","v":0},0,{"$f":"L99","v":0}]
[null,"4.4.90.51.00","cotações","xxx","Ensaio de Massa Específica - In Situ - Método Frasco de Areia (Grau de Compactação) - Base","Gb",null,null,null,null,0,0,null,0,{"$error":"#DIV/0!"},{"$f":"N100-Q100-R100","v":0},0,0]
[null,"4.4.90.51.00","cotações","xxx","Ensaio de Granulometria do Agregado","Unid.",null,null,null,null,0,0,null,0,{"$error":"#DIV/0!"},0,0,0]
[null,"4.4.90.51.00","cotações","composição","Topografia para locação dos serviços a executar e  aferição dos serviços executados, ver memorial descritivo","km",null,null,null,null,0,0,null,0,{"$error":"#DIV/0!"},0,0,0]
[null,"4.4.90.51.00",null,null,null,null,null,null,null,null,0,0,null,0,{"$error":"#DIV/0!"},0,0,0]
[null,"4.4.90.51.00"]
[null,"4.4.90.51.00"]
[null,"4.4.90.51.00"]
[null,"4.4.90.51.00"]
[null,"4.4.90.51.00"]
[null,"4.4.90.51.00",null,null,null,null,null,null,null,null,0,0,null,0,{"$f":"N109/N$110","v":{"$error":"#DIV/0!"}},0,0,0]
[null,"TOTAL",null,null,null,null,null,null,null,null,null,{"$f":"SUM(L79:L109)","v":0},{"$f":"M79","v":0},{"$f":"SUM(N79:N109)","v":0},{"$f":"N110/N$110","v":{"$error":"#DIV/0!"}},{"$f":"SUM(P79:P109)","v":0},{"$f":"SUM(Q79:Q109)","v":0},{"$f":"SUM(R79:R109)","v":0}]
[null,"Obs: se necessário reforço do subleito e leito adicionar as operações faltantes"]
[]
[null,"Tipo \nRevestimento:",null,null,"Concreto Betuminoso Usinado a Quente - CBUQ (Tipo 2)",null,null,null,"Custo Transp. (R$)",null,null,null,null,"Total c/ BDI (R$)",null,"SEAB","CONTRAPARTIDA (MUNICÍPIO)²"]
[null,"Natureza de despesa","INTITUIÇÃO","Código","Itens","Unid.","Valor unitário (R$)¹","Qtd.","QUANTIDADE (T)","UNITÁRIO","TOTAL","Total s/ BDI (R$)","BDI %","Total c/ BDI (R$)","%","R$","FINANCEIRA R$","FÍSICA/SERVIÇOS"]
[null,"4.4.90.51.00","SINAPI",103689,"Placa de obra (para construção civil) em chapa galvanizada *n. 22*, adesivada, (3,00m x 1,50m)","ud",null,null,null,null,{"$f":"I115*J115","v":0},{"$f":"(G115*H115)+K115","v":0},null,{"$f":"IF(M115>0,L115+L115*M115,L115)","v":0},{"$f":"N115/N$146","v":{"$error":"#DIV/0!"}},{"$f":"N115-Q115-R115","v":0},{"$f":"L115*10%","v":0},0]
[null,"4.4.90.51.00","SINAPI",103694,"Suporte de madeira 3\"x3\" p/ placa DE OBRA","m²",null,null,null,null,0,0,null,0,{"$error":"#DIV/0!"},0,{"$f":"L116*10%","v":0},0]
[null,"4.4.90.51.00","DER/PR",520100,"Escavação e carga mat. jazida 1a. cat. (reaterro)","m³",null,null,null,null,{"$f":"I117*J117","v":0},{"$f":"(G117*H117)+K117","v":0},null,{"$f":"IF(M117>0,L117+L117*M117,L117)","v":0},{"$error":"#DIV/0!"},{"$f":"N117-Q117-R117","v":0},{"$f":"L117*10%","v":0},0]
[null,"4.4.90.51.00","DER/PR",411000,"Esc. carga e transp. 1a. cat.(bota fora)","m³",null,null,null,null,0,0,null,0,{"$error":"#DIV/0!"},0,0,0]
[null,"4.4.90.51.00","DER/PR",511100,"Regularização compac.subleito 100% PN","m²",null,null,null,null,0,0,null,0,{"$error":"#DIV/0!"},0,0,0]
[null,"4.4.90.51.00","DER/PR",544000,"Solo cimento mist. pista (4%) 100% PN (Sub-Base 15 cm) - Trecho entre vila rural e estrada de acesso ao distrito cintra pimentel.","m³",null,null,null,null,0,0,null,0,{"$error":"#DIV/0!"},0,0,0]
[null,"4.4.90.51.00","DER/PR",544000,"Solo cimento mist. pista (4%) 100% PN (Base 15 cm)","m³",null,null,null,null,0,0,null,0,{"$error":"#DIV/0!"},0,0,0]
[null,"4.4.90.51.00","DER/PR",560100,"Imprimação impermeabilizante, exclusive fornecimento da emulsão","m²",null,null,null,null,{"$f":"I122*J122","v":0},{"$f":"(G122*H122)+K122","v":0},null,{"$f":"IF(M122>0,L122+L122*M122,L122)","v":0},{"$error":"#DIV/0!"},{"$f":"N122-Q122-R122","v":0},{"$f":"L122*10%","v":0},0]
[null,"4.4.90.51.00","DER/PR",561100,"Pintura de ligação exclusive fornec. da emulsão","m²",null,null,null,null,{"$f":"I123*J123","v":0},0,null,0,{"$error":"#DIV/0!"},0,0,0]
[null,"4.4.90.51.00","DER/PR",570000,"C.B.U.Q.- aplicação, excl. fornec. do CAP (até 10.000 t)","t",null,null,null,null,{"$f":"I124*J124","v":0},0,null,0,{"$error":"#DIV/0!"},0,0,0]
[null,"4.4.90.51.00","DER/PR",589000,"Fornecimento de C.A.P.- 50/70","t",null,null,null,null,0,0,null,0,{"$error":"#DIV/0!"},0,0,0]
[null,"4.4.90.51.00","DER/PR",589190,"Fornecimento de emulsão asfaltica E.A.I. para imprimação","t",null,null,null,null,0,0,null,0,{"$error":"#DIV/0!"},0,0,0]
[null,"4.4.90.51.00","DER/PR",589520,"Fornecimento de emulsão asfáltica RR-2C","t",null,null,null,null,{"$f":"I127*J127","v":0},0,null,0,{"$error":"#DIV/0!"},0,0,0]
[null,"4.4.90.51.00","DER/PR",822000,"Faixa de sinalização Horizontal c/ tinta resina acrílica base solvente (0,0034m²/m²)","m²",null,null,null,null,{"$f":"I128*J128","v":0},0,null,0,{"$error":"#DIV/0!"},0,0,0]
[null,"4.4.90.51.00","DER/PR",820000,"Placa de Sinalização refletiva - SEM SUPORTE ","m²",null,null,null,null,{"$f":"I129*J129","v":0},0,null,0,{"$error":"#DIV/0!"},0,0,0]
[null,"4.4.90.51.00","DER/PR",821000,"Suporte de madeira 3\"x3\" p/ placa sinalização","Unid.",null,null,null,null,0,0,null,0,{"$error":"#DIV/0!"},0,0,0]
[null,"4.4.90.51.00","cotações","xxx","Ensaio de Massa Específica - In Situ - Método Frasco de Areia (Grau de Compactação) - Terraplenagem ","Unid.",null,null,null,null,0,0,null,0,{"$error":"#DIV/0!"},0,0,0]
[null,"4.4.90.51.00","cotações","xxx","Ensaio de Massa Específica - In Situ - Método Frasco de Areia (Grau de Compactação) - Reforço do Subleito ","Unid.",null,null,null,null,0,0,null,0,{"$error":"#DIV/0!"},0,0,0]
[null,"4.4.90.51.00","cotações","xxx","Ensaio de Massa Específica - In Situ - Método Frasco de Areia (Grau de Compactação) - Regularização e Compactação do Subleito","Unid.",null,null,null,null,0,0,null,0,{"$error":"#DIV/0!"},0,0,{"$f":"L133","v":0}]
[null,"4.4.90.51.00","cotações","xxx","Ensaio de Massa Específica - In Situ - Método Frasco de Areia (Grau de Compactação) - Sub-base","Unid.",null,null,null,null,0,0,null,0,{"$error":"#DIV/0!"},{"$f":"N134-Q134-R134","v":0},0,{"$f":"L134","v":0}]
[null,"4.4.90.51.00","cotações","xxx","Ensaio de Massa Específica - In Situ - Método Frasco de Areia (Grau de Compactação) - Base","Gb",null,null,null,null,0,0,null,0,{"$error":"#DIV/0!"},{"$f":"N135-Q135-R135","v":0},0,0]
[null,"4.4.90.51.00","cotações","xxx","Ensaio de Granulometria do Agregado","Unid.",null,null,null,null,0,0,null,0,{"$error":"#DIV/0!"},0,0,0]
[null,"4.4.90.51.00","cotações","composição","Topografia para locação dos serviços a executar e  aferição dos serviços executados, ver memorial descritivo","km",null,null,null,null,{"$f":"I137*J137","v":0},{"$f":"(G137*H137)+K137","v":0},null,{"$f":"IF(M137>0,L137+L137*M137,L137)","v":0},{"$error":"#DIV/0!"},{"$f":"N137-Q137-R137","v":0},0,{"$f":"L137","v":0}]
[null,"4.4.90.51.00","cotações","xxx","Ensaio de Controle de Taxa de Aplicação de Ligante Betuminoso","Unid.",null,null,null,null,0,0,null,0,{"$error":"#DIV/0!"},0,0,0]
[null,"4.4.90.51.00","cotações","xxx","Ensaio de Determinação da Taxa de Espalhamento do Agregado","Unid.",null,null,null,null,0,0,null,0,{"$error":"#DIV/0!"},0,0,0]
[null,"4.4.90.51.00","cotações","xxx","Ensaio de Percentagem de Betume - Misturas Betuminosas","Unid.",null,null,null,null,0,0,null,0,{"$error":"#DIV/0!"},0,0,0]
[null,"4.4.90.51.00","cotações","xxx","Ensaio de Densidade do Material Betuminoso","Unid.",null,null,null,null,0,0,null,0,{"$error":"#DIV/0!"},0,0,0]
[null,"4.4.90.51.00","cotações","xxx","Extração de corpo de prova de concreto asfáltico com sonda rotativa","Unid.",null,null,null,null,0,0,null,0,{"$error":"#DIV/0!"},0,0,0]
[null,"4.4.90.51.00","cotações","composição","Mobilização e desmobilização de equipamento e equipe para extração de corpos de prova da capa asfáltica.","gb",null,null,null,null,0,0,null,0,{"$error":"#DIV/0!"},0,0,0]
[null,"4.4.90.51.00",null,null,null,null,null,null,null,null,0,0,null,0,{"$error":"#DIV/0!"},0,0,0]
[null,"4.4.90.51.00",null,null,null,null,null,null,null,null,0,0,null,0,{"$error":"#DIV/0!"},0,0,0]
[null,"TOTAL",null,null,null,null,null,null,null,null,null,{"$f":"SUM(L115:L145)","v":0},{"$f":"M115","v":0},{"$f":"SUM(N115:N145)","v":0},{"$error":"#DIV/0!"},{"$f":"SUM(P115:P145)","v":0},{"$f":"SUM(Q115:Q145)","v":0},{"$f":"SUM(R115:R145)","v":0}]
[]
[]
[null,"Tipo \nRevestimento:",null,null,"PARALELEPIPEDO",null,null,null,"Custo Transp. (R$)",null,null,null,null,"Total c/ BDI (R$)",null,"SEAB","CONTRAPARTIDA (MUNICÍPIO)²"]
[null,"Natureza de despesa","INTITUIÇÃO","Código","Itens","Unid.","Valor unitário (R$)¹","Qtd.","QUANTIDADE (T)","UNITÁRIO","TOTAL","Total s/ BDI (R$)","BDI %","Total c/ BDI (R$)","%","R$","FINANCEIRA R$","FÍSICA/SERVIÇOS"]
[null,null,null,1,"SERVIÇOS PRELIMINARES"]
[null,"4.4.90.51.00","SINAPI",103689,"Placa de obra (para construção civil) em chapa galvanizada *n. 22*, adesivada, (3,00m x 1,50m)","m²",null,null,null,null,0,{"$f":"(G152*H152)+K152","v":0},null,{"$f":"IF(M152>0,L152+L152*M152,L152)","v":0},{"$f":"N152/N$182","v":{"$error":"#DIV/0!"}},{"$f":"N152-Q152-R152","v":0},{"$f":"L152*10%","v":0},0]
[null,"4.4.90.51.00","SINAPI",103694,"Suporte de madeira 3\"x3\" p/ placa DE OBRA","ud",null,null,null,null,0,{"$f":"(G153*H153)+K153","v":0},null,0,{"$f":"N153/N$182","v":{"$error":"#DIV/0!"}},0,0,0]
[null,null,null,2,"BASE E SUBBASE"]
[null,"4.4.90.51.00","DER",511100,"Regularização compactação. Subleito 100% PN","m³",null,null,null,null,{"$f":"I155*J155","v":0},{"$f":"(G155*H155)+K155","v":0},null,{"$f":"IF(M155>0,L155+L155*M155,L155)","v":0},{"$f":"N155/N$182","v":{"$error":"#DIV/0!"}},{"$f":"N155-Q155-R155","v":0},{"$f":"L155*10%","v":0},0]
[null,"4.4.90.51.00","DER",530200,"BRITA GRADUADA 4 A - BICA CORRIDA","m³",null,null,null,null,0,0,null,0,{"$error":"#DIV/0!"},0,0,0]
[null,"4.4.90.51.00","DER","Composição","Sub base BRITA GRADUADA 4 A  - BICA CORRIDA TRANSPORTE - DMT - XXX km","ton",null,null,null,null,0,0,null,0,{"$error":"#DIV/0!"},0,0,0]
[null,null,null,3,"REVESTIMENTO"]
[null,"4.4.90.51.00","DER",532500,"Colchão de pó de pedra para paralélepipedo ","m³",null,null,null,null,{"$f":"I159*J159","v":0},{"$f":"(G159*H159)+K159","v":0},null,{"$f":"IF(M159>0,L159+L159*M159,L159)","v":0},{"$f":"N159/N$182","v":{"$error":"#DIV/0!"}},{"$f":"N159-Q159-R159","v":0},{"$f":"L159*10%","v":0},0]
[null,"4.4.90.51.00","DER","Composição","Colchão de pó de pedra para paralélepipedo - TRANSPORTE - DMT - xxx km","ton",null,null,null,null,0,0,null,0,{"$error":"#DIV/0!"},0,0,0]
[null,"4.4.90.51.00","DER",535000,"Execução de pavimento em paralélepipedo, rejuntamento com pó de pedra","m²",null,null,null,null,0,0,null,0,{"$error":"#DIV/0!"},0,0,0]
[null,"4.4.90.51.00","DER","Composição","Execução de pavimento em paralélepipedo, rejuntamento com pó de pedra - TRANSPORTE - DMT - xxx km","ton",null,null,null,null,0,0,null,0,{"$error":"#DIV/0!"},0,0,0]
[null,"4.4.90.51.00","DER","SINAPI COMPOSIÇÃO 101169 ","Execução de pavimento em paralélepipedo, rejuntamento com argamassa traço 1:3 (cimento e areia) ","m²",null,null,null,null,0,0,null,0,{"$error":"#DIV/0!"},0,0,0]
[null,"4.4.90.51.00","DER","Composição","Execução de pavimento em paralélepipedo, rejuntamento com argamassa traço 1:3 (cimento e areia) - - TRANSPORTE - DMT - xxx km","ton",null,null,null,null,0,0,null,0,{"$error":"#DIV/0!"},0,0,0]
[null,null,null,4,"PAISAGISMO"]
[null,"4.4.90.51.00","DER",4114000,"Aterro com retroescavadeira, largura 0,8 - 1,5 m, profundidade ate´0,5 m, com solo argilo-arenoso Escavação, carga e transporte 1ª categoria DMT - 3000-4000","m³",null,null,null,null,{"$f":"I166*J166","v":0},{"$f":"(G166*H166)+K166","v":0},null,{"$f":"IF(M166>0,L166+L166*M166,L166)","v":0},{"$f":"N166/N$182","v":{"$error":"#DIV/0!"}},{"$f":"N166-Q166-R166","v":0},{"$f":"L166*10%","v":0},0]
[null,"4.4.90.51.00","DER",800000,"Plantio de gramas em placa - ENLEIVAMENTO","m²",null,null,null,null,0,0,null,0,{"$error":"#DIV/0!"},0,0,0]
[null,"4.4.90.51.00",null,5,"ENSAIOS TECNOLÓGICOS"]
[null,"4.4.90.51.00","cotações","xxx","Ensaio de Massa Específica - In Situ - Método Frasco de Areia (Grau de Compactação) - Terraplenagem ","unid",null,null,null,null,{"$f":"I169*J169","v":0},0,null,0,{"$f":"N169/N$182","v":{"$error":"#DIV/0!"}},0,0,0]
[null,"4.4.90.51.00","cotações","xxx","Ensaio de Massa Específica - In Situ - Método Frasco de Areia (Grau de Compactação) - Reforço do Subleito ","unid",null,null,null,null,0,0,null,0,{"$error":"#DIV/0!"},0,0,0]
[null,"4.4.90.51.00","cotações","xxx","Ensaio de Massa Específica - In Situ - Método Frasco de Areia (Grau de Compactação) - Regularização e Compactação do Subleito","unid",null,null,null,null,0,0,null,0,{"$error":"#DIV/0!"},0,0,0]
[null,"4.4.90.51.00","cotações","xxx","Ensaio de Massa Específica - In Situ - Método Frasco de Areia (Grau de Compactação) - Sub-base","unid",null,null,null,null,0,0,null,0,{"$error":"#DIV/0!"},0,0,0]
[null,"4.4.90.51.00","cotações","xxx","Ensaio de Massa Específica - In Situ - Método Frasco de Areia (Grau de Compactação) - Base","unid",null,null,null,null,0,0,null,0,{"$error":"#DIV/0!"},0,0,0]
[null,"4.4.90.51.00","cotações","xxx","Ensaio de Granulometria do Agregado","unid",null,null,null,null,{"$f":"I174*J174","v":0},{"$f":"(G174*H174)+K174","v":0},null,{"$f":"IF(M174>0,L174+L174*M174,L174)","v":0},{"$error":"#DIV/0!"},0,{"$f":"L174*10%","v":0},0]
[null,"4.4.90.51.00","cotações","composição","Topografia para locação dos serviços a executar e  aferição dos serviços executados, ver memorial descritivo","km",null,null,null,null,0,0,null,0,{"$error":"#DIV/0!"},0,0,0]
[null,"4.4.90.51.00",null,null,null,null,null,null,null,null,{"$f":"I176*J176","v":0},{"$f":"(G176*H176)+K176","v":0},null,{"$f":"IF(M176>0,L176+L176*M176,L176)","v":0},{"$error":"#DIV/0!"},0,{"$f":"L176*10%","v":0},0]
[null,"4.4.90.51.00"]
[null,"4.4.90.51.00"]
[null,"4.4.90.51.00"]
[null,"4.4.90.51.00"]
[null,"4.4.90.51.00",null,null,null,null,null,null,null,null,0,0,null,0,{"$error":"#DIV/0!"},0,0,0]
[null,"TOTAL",null,null,null,null,null,null,null,null,null,{"$f":"SUM(L152:L181)","v":0},{"$f":"M152","v":0},{"$f":"SUM(N152:N175)","v":0},{"$error":"#DIV/0!"},{"$f":"SUM(P152:P181)","v":0},{"$f":"SUM(Q152:Q181)","v":0},{"$f":"SUM(R152:R181)","v":0}]
[null,"Obs: se necessário reforço do subleito e leito adicionar as operações faltantes"]
[]
[null,"Tipo \nRevestimento:",null,null,"PAVERS",null,null,null,"Custo Transp. (R$)",null,null,null,null,"Total c/ BDI (R$)",null,"SEAB","CONTRAPARTIDA (MUNICÍPIO)²"]
[null,"Natureza de despesa","INTITUIÇÃO","Código","Itens","Unid.","Valor unitário (R$)¹","Qtd.","QUANTIDADE (T)","UNITÁRIO","TOTAL","Total s/ BDI (R$)","BDI %","Total c/ BDI (R$)","%","R$","FINANCEIRA R$","FÍSICA/SERVIÇOS"]
[null,"4.4.90.51.00","SINAPI",103689,"Placa de obra (para construção civil) em chapa galvanizada *n. 22*, adesivada, (3,00m x 1,50m)","m²",null,null,null,null,0,{"$f":"(G187*H187)+K187","v":0},null,{"$f":"IF(M187>0,L187+L187*M187,L187)","v":0},{"$f":"N187/N$26","v":{"$error":"#DIV/0!"}},{"$f":"N187-Q187-R187","v":0},{"$f":"L187*10%","v":0},0]
[null,"4.4.90.51.00","SINAPI",103694,"Suporte de madeira 3\"x3\" p/ placa DE OBRA","ud",null,null,null,null,0,{"$f":"(G188*H188)+K188","v":0},null,0,{"$error":"#DIV/0!"},0,0,0]
[null,"4.4.90.51.00","DER/PR",520100,"Escavação e carga mat. jazida 1a. cat. (reaterro)","m³",null,null,null,null,0,0,null,0,{"$error":"#DIV/0!"},0,0,0]
[null,"4.4.90.51.00","DER/PR",411000,"Esc. carga e transp. 1a. cat.(bota fora)","m³",null,null,null,null,0,0,null,0,{"$error":"#DIV/0!"},0,0,0]
[null,"4.4.90.51.00","DER/PR",511100,"Regularização compac.subleito 100% PN","m²",null,null,null,null,0,0,null,0,{"$error":"#DIV/0!"},0,0,0]
[null,"4.4.90.51.00","DER/PR",544000,"Solo cimento mist. pista (4%) 100% PN (Sub-Base 15 cm) .","m³",null,null,null,null,{"$f":"I192*J192","v":0},0,null,0,{"$error":"#DIV/0!"},0,0,0]
[null,"4.4.90.51.00","DER/PR",544000,"Solo cimento mist. pista (4%) 100% PN (Base 15 cm)","m³",null,null,null,null,{"$f":"I193*J193","v":0},0,null,0,{"$error":"#DIV/0!"},0,0,0]
[null,"4.4.90.51.00","DER/PR",810250,"Meio-fio de concreto tipo 3","m",null,null,null,null,0,0,null,0,{"$error":"#DIV/0!"},0,0,0]
[null,"4.4.90.51.00","DER/PR",561100,"Pintura de ligação exclusive fornec. da emulsão","m²",null,null,null,null,0,0,null,0,{"$error":"#DIV/0!"},0,0,0]
[null,"4.4.90.51.00","DER/PR",589420,"Fornecimento de emulsão asfáltica RR-1C","t",null,null,null,null,0,0,null,0,{"$error":"#DIV/0!"},0,0,0]
[null,"4.4.90.51.00","DER/PR",534908," Pavimento c/ bloco intertravado concreto (Paver-cor natural) e= 8cm, incl. colchão areia","m²",null,null,null,null,{"$f":"I197*J197","v":0},0,null,0,{"$error":"#DIV/0!"},0,0,0]
[null,"4.4.90.51.00","DER/PR",534908,"Transporte do paver","ton.",null,null,null,null,{"$f":"I198*J198","v":0},0,null,0,{"$error":"#DIV/0!"},0,0,0]
[null,"4.4.90.51.00","DER/PR",534908,"Transporte da areia","ton.",null,null,null,null,{"$f":"I199*J199","v":0},0,null,0,{"$error":"#DIV/0!"},0,0,0]
[null,"4.4.90.51.00","DER/PR",800000,"Enleivamento","m²",null,null,null,null,{"$f":"I200*J200","v":0},0,null,0,{"$error":"#DIV/0!"},0,0,0]
[null,"4.4.90.51.00","cotações","xxx","Ensaio de Massa Específica - In Situ - Método Frasco de Areia (Grau de Compactação) - Terraplenagem ","unid",null,null,null,null,{"$f":"I201*J201","v":0},0,null,0,{"$error":"#DIV/0!"},0,0,0]
[null,"4.4.90.51.00","cotações","xxx","Ensaio de Massa Específica - In Situ - Método Frasco de Areia (Grau de Compactação) - Reforço do Subleito ","unid",null,null,null,null,0,0,null,0,{"$error":"#DIV/0!"},0,0,0]
[null,"4.4.90.51.00","cotações","xxx","Ensaio de Massa Específica - In Situ - Método Frasco de Areia (Grau de Compactação) - Regularização e Compactação do Subleito","unid",null,null,null,null,0,0,null,0,{"$error":"#DIV/0!"},0,0,0]
[null,"4.4.90.51.00","cotações","xxx","Ensaio de Massa Específica - In Situ - Método Frasco de Areia (Grau de Compactação) - Sub-base","unid",null,null,null,null,0,0,null,0,{"$error":"#DIV/0!"},0,0,0]
[null,"4.4.90.51.00","cotações","xxx","Ensaio de Massa Específica - In Situ - Método Frasco de Areia (Grau de Compactação) - Base","unid",null,null,null,null,0,0,null,0,{"$error":"#DIV/0!"},0,0,0]
[null,"4.4.90.51.00","cotações","xxx","Ensaio de Granulometria do Agregado","unid",null,null,null,null,0,0,null,0,{"$error":"#DIV/0!"},0,0,0]
[null,"4.4.90.51.00","cotações","composição","Topografia para locação dos serviços a executar e  aferição dos serviços executados, ver memorial descritivo","KM",null,null,null,null,0,0,null,0,{"$error":"#DIV/0!"},0,0,0]
[null,"4.4.90.51.00",null,null,null,null,null,null,null,null,0,0,null,0,{"$error":"#DIV/0!"},0,0,0]
[null,"4.4.90.51.00"]
[null,"4.4.90.51.00"]
[null,"4.4.90.51.00"]
[null,"4.4.90.51.00"]
[null,"4.4.90.51.00"]
[null,"4.4.90.51.00"]
[null,"4.4.90.51.00"]
[null,"4.4.90.51.00"]
[null,"4.4.90.51.00",null,null,null,null,null,null,null,null,0,0,null,0,{"$error":"#DIV/0!"},0,0,0]
[null,"TOTAL",null,null,null,null,null,null,null,null,null,{"$f":"SUM(L187:L217)","v":0},{"$f":"M187","v":0},{"$f":"SUM(N187:N217)","v":0},{"$error":"#DIV/0!"},{"$f":"SUM(P187:P217)","v":0},{"$f":"SUM(Q187:Q217)","v":0},{"$f":"SUM(R187:R217)","v":0}]
[null,"Obs: se necessário reforço do subleito e leito adicionar as operações faltantes, se necssário substituir e ou excluir  o reforço da base e ou subbase com solo cimento"]
[]
[null,"Tipo \nRevestimento:",null,null,"PAVIMENTO RÍGIDO DE CONCRETO",null,null,null,"Custo Transp. (R$)",null,null,null,null,"Total c/ BDI (R$)",null,"SEAB","CONTRAPARTIDA (MUNICÍPIO)²"]
[null,"Natureza de despesa","INTITUIÇÃO","Código","Itens","Unid.","Valor unitário (R$)¹","Qtd.","QUANTIDADE (T)","UNITÁRIO","TOTAL","Total s/ BDI (R$)","BDI %","Total c/ BDI (R$)","%","R$","FINANCEIRA R$","FÍSICA/SERVIÇOS"]
[null,"4.4.90.51.00","SINAPI",103689,"Placa de obra (para construção civil) em chapa galvanizada *n. 22*, adesivada, (3,00m x 1,50m)","ud",null,null,null,null,{"$f":"I223*J223","v":0},{"$f":"(G223*H223)+K223","v":0},null,{"$f":"IF(M223>0,L223+L223*M223,L223)","v":0},{"$f":"N223/N$110","v":{"$error":"#DIV/0!"}},{"$f":"N223-Q223-R223","v":0},{"$f":"L223*10%","v":0},0]
[null,"4.4.90.51.00","SINAPI",103694,"Suporte de madeira 3\"x3\" p/ placa DE OBRA","m²",null,null,null,null,0,0,null,0,{"$f":"N224/N$110","v":{"$error":"#DIV/0!"}},0,{"$f":"L224*10%","v":0},0]
[null,"4.4.90.51.00","DER/PR",50000,"Escarificação,regularização e compactação subleito","m²",null,null,null,null,0,0,null,0,{"$error":"#DIV/0!"},0,0,0]
[null,"4.4.90.51.00","DER/PR",511100,"Regularização compactação. Subleito 100% PN","m²",null,null,null,null,0,0,null,0,{"$error":"#DIV/0!"},0,0,0]
[null,"4.4.90.51.00","DER/PR",530200,"BRITA GRADUADA 4 A - BICA CORRIDA","m³",null,null,null,null,0,0,null,0,{"$error":"#DIV/0!"},0,0,0]
[null,"4.4.90.51.00","DER/PR","Composição","Sub base BRITA GRADUADA 4 A  - BICA CORRIDA TRANSPORTE - DMT ...km","ton.",null,null,null,null,0,0,null,0,{"$error":"#DIV/0!"},0,0,0]
[null,"4.4.90.51.00","DER/PR",401160,"Regularização, conformação e compactação ","m2",null,null,null,null,0,0,null,0,{"$error":"#DIV/0!"},0,0,0]
[null,"4.4.90.51.00","DER/PR",531350,"Macadame seco britado preenchido com bica corrida","m³",null,null,null,null,0,0,null,0,{"$error":"#DIV/0!"},0,0,0]
[null,"4.4.90.51.00","DER/PR",560100,"Imprimação impermeabilizante, exclusive fornecimento da emulsão","m²",null,null,null,null,{"$f":"I231*J231","v":0},0,null,0,{"$error":"#DIV/0!"},0,0,0]
[null,"4.4.90.51.00","DER/PR",561100,"Pintura de ligação exclusive fornec. da emulsão","m²",null,null,null,null,{"$f":"I232*J232","v":0},0,null,0,{"$error":"#DIV/0!"},0,0,0]
[null,"4.4.90.51.00","DER/PR",570000,"C.B.U.Q.- aplicação, excl. fornec. do CAP (até 10.000 t)","t",null,null,null,null,{"$f":"I233*J233","v":0},0,null,0,{"$error":"#DIV/0!"},0,0,0]
[null,"4.4.90.51.00","DER/PR",589000,"Fornecimento de C.A.P.- 50/70","t",null,null,null,null,0,0,null,0,{"$error":"#DIV/0!"},0,0,0]
[null,"4.4.90.51.00","DER/PR",589190,"Fornecimento de emulsão asfaltica E.A.I. para imprimação","t",null,null,null,null,0,0,null,0,{"$error":"#DIV/0!"},0,0,0]
[null,"4.4.90.51.00","DER/PR",589520,"Fornecimento de emulsão asfáltica RR-2C","t",null,null,null,null,{"$f":"I236*J236","v":0},0,null,0,{"$error":"#DIV/0!"},0,0,0]
[null,"4.4.90.51.00","DER/PR",822000,"Faixa de sinalização Horizontal c/ tinta resina acrílica base solvente (0,0034m²/m²)","m²",null,null,null,null,{"$f":"I237*J237","v":0},0,null,0,{"$error":"#DIV/0!"},0,0,0]
[null,"4.4.90.51.00","DER/PR","820000A","Placa de Sinalização refletiva - SEM SUPORTE ","m²",null,null,null,null,{"$f":"I238*J238","v":0},0,null,0,{"$error":"#DIV/0!"},0,0,0]
[null,"4.4.90.51.00","DER/PR",821000,"Suporte de madeira 3\"x3\" p/ placa sinalização","Unid.",null,null,null,null,0,0,null,0,{"$error":"#DIV/0!"},0,0,0]
[null,"4.4.90.51.00","cotações","xxx","Ensaio de Massa Específica - In Situ - Método Frasco de Areia (Grau de Compactação) - Terraplenagem ","Unid.",null,null,null,null,0,0,null,0,{"$error":"#DIV/0!"},0,0,0]
[null,"4.4.90.51.00","cotações","xxx","Ensaio de Massa Específica - In Situ - Método Frasco de Areia (Grau de Compactação) - Reforço do Subleito ","Unid.",null,null,null,null,0,0,null,0,{"$error":"#DIV/0!"},0,0,0]
[null,"4.4.90.51.00","cotações","xxx","Ensaio de Massa Específica - In Situ - Método Frasco de Areia (Grau de Compactação) - Regularização e Compactação do Subleito","Unid.",null,null,null,null,0,0,null,0,{"$error":"#DIV/0!"},0,0,{"$f":"L242","v":0}]
[null,"4.4.90.51.00","cotações","xxx","Ensaio de Massa Específica - In Situ - Método Frasco de Areia (Grau de Compactação) - Sub-base","Unid.",null,null,null,null,0,0,null,0,{"$error":"#DIV/0!"},{"$f":"N243-Q243-R243","v":0},0,{"$f":"L243","v":0}]
[null,"4.4.90.51.00","cotações","xxx","Ensaio de Massa Específica - In Situ - Método Frasco de Areia (Grau de Compactação) - Base","Gb",null,null,null,null,0,0,null,0,{"$error":"#DIV/0!"},{"$f":"N244-Q244-R244","v":0},0,0]
[null,"4.4.90.51.00","cotações","xxx","Ensaio de Granulometria do Agregado","Unid.",null,null,null,null,0,0,null,0,{"$error":"#DIV/0!"},0,0,0]
[null,"4.4.90.51.00","cotações","composição","Topografia para locação dos serviços a executar e  aferição dos serviços executados, ver memorial descritivo","km",null,null,null,null,0,0,null,0,{"$error":"#DIV/0!"},0,0,0]
[null,"4.4.90.51.00",null,null,null,null,null,null,null,null,0,0,null,0,{"$error":"#DIV/0!"},0,0,0]
[null,"4.4.90.51.00"]
[null,"4.4.90.51.00"]
[null,"4.4.90.51.00"]
[null,"4.4.90.51.00"]
[null,"4.4.90.51.00"]
[null,"4.4.90.51.00",null,null,null,null,null,null,null,null,{"$f":"I253*J253","v":0},{"$f":"(G253*H253)+K253","v":0},null,{"$f":"IF(M253>0,L253+L253*M253,L253)","v":0},{"$f":"N253/N$110","v":{"$error":"#DIV/0!"}},{"$f":"N253-Q253-R253","v":0},0,{"$f":"L253","v":0}]
[null,"TOTAL",null,null,null,null,null,null,null,null,null,{"$f":"SUM(L223:L253)","v":0},{"$f":"M223","v":0},{"$f":"SUM(N223:N253)","v":0},{"$f":"N254/N$110","v":{"$error":"#DIV/0!"}},{"$f":"SUM(P223:P253)","v":0},{"$f":"SUM(Q223:Q253)","v":0},{"$f":"SUM(R223:R253)","v":0}]
[null,"Obs: se necessário reforço do subleito e leito adicionar as operações faltantes"]

{"sheet":"Municipios","index":12,"n_rows":401,"n_cols":9,"rows_kept":401,"cut":false,"hidden":true,"merged":[]}
["Município","Índice IPARDES 2022","Contrapartida Mínima","Núcleo Regional","CNPJ","Credor","Endereço Prefeitura","Cep Prefeitura","Prefeito"]
["Abatiá",0.75557039609927878,{"$f":"IF(B2<0.5,\"1%\",(IF(B2<0.7,\"5%\",(IF(B2>0.7001,\"10%\",\"ERRADO\")))))","v":"10%"},"Cornélio Procópio","75.743.567/0001-57",214799,"Av. João Carvalho Mello, 135, Centro","86.460-000","Sonia Aparecida de Souza Chaves"]
["Adrianópolis",0.69505186206477942,{"$f":"IF(B3<0.5,\"1%\",(IF(B3<0.7,\"5%\",(IF(B3>0.7001,\"10%\",\"ERRADO\")))))","v":"5%"},"Curitiba","76.105.642/0001-17",102344,"Av. Marechal Mascarenhas de Morães, 115, Centr","83.490-000","Vandir de Oliveira Rosa"]
["Agudos do Sul",0.61475600286720866,"5%","Curitiba","76.105.667/0001-10",147555,"Av. Brasil, 38, Centro","83.850-000","Genezio Gonçalves da Luz"]
["Almirante Tamandaré",0.62592222354808857,"5%","Curitiba","76.105.659/0001-74",119789,"Av. Emílio Jonhson, 360, Centro","83.501-000","Camilo Daniel Lovato"]
["Altamira do Paraná",0.74494479954895543,"10%","Campo Mourão","78.069.143/0001-47",119790,"R. Cantú, 180, Centro","85.280-000","Elza Aparecida da Silva"]
["Alto Paraíso",0.75700084919073429,"10%","Umuarama","95.640.736/0001-30",119792,"Av. Pedro Amaro dos Santos, 900, Centro","87.528-000","Luiz Eliseu dos Santos"]
["Alto Paraná",0.68877462205909723,"5%","Paranavaí","76.279.967/0001-16",119793,"R. José Anchieta, 1641, Centro","87.750-000","Claudemir Joia Pereira"]
["Alto Piquiri",0.71459994843346364,"10%","Umuarama","76.247.352/0001-08",122329,"R. Santos Dumont, 341, Centro","87.580-000","Giovane Mendes de Carvalho"]
["Altônia",0.75920039754839908,"10%","Umuarama","81.478.059/0001-91",119791,"R. Rui Barbosa, 815, Centro","87.550-000","Diego Jardim Pergo"]
["Alvorada do Sul",0.74697633600698554,"10%","Londrina","75.132.860/0001-88",119794,"Praça Prefeito Antonio de Souza Lemos, 32, Centro","86.150-000","Marcos Antonio Gasparelli"]
["Amaporã",0.71318268533734708,"10%","Paranavaí","75.475.038/0001-10",119795,"R. Sete de Setembro, 21, Centro","87.850-000","Marcos Marin"]
["Ampére",0.80232879915485389,"10%","Francisco Beltrão","77.817.054/0001-79",122333,"R. Maringá, 279, Centro","85.640-000","Douglas Diems Morockoski Potrich"]
["Anahy",0.7767573362066279,"10%","Cascavel","95.594.800/0001-94",147565,"R. Vereador Leonardo Aparecido Dobicz, 591, Centro","85.425-000","Arilson Batista de Souza"]
["Andirá",0.70642879036144135,"10%","Cornélio Procópio","76.235.761/0001-94",119796,"R. Mauro Cardoso de Oliveira, 190, Jardim Vesper","86.380-000","Ednyra Aparecida Sanches Bueno de Godoy Ferreira"]
["Ângulo",0.78620065651691073,"10%","Maringá","95.642.286/0001-15",122334,"Av. Valério Osmar Estevão, 72, Centro","86.755-000","Alexandre de Sousa Profeta"]
["Antonina",0.64103441424407914,"5%","Paranaguá","76.022.516/0001-07",119797,"R. Xv de Novembro, 150, Centro","83.370-000","Rozane Maristela Benedetti Osaki"]
["Antônio Olinto",0.71636449593687279,"10%","União da Vitória","76.020.460/0001-43",122335,"Av. Reinaldo Machiavelli, 202, Centro","83.980-000","Fabio Staniszewski Machiavelli"]
["Apucarana",0.78430913827426441,"10%","Apucarana","75.771.253/0001-68",119798,"Praça Centro Cívico José de Oliveira Rosa, 25, Centro","86.800-235","Rodolfo Mota da Silva"]
["Arapongas",0.81973294580938327,"10%","Apucarana","76.958.966/0001-06",119799,"R. Garças, 750, Centro","86.700-285","Rafael Felipe Cita"]
["Arapoti",0.79147991679128016,"10%","Ponta Grossa","75.658.377/0001-31",119800,"R. Placídio Leite, 148, Centro Cívico","84.990-000","Irani José Barros"]
["Arapuã",0.74819221769247812,"10%","Ivaiporã","01.612.388/0001-44",119801,"R. Presidente Café Filho, 1410, Recanto Feliz","86.884-000","Manoel Salvador"]
["Araruna",0.78736606409070786,"10%","Campo Mourão","75.359.760/0001-99",119802,"Praça Nossa Senhora do Rocio, 390, Centro","87.260-000","Gustavo França dos Santos"]
["Araucária",0.82557003198348333,"10%","Curitiba","76.105.535/0001-99",119803,"R. Pedro Druszcz, 111, Centro","83.702-080","Luiz Gustavo Botogoski"]
["Ariranha do Ivaí",0.79674080991056329,"10%","Ivaiporã","01.612.453/0001-31",119804,"R. Miguel Verenka, 14, Centro","86.880-000","Thiago Epifanio da Silva"]
["Assaí",0.76534303455059838,"10%","Cornélio Procópio","76.290.709/0001-30",119805,"Av. Rio de Janeiro, 720, Centro","86.220-000","Michel Angelo Bomtempo"]
["Assis Chateaubriand",0.76234811758342913,"10%","Toledo","76.208.479/0001-18",119806,"Av. Cívica, S/N","85.935-000","Marcel Henrique Micheletto"]
["Astorga",0.76889257225075047,"10%","Maringá","75.743.377/0001-30",119807,"Av. Doutor José Soares de Azevedo, 48, Centro","86.730-000","Suzie Aparecida Pucillo Zanatta"]
["Atalaia",0.6846285996120911,"5%","Maringá","75.731.018/0001-62",122336,"Praça José Bento dos Santos, 02, Centro","87.630-000","Carlos Eduardo Armelin Mariani"]
["Balsa Nova",0.69358039305014163,"5%","Curitiba","76.105.527/0001-42",147583,"Av. Brasil, 665, Centro","83.650-000","Clever Aparecido Iavolski Poletto"]
["Bandeirantes",0.73902372773546698,"10%","Cornélio Procópio","76.235.753/0001-48",147584,"R. Frei Rafael Proner, 1457, Centro","86.360-000","Jaelson Ramalho Matta"]
["Barbosa Ferraz",0.7279074604881961,"10%","Campo Mourão","76.950.062/0001-26",119808,"Av. Presidente Kennedy, 363, Centro","86.960-000","Carlos Rosa Alves"]
["Barra do Jacaré",0.70343327854735793,"10%","Jacarezinho","76.407.568/0001-93",119809,"R. Rui Barbosa, 96, Centro","86.385-000","Luiz Fabiano Zanatta"]
["Barracão",0.74562483846082284,"10%","Francisco Beltrão","75.666.131/0001-01",122337,"R. São Paulo, 235, Centro","85.700-000","Jorge Luiz Santin"]
["Bela Vista da Caroba",0.71352472229436226,"10%","Francisco Beltrão","01.612.441/0001-07",119810,"Av. Rio de Janeiro, 1021, Centro","85.745-000","Gelson Maffi"]
["Bela Vista do Paraíso",0.72617810156212614,"10%","Londrina","76.245.067/0001-58",119811,"R. Joaquim Ladeia, 150, Centro","86.130-000","Fabricio Pastore"]
["Bituruna",0.74669591372460831,"10%","União da Vitória","81.648.859/0001-03",119812,"Av. Doutor Oscar Geyer, 489, Centro","84.640-000","Rodrigo Rossoni"]
["Boa Esperança",0.75493491037421956,"10%","Campo Mourão","76.217.017/0001-67",119813,"Av. Brasil, 361, Centro","87.390-000","Joel Celso Buscariol"]
["Boa Esperança do Iguaçu",0.74941222175492295,"10%","Dois Vizinhos","95.589.255/0001-48",122338,"R. Demétrio Pinzon, 16, Centro","85.680-000","Givanildo Trumi"]
["Boa Ventura de São Roque",0.72232678391250837,"10%","Pitanga","01.612.906/0001-20",119814,"R. Moisés Miranda, 422, Centro","85.225-000","Nestor Kenear"]
["Boa Vista da Aparecida",0.74930680673009942,"10%","Cascavel","78.121.985/0001-09",122339,"Av. Cícero Barbosa Sobrinho, 1190, Centro","85.780-000","Eduardo José Henrichs"]
["Bocaiúva do Sul",0.63690490468379612,"5%","Curitiba","76.105.592/0001-78",133465,"R. Carlos Alberto Ribeiro, 21, Centro","83.450-000","João de Lima"]
["Bom Jesus do Sul",0.71278477316191224,"10%","Francisco Beltrão","01.612.443/0001-04",119815,"Av. Ipiranga, 72, Centro","85.708-000","Helio José Surdi"]
["Bom Sucesso",0.73035693255316814,"10%","Apucarana","75.771.261/0001-04",120030,"Praça Paraná, 77, Centro","86.940-000","Rosana Ferreira Lopes"]
["Bom Sucesso do Sul",0.76714545451065075,"10%","Pato Branco","80.874.100/0001-86",119816,"R. Cândido Merlo, 290, Centro","85.515-000","Maico Diogo Faversani"]
["Borrazópolis",0.76168538387160589,"10%","Ivaiporã","75.740.829/0001-20",119817,"Praça da República, 28, Centro","86.925-000","Adilson Lucchetti"]
["Braganey",0.80516044431753608,"10%","Cascavel","78.121.902/0001-73",119818,"Av. Arthur Pereira, 860, Centro","85.430-000","Valdir Zielinski"]
["Brasilândia do Sul",0.67055130876947944,"5%","Umuarama","95.640.520/0001-75",119819,"Av. Adão Arcângelo Dal Bem, 882, Centro","87.595-000","Alex Antonio Cavalcante"]
["Cafeara",0.79694390596124542,"10%","Londrina","75.845.545/0001-06",119820,"Av. Brasil, 188, Centro","86.640-000","Elton Fábio Lazaretti"]
["Cafelândia",0.8525203522253153,"10%","Cascavel","78.121.878/0001-72",119821,"R. Vereador Luiz Picolli, 299, Centro","85.415-000","Junior Motter"]
["Cafezal do Sul",0.73417075590365821,"10%","Umuarama","95.640.652/0001-05",119822,"Av. Ítalo Orcelli, 604, Centro","87.565-000","Pedro Minoru Inoue"]
["Califórnia",0.71722281615193773,"10%","Apucarana","75.771.279/0001-06",119823,"R. 17 de Dezembro, 149, Centro","86.820-000","Paulo Sérgio Chileide"]
["Cambará",0.73716358819225769,"10%","Jacarezinho","75.442.756/0001-90",122340,"Av. Brasil, 1229, Centro","86.390-000","Walcir Joaquim"]
["Cambé",0.77205684532657448,"10%","Londrina","75.732.057/0001-84",122341,"R. Otto Gaertner, 65, Centro","86.181-900","Conrado Angelo Scheller"]
["Cambira",0.80737069176020693,"10%","Apucarana","75.771.287/0001-52",122342,"Av. Canadá, 320, Centro","86.890-000","Ana Lúcia de Oliveira"]
["Campina da Lagoa",0.71353047514565471,"10%","Campo Mourão","76.950.070/0001-72",119824,"R. Vereador Homero Franco, 851, Centro","87.345-000","Gianny José Gracioso Bento"]
["Campina do Simão",0.69820548198520826,"5%","Guarapuava","01.611.489/0001-09",119825,"R. José Pedro Seleme, 3516, Centro","85.148-000","André Junior de Paula"]
["Campina Grande do Sul",0.72599707402557578,"10%","Curitiba","76.105.600/0001-86",147471,"Praça Bento Munhoz da Rocha Neto, 30, Centro","83.430-000","Luiz Carlos Assunção"]
["Campo Bonito",0.7910606861406958,"10%","Cascavel","80.869.621/0001-45",119826,"R. Prefeito Darcísio Roberto Grassi, 252, Centro","85.450-000","Mario Weber"]
["Campo do Tenente",0.69266969045660487,"5%","Curitiba","76.002.658/0001-02",147618,"Av. Miguel Komarchewski, 900, Centro","83.870-000","Weverton Willian Vizentin"]
["Campo Largo",0.7756588543029751,"10%","Curitiba","76.105.618/0001-88",119827,"Av. Padre Natal Pigatto, 925, Vila Bancária","83.601-630","Mauricio Roberto Rivabem"]
["Campo Magro",0.70377430873235103,"10%","Curitiba","01.607.539/0001-76",131883,"Rodovia Gumercindo Boza, 2823, Centro","83.535-000","Rilton Boza"]
["Campo Mourão",0.80822639554187459,"10%","Campo Mourão","75.904.524/0001-06",119828,"R. Brasil, 1487, Centro","87.301-140","João Douglas Fabrício"]
["Cândido de Abreu",0.70144597591717517,"10%","Pitanga","76.175.926/0001-80",120031,"Av. Paraná, 3, Centro","84.470-000","Renan Menck Romanichen"]
["Candói",0.75860592604137567,"10%","Guarapuava","95.684.478/0001-94",119829,"R. Xv de Novembro, 1761, Centro","85.140-000","Aldoino Goldoni Filho"]
["Cantagalo",0.69487412702051932,"5%","Guarapuava","78.279.981/0001-45",119830,"R. Cinderela, 379, Centro","85.160-000","João Konjunski"]
["Capanema",0.77582425106467545,{"$f":"IF(B67<0.5,\"1%\",(IF(B67<0.7,\"5%\",(IF(B67>0.7001,\"10%\",\"ERRADO\")))))","v":"10%"},"Francisco Beltrão","75.972.760/0001-60",119831,"Av. Pedro Viriato Parigot de Souza, 1080, Cent","85.760-000","Neivor Kessler"]
["Capitão Leônidas Marques",0.7926668024209903,"10%","Cascavel","76.208.834/0001-59",122343,"Av. Trancredo Neves, 502, Centro","85.790-000","Maxwell Scapini"]
["Carambeí",0.83115106626037472,"10%","Ponta Grossa","01.613.765/0001-60",119832,"Av. do Ouro , 1335, Nova Carambeí","84.145-000","Elisangela Pedroso de Oliveira Nunes"]
["Carlópolis",0.70969052284695211,"10%","Jacarezinho","76.965.789/0001-87",119833,"R. Benedito Salles, 1060, Centro","86.420-000","Nilton Douglas de Meira"]
["Cascavel",0.83295179810232922,"10%","Cascavel","76.208.867/0001-07",119834,"R. Paraná, 5000, Centro","85.810-011","Renato da Silva"]
["Castro",0.80606672687411596,"10%","Ponta Grossa","77.001.311/0001-08",119835,"Praça Pedro Kaled, 22, Centro","84.165-540","Reinaldo Cardoso"]
["Catanduvas",0.72444694221991901,"10%","Cascavel","76.208.842/0001-03",119836,"Av. dos Pioneiros, 500, Centro","85.470-000","Ademar Luiz Burckhardt"]
["Centenário do Sul",0.77279777524379278,"10%","Londrina","75.845.503/0001-67",122344,"Praça Aurélio Basso, 378, Centro","86.630-000","Melquiades Tavian Junior"]
["Cerro Azul",0.6200867212095541,"5%","Curitiba","76.105.626/0001-24",214805,"R. Barão do Cerro Azul, 63, Centro","83.570-000","Edson Cordeiro do Nascimento"]
["Céu Azul",0.78939491054792743,"10%","Cascavel","76.206.473/0001-01",119837,"Av. Nilo Umberto Deitos, 1426, Centro","85.840-000","Laurindo Sperotto"]
["Chopinzinho",0.77628559853271717,"10%","Pato Branco","76.995.414/0001-60",119838,"R. Miguel Procópio Kurpel, 3811, São Miguel","85.560-000","Álvaro Dênis Ceni Scolaro"]
["Cianorte",0.81997444184265234,"10%","Cianorte","76.309.806/0001-28",122345,"Praça Centro Cívico, 100, Centro Cívico","87.200-000","Marco Antonio Franzato"]
["Cidade Gaúcha",0.78454513131987191,"10%","Cianorte","75.377.200/0001-67",122346,"R. Juscelino Kubitschek de Oliveira, 2394, Centro","87.820-000","Alexandre Lucena"]
["Clevelândia",0.71004109030009543,"10%","Pato Branco","76.161.199/0001-00",119839,"Praça Getúlio Vargas, 71, Centro","85.530-000","Rafaela Martins Losi"]
["Colombo",0.74609869870649126,"10%","Curitiba","76.105.634/0001-70",133441,"R. Xv de Novembro, 105, Centro","83.414-000","Helder Luiz Lazarotto"]
["Colorado",0.77873391225673994,"10%","Maringá","76.970.326/0001-03",122347,"Av. Brasil, 1250, Centro","86.690-000","Rosimeire Chiquim"]
["Congonhinhas",0.68238382367676309,"5%","Cornélio Procópio","75.825.828/0001-88",147436,"Av. Doutor David Xavier da Silva, 266, Centro","86.320-000","José Olegario Ribeiro Lopes"]
["Conselheiro Mairinck",0.71337516732988393,"10%","Jacarezinho","75.968.412/0001-19",122412,"Praça Otacílio Ferreira, 82, Centro","86.480-000","Joselei Aparecido de Carvalho"]
["Contenda",0.66651655569079027,"5%","Curitiba","76.105.519/0001-04",147484,"Av. João Franco, 400, Centro","83.730-000","Antonio Adamir Digner"]
["Corbélia",0.76022826779592723,"10%","Cascavel","76.208.826/0001-02",133427,"R. Amor Perfeito, 1616, Centro","85.420-000","Thiago Daross Stefanello"]
["Cornélio Procópio",0.78064283454314243,"10%","Cornélio Procópio","76.331.941/0001-70",119840,"Av. Minas Gerais, 301, Centro","86.300-000","Raphael Dias Sampaio"]
["Coronel Domingos Soares",0.72335236226574817,"10%","Pato Branco","01.614.415/0001-18",119841,"Av. Araucária, 3120, Centro","85.557-000","Maria Antonieta de Araujo Almeida"]
["Coronel Vivida",0.75901279443353076,"10%","Pato Branco","76.995.455/0001-56",119842,"Praça Angelo Mezzomo, S/N, Centro","85.550-000","Anderson Manique Barreto"]
["Corumbataí do Sul",0.6985636187372154,"5%","Campo Mourão","80.888.662/0001-89",119843,"R. Tocantins, 153, Centro","86.970-000","Alexandre Donato"]
["Cruz Machado",0.70545803494836823,"10%","União da Vitória","76.339.688/0001-09",119846,"Av. Vitória, 251, Centro","84.620-000","Carlos Nowak"]
["Cruzeiro do Iguaçu",0.76084035522233184,"10%","Dois Vizinhos","95.589.230/0001-44",119844,"Av. 13 de Maio, 906, Centro","85.598-000","Reni Kovalski"]
["Cruzeiro do Oeste",0.75044744695325116,"10%","Umuarama","76.381.854/0001-27",119845,"R. João Ormindo de Resende, 686, Centro","87.400-000","Armando Cerci Junior"]
["Cruzeiro do Sul",0.69153600939316551,"5%","Paranavaí","75.731.034/0001-55",122348,"Av. Gastão Vidigal, 600, Centro","87.650-000","Marcos César Sugigan"]
["Cruzmaltina",0.7739679202745734,"10%","Ivaiporã","01.615.393/0001-00",119847,"Av. Padre Gualter Farias Negrão, 40, Centro","86.855-000","Maurício Bueno de Camargo"]
["Curitiba",0.90133007415909272,"10%","Curitiba","76.417.005/0001-86",14,"Palácio 29 de Março - Av. Cândido de Abreu, 81","80.530-908","Eduardo Pimentel Slaviero"]
["Curiúva",0.70085411639745399,"10%","Jacarezinho","76.167.725/0001-30",119849,"Av. Antônio Cunha, 81, Centro","84.280-000","Christiano Giunta Borges"]
["Diamante do Norte",0.78139498784043548,"10%","Paranavaí","76.972.082/0001-06",119851,"R. José Vicente, 257, Centro","87.990-000","Eliel dos Santos Correa"]
["Diamante do Sul",0.65598061395261409,"5%","Laranjeiras Do Sul","95.595.120/0001-95",122349,"Av. Getúlio Vargas, S/N, Centro","85.408-000","Darci Tirelli"]
["Diamante D'Oeste",0.72044975523624621,"10%","Cascavel","77.817.476/0001-44",119850,"R. Marechal Castelo Branco, 597, Centro","85.896-000","Amarildo Aparecido da Silva"]
["Dois Vizinhos",0.83676956910040534,"10%","Dois Vizinhos","76.205.640/0001-08",119852,"Av. Rio Grande do Sul, 130, Centro","85.660-000","Luis Carlos Turatto"]
["Douradina",0.82635358862555508,"10%","Umuarama","78.200.110/0001-94",119853,"Av. Barão do Rio Branco, 767, Centro","87.485-000","Oberdam José de Oliveira"]
["Doutor Camargo",0.74377442559076778,"10%","Maringá","76.282.714/0001-00",120028,"R. Xavier da Silva, 1000, Centro","87.155-000","Douglas Ribeiro do Prado"]
["Doutor Ulysses",0.45917989755881128,"1%","Curitiba","95.422.911/0001-13",122350,"R. Olívio Gabriel de Oliveira, 10, Centro","83.590-000","Esequiel Bestel Junior"]
["Enéas Marques",0.76144897599962613,"10%","Francisco Beltrão","76.205.657/0001-57",119854,"Av. Joaquim Bonetti, 579, Centro","85.630-000","Edson Lupatini"]
["Engenheiro Beltrão",0.73386467711440595,"10%","Campo Mourão","76.950.039/0001-31",119855,"R. Manoel Ribas, 160, Centro","87.270-000","Adalmir José Garbim Júnior"]
["Entre Rios do Oeste",0.79103798808827108,"10%","Toledo","95.719.449/0001-10",119856,"R. Tocantins, 600, Centro","85.988-000","Jair Bokorni"]
["Esperança Nova",0.76215535532365364,"10%","Umuarama","01.612.269/0001-91",119857,"Av. Juvenal Silva Braga, 400, Centro","87.545-000","Everton Barbieri"]
["Espigão Alto do Iguaçu",0.74632382208507153,"10%","Laranjeiras Do Sul","01.612.634/0001-68",119858,"Av. Brasília, 551, Centro","85.465-000","Agenor Bertoncelo"]
["Farol",0.72415740384726168,"10%","Campo Mourão","95.640.124/0001-48",122351,"R. Bahia, 880, Centro","87.325-000","Oclecio de Freitas Meneses"]
["Faxinal",0.74861742459049552,"10%","Ivaiporã","75.771.295/0001-07",119859,"Av. Brasil, 694, Centro","86.840-000","Hermes Antonio Santa Rosa"]
["Fazenda Rio Grande",0.71093384939777182,"10%","Curitiba","95.422.986/0001-02",122352,"R. Jacarandá, 300, Nações","83.820-000","Marco Antonio Marcondes Silva"]
["Fênix",0.71724689610999681,"10%","Campo Mourão","76.950.021/0001-30",119860,"R. Jangada, 25, Centro","86.950-000","Euripedes Molina Tasca Junior"]
["Fernandes Pinheiro",0.76598019190540168,"10%","Irati","01.619.323/0001-20",119861,"Av. Remis João Loss, 600, Centro","84.535-000","Oziel Neivert"]
["Figueira",0.73702142818771799,"10%","Jacarezinho","78.063.732/0001-18",119862,"R. Doutor Zoilo Meira Simões, 410, Centro","84.285-000","Valdecir Garcia"]
["Flor da Serra do Sul",0.73231070937562803,"10%","Francisco Beltrão","95.589.271/0001-30",119863,"R. João Arisi, 115, Centro","85.618-000","Valmor Felipe Junior"]
["Floraí",0.78663743621356585,"10%","Maringá","75.731.000/0001-60",122353,"R. Presidente Getúlio Vargas, 177","87.185-000","Edna de Lourdes Carpine Contin"]
["Floresta",0.76425394329325069,"10%","Maringá","76.282.706/0001-55",119864,"Av. Getúlio Vargas, 2420, Centro","87.120-000","Rogerio Pereira Mendes"]
["Florestópolis",0.7416064863928723,"10%","Londrina","75.845.495/0001-59",122354,"R. Santo Inácio, 161, Centro","86.165-000","Onicio de Souza"]
["Flórida",0.69756227297161322,"5%","Maringá","75.772.400/0001-14",122355,"R. São Pedro, 443, Centro","86.780-000","Antonio Emerson Sette"]
["Formosa do Oeste",0.79087811758217896,"10%","Toledo","76.208.495/0001-00",147689,"Av. Severiano Bonfim dos Santos, 111, Centro","85.830-000","Orivaldo Municelli"]
["Foz do Iguaçu",0.77708044370574791,"10%","Cascavel","76.206.606/0001-40",147495,"Praça Getúlio Vargas, 280, Centro","85.851-340","Joaquim Silva e Luna"]
["Foz do Jordão",0.68258857122212113,"5%","Guarapuava","01.603.719/0001-80",122356,"R. Padre Emílio Barbiéri, 339, Centro","85.145-000","Francisco Clei da Silva"]
["Francisco Alves",0.64052895192328174,"5%","Umuarama","77.356.665/0001-67",119865,"R. Jorge Fereira, 627, Centro","87.570-000","Alirio José Mistura"]
["Francisco Beltrão",0.81158552982647869,"10%","Francisco Beltrão","77.816.510/0001-66",119866,"R. Octaviano Teixeira dos Santos, 1000, Centro","85.600-000","Antonio Pedron"]
["General Carneiro",0.68180927497082389,"5%","União da Vitória","75.687.681/0001-07",122357,"Av. Presidente Getúlio Vargas, 601, Centro","84.660-000","Joel Ricardo Martins Ferreira"]
["Godoy Moreira",0.73876714684099032,"10%","Ivaiporã","81.392.656/0001-07",119867,"R. Sebastião Máximo, 184, Centro","86.938-000","Primis de Oliveira"]
["Goioerê",0.75362696212997615,"10%","Campo Mourão","78.198.975/0001-63",119868,"Av. Amazonas, 280, Jardim Lindóia","87.360-000","Pedro Antônio de Oliveira Coelho"]
["Goioxim",0.74701296781794368,"10%","Guarapuava","01.607.627/0001-78",131884,"R. Laurindo Cordeiro de Souza, 184, Centro","85.162-000","Eder dos Santos"]
["Grandes Rios",0.71128489439292741,"10%","Ivaiporã","75.741.348/0001-39",119869,"Av. Brasil, 967, Centro","86.845-000","William José Gonçalves"]
["Guaíra",0.73618529627377727,{"$f":"IF(B131<0.5,\"1%\",(IF(B131<0.7,\"5%\",(IF(B131>0.7001,\"10%\",\"ERRADO\")))))","v":"10%"},"Toledo","77.857.183/0001-90",119870,"Av. Coronel Otávio Tosta, 126","85.980-000","Gileade Gabriel Osti"]
["Guairaçá",0.70129396038917313,"10%","Paranavaí","76.238.443/0001-87",122358,"R. Francisco Vieira, 1181","87.880-000","Marcelo Alves de Oliveira"]
["Guamiranga",0.75360075226213352,"10%","Irati","01.616.255/0001-46",119871,"R. Diogo Emanuel de Almeida, 234, Centro","84.435-000","Marcelo Leite"]
["Guapirama",0.65965073860989987,"5%","Jacarezinho","75.443.812/0001-00",119872,"R. Dois de Março, 460","86.465-000","Pedro de Oliveira"]
["Guaporema",0.68703312773107295,"5%","Cianorte","75.378.844/0001-70",119873,"R. Pará, 86","87.810-000","Gilberto Castiglioni"]
["Guaraci",0.72874473217607638,"10%","Londrina","75.845.537/0001-51",122359,"R. Prefeito João de Giuli, 180","86.620-000","Marcos Antônio de Souza"]
["Guaraniaçu",0.75536307813223236,"10%","Laranjeiras Do Sul","76.208.818/0001-66",119874,"Av. Abilon de Souza Neves, 394","85.400-000","Juraci Ronaldo Cazella"]
["Guarapuava",0.80012819891196851,"10%","Guarapuava","76.178.037/0001-76",122327,"R. Brigadeiro Rocha, 2777","85.010-210","Denilson Baitala"]
["Guaraqueçaba",0.57223014566624075,"5%","Paranaguá","76.022.508/0001-52",122360,"R. Major Domingos do Nascimento, 46","83.390-000","Alessandro Carneiro Soares Truchinski"]
["Guaratuba",0.69331455931280195,"5%","Paranaguá","76.017.474/0001-08",120032,"R. Doutor João Cândido, 380, Centro","83.280-000","Mauricio Lense"]
["Honório Serpa",0.77462767671834643,"10%","Pato Branco","95.585.444/0001-42",122361,"R. Elpídio dos Santos, 541","85.548-000","João Carlos Garbin"]
["Ibaiti",0.75249749101924135,"10%","Jacarezinho","77.008.068/0001-41",122362,"R. Vereador José de Moura Bueno, 23 - Praça dos T","84.900-000","Roberto Regazzo"]
["Ibema",0.77188491756184419,"10%","Cascavel","80.881.931/0001-85",119875,"Av. Ney Euirson Napoli, 1426, Centro","85.478-000","Viviane Comiran"]
["Ibiporã",0.78238177029794043,"10%","Londrina","76.244.961/0001-03",119876,"R. Padre Vitoriano Valente, 540, Centro","86.200-000","José Maria Ferreira"]
["Icaraíma",0.68889970188518446,"5%","Umuarama","76.247.337/0001-60",119877,"Av. Hermes Vissoto, 810","87.530-000","Devair Fabris"]
["Iguaraçu",0.78301186361775876,"10%","Maringá","75.772.525/0001-44",147713,"R. Otávio Pedro da Silva, 294","86.750-000","Claudio Aparecido Bernin"]
["Iguatu",0.74817726050309064,"10%","Cascavel","95.595.013/0001-67",119878,"Av. Centenário, 500, Centro","85.423-000","Martinho Lucas de Godoy"]
["Imbaú",0.62709996101070908,"5%","Ponta Grossa","01.613.770/0001-72",122363,"Av. Francisco Siqueira Kortz, 471, São Cristóv","84.250-000","Dayane Sovinski Rodrigues"]
["Imbituva",0.75648205671881108,"10%","Irati","76.175.892/0001-23",119879,"R. José Buhrer Júnior, 462","84.430-000","Bertoldo Rover"]
["Inácio Martins",0.70106313686013688,"10%","Irati","76.178.029/0001-20",119880,"R. Sete de Setembro, 332","85.155-000","Edmundo Vier"]
["Inajá",0.75690931123073657,"10%","Paranavaí","76.970.318/0001-67",122364,"Av. Antonio Vieira Martins, 80","87.670-000","João Eder Aguilar"]
["Indianópolis",0.76237876625604439,"10%","Cianorte","75.798.355/0001-77",119881,"Praça Caramurú, 150","87.210-000","Paulo Cezar Rizzato Martins"]
["Ipiranga",0.65888649069585303,"5%","Ponta Grossa","76.175.934/0001-26",119882,"R. Xv de Novembro, 545, Centro","84.450-000","Douglas Davi Cruz"]
["Iporã",0.71563932273963893,"10%","Umuarama","75.738.484/0001-70",119883,"R. Pedro Alvares Cabral, 2677","87.560-000","Roberto da Silva"]
["Iracema do Oeste",0.75756310189424692,"10%","Toledo","95.583.555/0001-10",119884,"R. Professor Vieira de Alencar, 441","85.833-000","Elza Haase Rodrigues"]
["Irati",0.79302589906283771,"10%","Irati","75.654.574/0001-82",119885,"R. Coronel Emílio Gomes, 22","84.500-000","Emiliano Augusto Rocha Gomes"]
["Iretama",0.72710866663495333,"10%","Campo Mourão","76.950.088/0001-74",122365,"R. Oscar Gauer Khunn, 174","87.280-000","Same Saab"]
["Itaguajé",0.74290208566138904,"10%","Maringá","76.970.359/0001-53",147724,"Av. Governador Moisés Lupion, 605","86.670-000","Renato Felix de Souza"]
["Itaipulândia",0.80270768647134083,"10%","Cascavel","95.725.057/0001-64",147725,"R. São Miguel do Iguaçu, 1891","80.588-000","Lindolfo Martins Rui"]
["Itambaracá",0.71491728690837242,"10%","Cornélio Procópio","76.235.738/0001-08",119886,"Av. Interventor Manoel Ribas, 6, Centro","86.375-000","Amarildo Tostes"]
["Itambé",0.70240597316732289,"10%","Maringá","76.282.698/0001-47",133431,"Praça Rui Barbosa, 34","87.175-000","Ananias Soares Vieira"]
["Itapejara D'Oeste",0.79435927889054503,"10%","Pato Branco","76.995.430/0001-52",119887,"Av. Manoel Ribas, 620, Centro","85.580-000","Vilmar Schmoller"]
["Itaperuçu",0.60388870566794883,"5%","Curitiba","95.422.846/0001-26",147510,"Av. Crispim Furquim da Siqueira, 1800","83.560-000","Edilson Ruiz de Freitas"]
["Itaúna do Sul",0.6935796003875816,"5%","Paranavaí","75.458.836/0001-33",119888,"Av. Brasil, 883, Centro","87.980-000","Gilson José de Gois"]
["Ivaí",0.73258719775825509,"10%","Ponta Grossa","76.175.918/0001-33",119889,"R. Rui Barbosa, 632","84.460-000","Orli Antonio Camargo de Cristo"]
["Ivaiporã",0.747149728902328,"10%","Ivaiporã","75.741.330/0001-37",119890,"R. Rio Grande do Norte, 1000","86.870-000","Luiz Carlos Gil"]
["Ivaté",0.75804703352384395,"10%","Umuarama","95.640.553/0001-15",122366,"Av. Rio de Janeiro, 2758","87.525-000","Denilson Vaglieri Prevital"]
["Ivatuba",0.77041922743319668,"10%","Maringá","76.285.337/0001-54",122367,"R. Marechal Floriano, 797","87.130-000","Varlei Vercezi"]
["Jaboti",0.7060738519844566,"10%","Jacarezinho","75.969.667/0001-04",119891,"Praça Minas Gerais, 175","84.930-000","Regis William Siqueira Rodrigues"]
["Jacarezinho",0.75374710411463741,"10%","Jacarezinho","76.966.860/0001-46",119892,"R. Coronel Baptista, 335","86.400-000","Marcelo José Bernardeli Palhares"]
["Jaguapitã",0.78351517736642318,"10%","Londrina","75.457.341/0001-90",122368,"Av. Minas Gerais, 220","86.610-000","Edison Rodrigues de Almeida"]
["Jaguariaíva",0.78052209661567729,"10%","Ponta Grossa","76.910.900/0001-38",119893,"Praça Isabel Branco, 142, Cidade Alta","84.200-000","José Sloboda"]
["Jandaia do Sul",0.80278532149177406,"10%","Apucarana","75.771.204/0001-25",119894,"Praça do Café, 22","86.900-000","Benedito José Pupio"]
["Janiópolis",0.77429274153285033,"10%","Campo Mourão","76.402.882/0001-83",120033,"R. Rui Barbosa, 286, Centro","87.380-000","Eides Guedes"]
["Japira",0.59702436622683919,"5%","Jacarezinho","75.969.881/0001-52",119895,"Av. Alexandre Leite dos Santos, 481, Centro","84.920-000","Hariel Vieira Fogaça"]
["Japurá",0.77508001481897448,"10%","Cianorte","75.788.349/0001-39",119896,"Av. Bolivar, 363, Centro","87.225-000","Adriana Cristina Polizer"]
["Jardim Alegre",0.67465077051777111,"5%","Ivaiporã","75.741.363/0001-87",122369,"Praça Mariana Leite Felix, 800","86.860-000","Moises Lnortovz dos Santos"]
["Jardim Olinda",0.74463372927949434,"10%","Paranavaí","76.970.383/0001-92",122370,"Av. Siqueira Campos, 83, Centro","87.690-000","Weverton José dos Santos Lima"]
["Jataizinho",0.67959968693396589,"5%","Cornélio Procópio","76.245.042/0001-54",147744,"Av. Presidente Getúlio Vargas, 494","86.210-000","Wilson Fernandes"]
["Jesuítas",0.75324070464213833,"10%","Toledo","77.398.154/0001-08",119897,"R. Padre Leonel França, 369","85.835-000","Edicarlos Grizotto de Oliveira"]
["Joaquim Távora",0.80169034574204812,"10%","Jacarezinho","76.966.845/0001-06",122371,"R. Miguel Dias, 226, Centro","86.455-000","Gelson Mansur Nassar"]
["Jundiaí do Sul",0.70187999349931651,"10%","Jacarezinho","76.408.061/0001-54",175629,"Praça Pio X, 260, Centro","86.470-000","Paulo Roberto Pedro"]
["Juranda",0.76121863969366066,"10%","Campo Mourão","78.196.755/0001-09",119898,"Praça Henrique Szafermann, 139, Centro","87.355-000","Joelma Damasceno Demeneck"]
["Jussara",0.80126571493941912,"10%","Cianorte","75.789.552/0001-20",119899,"Av. Princesa Izabel, 320, Centro","87.230-000","Moacir Luiz Pereira Valentini"]
["Kaloré",0.76196962874763086,"10%","Apucarana","75.771.238/0001-10",122372,"Praça Francisco Lemes Gonçalves, 267, Centro","86.920-000","Washington Luiz da Silva"]
["Lapa",0.71381465344425532,"10%","Curitiba","76.020.452/0001-05",119788,"Alameda David Carneiro, 243, Centro","83.750-000","Diego Timbirussu Ribas"]
["Laranjal",0.68906649184649982,"5%","Pitanga","95.684.536/0001-80",119900,"R. Pernambuco, 501, Centro","85.275-000","Maycon Lopes Simioni"]
["Laranjeiras do Sul",0.75703366773555913,"10%","Laranjeiras Do Sul","76.205.970/0001-95",119901,"R. Expedicionário João Maria, 1020, Centro","85.301-410","Jaison Rodrigo Mendes"]
["Leópolis",0.69967586727386799,"5%","Cornélio Procópio","75.388.850/0001-08",119902,"R. Pedro Domingues de Souza, 374, Centro","86.330-000","Leomar Monteiro"]
["Lidianópolis",0.74436213760088077,"10%","Ivaiporã","95.680.831/0001-68",119903,"R. Juscelino Kubitschek, 327, Centro","86.865-000","Aparecido Buzato"]
["Lindoeste",0.76352797791060201,"10%","Cascavel","80.881.915/0001-92",147756,"Av. Marechal Cândido Rondon, S/N, Centro","85.826-000","Silvio de Souza"]
["Loanda",0.75071954696853016,"10%","Paranavaí","76.972.074/0001-51",119904,"R. Mato Grosso, 354, Alto da Glória","87.900-000","José Maria Pereira Fernandes"]
["Lobato",0.70943366898669302,"10%","Maringá","76.970.367/0001-08",119905,"R. Antonio Coleto, 1260, Centro","86.790-000","Fabio Chicaroli"]
["Londrina",0.81793821133764855,"10%","Londrina","75.771.477/0001-70",140982,"Av. Duque de Caxias, 635, Jardim Mazei Ii","86.015-901","José Tiago Camargo do Amaral"]
["Luiziana",0.70300440720686819,{"$f":"IF(B195<0.5,\"1%\",(IF(B195<0.7,\"5%\",(IF(B195>0.7001,\"10%\",\"ERRADO\")))))","v":"10%"},"Campo Mourão","80.888.688/0001-27",122373,"R. Doutor Miguel Vieira Ferreira, 22, Centro","87.290-000","Edson Liss"]
["Lunardelli",0.75849301380671585,"10%","Ivaiporã","78.600.491/0001-07",122374,"Av. Dom Pedro Ii, 195, Centro","86.935-000","Luiz Wanderlei Marson Sardi"]
["Lupionópolis",0.68147075046336436,"5%","Londrina","75.845.511/0001-03",119906,"Praça Padre Antonio Pozzato, 880, Centro","86.635-000","José Carlos Tibério"]
["Mallet",0.80052045392240456,"10%","Irati","75.654.566/0001-36",119907,"R. Xv de Novembro, 28, Centro","84.570-000","Pedro Kowalczyk"]
["Mamborê",0.791679178189303,"10%","Campo Mourão","75.368.928/0001-22",122375,"R. Guadalajara, 645, Centro","87.340-000","Sebastião Antonio Martinez"]
["Mandaguaçu",0.73809694664151149,"10%","Maringá","76.285.329/0001-08",119908,"R. Bernardino Bogo, 175, Centro","87.160-000","José Roberto Mendes"]
["Mandaguari",0.82811917333345308,"10%","Maringá","76.285.345/0001-09",119909,"Av. Amazonas, 500, Centro","86.975-000","Ivonéia de Andrade Aparecido Furtado"]
["Mandirituba",0.68659988920166182,"5%","Curitiba","76.105.550/0001-37",147769,"Praça Bom Jesus, 44, Centro","83.800-000","Felipe Claudino Machado"]
["Manfrinópolis",0.66128415995346157,"5%","Francisco Beltrão","01.614.343/0001-09",119910,"R. Encantilado, 11, Centro","85.628-000","Amarildo Alves Carneiro"]
["Mangueirinha",0.74734939163495229,"10%","Pato Branco","77.774.867/0001-29",119911,"Praça Francisco de Assis Reis, 1064, Centro","85.540-000","Leandro Dorini"]
["Manoel Ribas",0.66894323685091683,"5%","Pitanga","75.740.811/0001-28",119912,"Av. Sete de Setembro, 366, Centro","85.260-000","José Carlos da Silva Corona"]
["Marechal Cândido Rondon",0.822854160873698,"10%","Toledo","76.205.814/0001-24",119913,"R. Espirito Santo, 777, Centro","85.960-000","Adriano Backes"]
["Maria Helena",0.7039421447628853,"10%","Umuarama","76.247.386/0001-00",119914,"Praça Brasil, 2001, Centro","87.480-000","Marlon Rancer Marques"]
["Marialva",0.80582819873993772,"10%","Maringá","76.282.680/0001-45",119915,"R. Santa Efigênia, 680, Centro","86.990-000","Flavia Cheroni da Silva Brita"]
["Marilândia do Sul",0.73619879438339664,"10%","Apucarana","75.771.303/0001-07",122376,"R. Silvio Beligni, 200, Centro","86.825-000","Walmir Peres"]
["Marilena",0.71005891776958807,"10%","Paranavaí","75.971.010/0001-73",119916,"R. Dante Pasqualetto, 855, Centro","87.960-000","Celio Lelis da Mata"]
["Mariluz",0.68504159391135833,"5%","Umuarama","76.404.136/0001-29",122326,"Av. Marilia, 1920, Centro","87.470-000","Paulo Armando da Silva Alves"]
["Maringá",0.8463961733077543,"10%","Maringá","76.282.656/0001-06",147520,"Av. Xv de Novembro, 701, Centro","87.013-230","Silvio Magalhaes Barros Ii"]
["Mariópolis",0.7066225225345848,"10%","Pato Branco","76.995.323/0001-24",122377,"R. Seis, 1030","85.525-000","Mario Eduardo Lopes Paulek"]
["Maripá",0.80348576783097403,"10%","Toledo","95.583.571/0001-02",119917,"R. Luiz de Camões, 437","85.955-000","Rodrigo Andre Schanoski"]
["Marmeleiro",0.7703448682779227,"10%","Francisco Beltrão","76.205.665/0001-01",119918,"Av. Macali, 255, Centro","85.615-000","Jander Luiz Loss"]
["Marquinho",0.77134155469772148,"10%","Laranjeiras Do Sul","01.612.552/0001-13",122378,"R. Sete de Setembro, S/N, Centro","85.168-000","Elio Bolzon Junior"]
["Marumbi",0.72064206327388447,"10%","Apucarana","75.771.246/0001-66",122328,"R. Vereador João Fuzetti, 800","86.910-000","Elaine Maria Ferreira Costa"]
["Matelândia",0.80130133222077893,"10%","Cascavel","76.206.465/0001-65",119919,"Av. Duque de Caxias, 800","85.887-000","Gabriel da Silva Cadini"]
["Matinhos",0.66679243798824606,"5%","Paranaguá","76.017.466/0001-61",122379,"R. Pastor Elias Abrahão, 22, Centro","83.260-000","Eduardo Antonio Dalmora"]
["Mato Rico",0.70239034479517126,"10%","Pitanga","95.684.510/0001-31",122380,"Av. Das Araucárias, 01, Centro","85.240-000","Edelir de Jesus Ribeiro da Silva"]
["Mauá da Serra",0.73166199569699586,"10%","Apucarana","95.548.400/0001-42",119920,"Av. Ponta Grossa, 480","86.828-000","Givanildo Lopes"]
["Medianeira",0.81348051737939453,"10%","Cascavel","76.206.481/0001-58",119921,"Av. José Ccallegari, 647, Ipê","85.884-000","Antonio França Benjamim"]
["Mercedes",0.78841797163511418,"10%","Toledo","95.719.373/0001-23",122330,"R. Doutor Osvaldo Cruz, 555, Centro","85.998-000","Laerton Weber"]
["Mirador",0.75034407437521589,"10%","Paranavaí","75.475.442/0001-93",119922,"Av. Guaíra, 153, Centro","87.840-000","Fabiano Marcos da Silva Travain"]
["Miraselva",0.70500151051482263,"10%","Londrina","75.845.529/0001-05",122381,"R. São Paulo, 10","86.615-000","João Marcos Ferrer"]
["Missal",0.74729465180517129,"10%","Cascavel","78.101.847/0001-50",147523,"R. Nossa Senhora da Conceição, 555","85.890-000","Adilto Luis Ferrari"]
["Moreira Sales",0.71164101102338295,"10%","Campo Mourão","76.217.025/0001-03",122382,"R. Otto de Macedo, 629, Centro","87.370-000","Luiz Antonio Volpato"]
["Morretes",0.60184614185115304,"5%","Paranaguá","76.022.490/0001-99",119923,"Praça Rocha Pombo, 10, Centro","83.350-000","Sebastião Brindarolli Junior"]
["Munhoz de Mello",0.762649523415042,"10%","Maringá","75.352.062/0001-61",147796,"R. Domingos Ricardo de Lima, 174","86.760-000","Áureo Gomes"]
["Nossa Senhora Das Graças",0.71644038305974567,"10%","Maringá","76.970.300/0001-65",147797,"Praça Deputado Nilson Batista Ribas, 131, Centro","86.680-000","Clodoaldo Aparecido Rigieri"]
["Nova Aliança do Ivaí",0.79873088361206557,"10%","Paranavaí","76.413.061/0001-42",214812,"Av. Francisco Pires de Lemos, 410, Centro","87.790-000","Ulisses de Souza"]
["Nova América da Colina",0.69448898744535292,"5%","Cornélio Procópio","75.827.204/0001-08",119924,"Av. Paraná, 42","86.230-000","Tania Cristina da Silva Basso"]
["Nova Aurora",0.7914940325789912,"10%","Cascavel","76.208.859/0001-52",119925,"R. São João, 354","85.410-000","José Aparecido de Paula e Souza"]
["Nova Cantu",0.71958930551977207,"10%","Campo Mourão","77.845.394/0001-03",119926,"R. Bahia, 660","87.330-000","Airton Antonio Agnolin"]
["Nova Esperança",0.77922251501033102,"10%","Maringá","75.730.994/0001-09",119927,"Av. Rocha Pombo, 1453, Centro","87.600-000","João Eduardo Pasquini"]
["Nova Esperança do Sudoeste",0.73457731888697475,"10%","Dois Vizinhos","95.589.289/0001-32",119928,"Av. Iguaçu, 750, Centro","85.635-000","Jaime da Silva Stang"]
["Nova Fátima",0.71708984081295968,"10%","Cornélio Procópio","75.828.418/0001-90",147804,"R. Doutor Aloysio de Barros Tostes, 420, Centro","86.310-000","Renata Montenegro Balan Xavier"]
["Nova Laranjeiras",0.62501000696995146,"5%","Laranjeiras Do Sul","95.587.648/0001-12",122383,"R. Rio Grande do Sul, 2122","85.350-000","Fabio Roberto dos Santos"]
["Nova Londrina",0.8179941361319315,"10%","Paranavaí","81.044.984/0001-04",119929,"Praça da Matriz, 261, Centro","87.970-000","Luiz Gustavo Maior Bono"]
["Nova Olímpia",0.77135593764081589,"10%","Umuarama","75.799.577/0001-04",122384,"Av. Higienópolis, 821, Centro","87.490-000","Luiz Lazaro Sorvos"]
["Nova Prata do Iguaçu",0.71502457733188596,"10%","Dois Vizinhos","78.103.884/0001-05",119930,"R. Vereador Valmor Gomes, 1159, Centro","85.685-000","Elizete Cavazin"]
["Nova Santa Bárbara",0.68991083436035072,"5%","Cornélio Procópio","95.561.080/0001-60",147809,"R. Walfredo Bittencourt de Moraes, 222","86.250-000","Claudemir Valério"]
["Nova Santa Rosa",0.79721386271654959,"10%","Toledo","77.116.663/0001-09",120029,"R. Tucunduva, 833","85.930-000","Lari Hitz"]
["Nova Tebas",0.70321589487352076,"10%","Pitanga","80.620.172/0001-05",119931,"R. Belo Horizonte, 695","85.250-000","Pedro Lourenço"]
["Novo Itacolomi",0.65798958713632638,"5%","Apucarana","95.639.472/0001-03",119932,"Av. 28 de Setembro, 711","86.895-000","João Pedro Magon"]
["Ortigueira",0.77933044929580308,"10%","Ponta Grossa","77.721.363/0001-40",119933,"R. São Paulo, 80","84.350-000","Ary de Oliveira Mattos"]
["Ourizona",0.77148470643935729,"10%","Maringá","76.282.672/0001-07",122385,"R. Bela Vista, 1014, Centro","87.170-000","Janilson Marcos Donasan"]
["Ouro Verde do Oeste",0.73935085496977304,"10%","Toledo","80.880.107/0001-00",122331,"R. Curitiba, 657","85.933-000","Lucian Aluisio Dierings"]
["Paiçandu",0.72775616173075386,"10%","Maringá","76.282.664/0001-52",147529,"R. Sete de Setembro, 499","87.140-000","Ismael Batista"]
["Palmas",0.69221343676488123,"5%","Pato Branco","76.161.181/0001-08",122386,"Av. Clevelândia, 521, Centro","85.555-000","Daniel Ricardo Langaro"]
["Palmeira",0.78253149081331064,"10%","Ponta Grossa","76.179.829/0001-65",119934,"Praça Marechal Floriano Peixoto, 11 - Centro","84.130-000","Altamir Sanson"]
["Palmital",0.73323891752762005,"10%","Pitanga","75.680.025/0001-82",119935,"R. Moisés Lupion, 1001","85.270-000","Roberto Carlos Rossi"]
["Palotina",0.86956527090519942,"10%","Toledo","76.208.487/0001-64",119936,"R. Aldir Pedron, 898","85.950-000","Rodrigo Ribeiro"]
["Paraíso do Norte",0.800945968011335,"10%","Paranavaí","75.476.556/0001-58",121327,"Av. Tapejara, 88, Centro","87.780-000","Carlos Alberto Vizzotto"]
["Paranacity",0.75181705105081953,"10%","Paranavaí","76.970.334/0001-50",119937,"R. Pedro Paulo Venério, 1022","87.660-000","José Claudio Batista"]
["Paranaguá",0.7389200689530484,"10%","Paranaguá","76.017.458/0001-15",119938,"R. Júlia da Costa, 322 - Palácio São José","83.203-060","Adriano Ramos"]
["Paranapoema",0.75778477099147123,"10%","Paranavaí","76.970.391/0001-39",147824,"R. Doutor José Cândido Muricy, 216, Centro","87.680-000","Sidnei Frazatto"]
["Paranavaí",0.79767833220252948,"10%","Paranavaí","76.977.768/0001-81",119939,"R. Getúlio Vargas, 900, Centro","87.702-000","Maurício Gehlen"]
["Pato Bragado",0.76899646626889118,{"$f":"IF(B259<0.5,\"1%\",(IF(B259<0.7,\"5%\",(IF(B259>0.7001,\"10%\",\"ERRADO\")))))","v":"10%"},"Toledo","95.719.472/0001-05",119940,"R. Willy Barth, 2885","85.948-000","John Jeferson Weber Nodari"]
["Pato Branco",0.83029531835002202,"10%","Pato Branco","76.995.448/0001-54",119941,"R. Caramurú, 271, Centro","85.501-060","Geri Natalino Dutra"]
["Paula Freitas",0.73475371850736304,"10%","União da Vitória","75.687.954/0001-13",119942,"Av. Agostinho de Souza, 646, Centro","84.630-000","Sebastião Algacir Dalpra"]
["Paulo Frontin",0.74902496403753338,"10%","União da Vitória","77.007.474/0001-90",122387,"R. Rui Barbosa, 204","84.635-000","Ireneu Inacio Zacharias"]
["Peabiru",0.74921070467068829,"10%","Campo Mourão","75.370.148/0001-17",122388,"Praça Eleutério Galdino de Andrade, 21, Centro","87.250-000","José Marcos Gonçalves Lopes"]
["Perobal",0.74505788987877297,"10%","Umuarama","01.612.444/0001-40",119943,"Av. Paraná, 609, Centro","87.538-000","Cristiano Cezar Merlini de Albuquerque"]
["Pérola",0.74855208177953669,"10%","Umuarama","81.478.133/0001-70",119944,"Av. Dona Pérola Byington, 1800, Centro","87.540-000","Valdete Carlos Oliveira Goncalves da Cunha"]
["Pérola D'Oeste",0.76022114019869658,"10%","Francisco Beltrão","75.924.290/0001-69",119945,"R. Presidente Costa E Silva, 290, Centro","85.740-000","Edsom Luiz Bagetti"]
["Piên",0.7461066007388274,"10%","Curitiba","76.002.666/0001-40",119946,"R. Amazonas, 373, Centro","83.860-000","Maicon Grosskopf"]
["Pinhais",0.80073927492629382,"10%","Curitiba","95.423.000/0001-00",119947,"R. Wanda dos Santos Mallmann, 536, Centro","83.323-400","Rosa Maria de Jesus Colombo"]
["Pinhal de São Bento",0.75477346369468135,"10%","Francisco Beltrão","95.590.832/0001-11",119948,"Av. São Roque, 178","85.727-000","Paulo Falcade de Oliveira"]
["Pinhalão",0.70782612955540125,"10%","Jacarezinho","76.167.717/0001-94",122409,"R. Domingos Calixto, 483, Centro","84.925-000","Luiz Eduardo de Castro Vanzeli"]
["Pinhão",0.70328978550041388,"10%","Guarapuava","76.178.011/0001-28",119949,"Av. Trifon Hanysz, 220, Centro","85.170-000","Valdecir Biasebetti"]
["Piraí do Sul",0.73995733085106885,"10%","Ponta Grossa","77.001.329/0001-00",214818,"Praça Alípio Domingues, 34, Centro","84.240-000","Henrique de Oliveira Carneiro"]
["Piraquara",0.68932757178879012,"5%","Curitiba","76.105.675/0001-67",122389,"Av. Getúlio Vargas, 1990, Centro","83.301-010","Marcus Mauricio de Souza Tesserolli"]
["Pitanga",0.73610478046847572,"10%","Pitanga","76.172.907/0001-08",119950,"Praça 28 de Janeiro, 171, Centro","85.200-000","Dirceu Moraes"]
["Pitangueiras",0.76835356898562568,"10%","Londrina","95.543.427/0001-42",122410,"Av. Central, 408, Centro","86.613-000","Samuel Teixeira"]
["Planaltina do Paraná",0.72470352770444613,"10%","Paranavaí","75.461.442/0001-34",122390,"Praça Giácomo Madalozzo, 234, Centro","87.860-000","Celso Maggioni"]
["Planalto",0.72711476193915925,"10%","Francisco Beltrão","76.460.526/0001-16",119951,"Praça São Francisco de Assis, 1583","85.750-000","Luiz Carlos Boni"]
["Ponta Grossa",0.79579616067857539,"10%","Ponta Grossa","76.175.884/0001-87",119952,"Av. Visconde de Taunay, 950, Ronda","84.051-900","Elizabeth Silveira Schmidt"]
["Pontal do Paraná",0.62137823521997515,"5%","Paranaguá","01.609.843/0001-52",119953,"Rodovia - Pr 407 - Km 19, 215, Praia de Leste","83.255-000","Rudisney Gimenes Filho"]
["Porecatu",0.68574907122737427,"5%","Londrina","80.542.764/0001-48",122391,"R. Barão do Rio Branco, 344","86.160-000","Agamemnon Augusto Araujo Paduan"]
["Porto Amazonas",0.81760485455891807,"10%","Ponta Grossa","76.179.837/0001-01",147848,"R. Guilherme Schiffer, 67, Centro","84.140-000","Elias Jocid Gomes da Costa"]
["Porto Barreiro",0.791663280658785,"10%","Laranjeiras Do Sul","01.591.618/0001-36",119954,"R. Das Carmélias, 900","85.345-000","Emanoel Vanderlei Volff"]
["Porto Rico",0.79205509893001658,"10%","Paranavaí","75.461.970/0001-93",132286,"Av. João Carraro, 557","87.950-000","Valter Batista dos Santos"]
["Porto Vitória",0.74999072938379518,"10%","União da Vitória","75.688.366/0001-02",119955,"R. Osvaldo Gomes da Silva, 717, Centro","84.615-000","Fabiano José Glaab"]
["Prado Ferreira",0.73680362888916962,"10%","Londrina","01.613.136/0001-30",119956,"R. São Paulo, 191, Centro","86.618-000","Silvio Antonio Damaceno"]
["Pranchita",0.76684203849903054,"10%","Francisco Beltrão","78.113.834/0001-09",119957,"Av. Simão Faquinello, 364","85.730-000","Ronimar Eleandro Sartor"]
["Presidente Castelo Branco",0.66686812949767216,"5%","Maringá","76.279.959/0001-70",147855,"R. José Peres Gonçalves, 53","87.180-000","João Pericles Martinati"]
["Primeiro de Maio",0.6569505687463163,"5%","Londrina","76.245.059/0001-01",122392,"R. Onze, 674","86.140-000","Bruno Eduardo Santa Rosa Bauermamm Estevam"]
["Prudentópolis",0.76949036686521943,"10%","Guarapuava","77.003.424/0001-34",119958,"R. Rui Barbosa, 801, Centro","84.400-000","Adelmo Luiz Klosowski"]
["Quarto Centenário",0.77100091359875045,"10%","Campo Mourão","01.619.104/0001-41",119959,"Av. Raposo Tavares, 594","87.365-000","Wilson Akio Abe"]
["Quatiguá",0.72725546549064912,"10%","Jacarezinho","76.966.852/0001-08",119960,"Av. João Pessoa, 1300","86.450-000","Izilda Gleiciany Rodrigues Carro"]
["Quatro Barras",0.8547224570658235,"10%","Curitiba","76.105.568/0001-39",147860,"Av. Dom Pedro Ii, 110, Centro","83.420-000","Loreno Bernardo Tolardo"]
["Quatro Pontes",0.81394736728818351,"10%","Toledo","95.719.381/0001-70",119961,"R. Gaspar Martins, 560, Centro","85.940-000","Cesar Alexandre Seidel"]
["Quedas do Iguaçu",0.73788182700052529,"10%","Laranjeiras Do Sul","76.205.962/0001-49",119962,"R. Juazeiro, 1065","85.460-000","Rafael Ciryllo Chiapetti Alves de Moura"]
["Querência do Norte",0.73496186015292497,"10%","Paranavaí","76.973.692/0001-16",119963,"R. Waldemar dos Santos, 1197","87.930-000","Alex Sandro Fernandes"]
["Quinta do Sol",0.71344771803272111,"10%","Campo Mourão","76.950.047/0001-88",119964,"Praça Solange Marques, 259, Centro","87.265-000","Leonardo Lazzaretti Romero"]
["Quitandinha",0.71895664803008164,"10%","Curitiba","76.002.674/0001-97",119965,"R. José de Sá Ribas, 238","83.840-000","José Ribeiro de Moura"]
["Ramilândia",0.64626794817209254,"5%","Cascavel","95.725.024/0001-14",122393,"Av. Voluntários da Pátria, 1600","85.888-000","Edson dos Santos"]
["Rancho Alegre",0.71282153539858406,"10%","Cornélio Procópio","75.829.416/0001-16",214819,"Av. Brasil, 256","86.290-000","Flavio Henrique Pereira"]
["Rancho Alegre D'Oeste",0.68155026751583359,"5%","Campo Mourão","95.640.132/0001-94",119966,"Av. Paraná, 530, Centro","87.395-000","Everton Cássio Zanuto"]
["Realeza",0.77019354386588856,"10%","Francisco Beltrão","76.205.673/0001-40",119967,"R. Barão do Rio Branco, 3507, Centro Cívico","85.770-000","Paulo Cezar Casaril"]
["Rebouças",0.73508218464033492,"10%","Irati","77.774.859/0001-82",147870,"R. José Afonso Vieira Lopes, 96","84.550-000","Laercio Antonio Cipriano"]
["Renascença",0.78958529732992655,"10%","Francisco Beltrão","76.205.681/0001-96",122394,"R. Getúlio Vargas, 901, Centro","85.610-000","Fabieli Manfredi"]
["Reserva",0.68103546169170814,"5%","Ponta Grossa","76.169.879/0001-61",119968,"R. Coronel Rogério Borba, 741, Centro","84.320-000","Lucas Machado Ribeiro"]
["Reserva do Iguaçu",0.71921090115546038,"10%","Guarapuava","01.612.911/0001-32",119969,"Av. 04 de Setembro, 614, Centro","85.195-000","Vitorio Antunes de Paula"]
["Ribeirão Claro",0.73858426593720328,"10%","Jacarezinho","75.449.579/0001-73",119970,"R. Coronel Emílio Gomes, 731, Centro","86.410-000","Lisandro José Néia Baggio"]
["Ribeirão do Pinhal",0.73017777805551198,"10%","Cornélio Procópio","76.968.064/0001-42",147539,"R. Paraná, 983","86.490-000","Dartagnan Calixto Fraiz"]
["Rio Azul",0.74817722453352753,"10%","Irati","75.963.256/0001-01",119971,"R. Guilherme Pereira, 482","84.560-000","Leandro Jasinski"]
["Rio Bom",0.6817355647527652,"5%","Apucarana","75.771.212/0001-71",119972,"Av. Curitiba, 65, Centro","86.830-000","Moisés José de Andrade"]
["Rio Bonito do Iguaçu",0.6975695280486679,"5%","Laranjeiras Do Sul","95.587.770/0001-99",119973,"R. 7 de Setembro, 720, Centro","85.340-000","Sezar Augusto Bovino"]
["Rio Branco do Ivaí",0.7127845899634967,"10%","Ivaiporã","01.612.413/0001-90",131889,"Av. Rio Branco, 500","86.848-000","Pedro Taborda Desplanches"]
["Rio Branco do Sul",0.68589963567591783,"5%","Curitiba","76.105.576/0001-85",214820,"R. Horacy Santos, 222, Centro","83.540-000","Karime Fayad"]
["Rio Negro",0.80955337208518774,"10%","Curitiba","76.002.641/0001-47",119974,"R. Juvenal Ferreira Pinto, 2070, Seminário","83.880-000","Alessandro Cristian Von Linsingen"]
["Rolândia",0.80490950145181106,"10%","Londrina","76.288.760/0001-08",119975,"R. Presidente Bernardes, 809, Centro","86.600-000","Ailton Aparecido Maístro"]
["Roncador",0.71398516931419154,"10%","Campo Mourão","75.371.401/0001-57",119976,"Praça Moisés Lupion, 89, Centro","87.320-000","Marilia Perotta Bento Gonçalves"]
["Rondon",0.75188032410126449,"10%","Cianorte","75.380.071/0001-66",119977,"Av. Brasil, 1500, Centro","87.800-000","Roberto Aparecido Corredato"]
["Rosário do Ivaí",0.74135512514122548,"10%","Ivaiporã","80.059.264/0001-50",119978,"Av. São Paulo, 45","86.850-000","Anizio Cesar Lino Silva"]
["Sabáudia",0.83603273129160149,"10%","Apucarana","76.958.974/0001-44",120640,"Praça da Bandeira, 47, Centro","86.720-000","Edson Hugo Manueira"]
["Salgado Filho",0.73904000799237568,"10%","Francisco Beltrão","76.205.699/0001-98",119979,"R. Floriano Francisco Anater, 50","85.620-000","Volmar Duarte"]
["Salto do Itararé",0.71194670936904136,"10%","Jacarezinho","76.920.834/0001-87",147888,"R. Eduardo Bertoni Junior, 471","84.945-000","Claudeci José de Oliveira"]
["Salto do Lontra",0.75874143095426894,"10%","Dois Vizinhos","76.205.707/0001-04",119980,"R. Rio Grande do Sul, 975, Centro","85.670-000","Fernando Alberto Cadore"]
["Santa Amélia",0.63082293611196227,"5%","Cornélio Procópio","76.235.746/0001-46",176559,"R. Alcides Prudente Pavan, 130, Centro","86.370-000","Antonio Carlos Tamais"]
["Santa Cecília do Pavão",0.68519942597772865,{"$f":"IF(B323<0.5,\"1%\",(IF(B323<0.7,\"5%\",(IF(B323>0.7001,\"10%\",\"ERRADO\")))))","v":"5%"},"Cornélio Procópio","76.290.691/0001-77",122395,"R. Jerônimo Farias Martins, 1335","86.225-000","Claudio Covre"]
["Santa Cruz de Monte Castelo",0.65610247702931601,"5%","Paranavaí","75.462.820/0001-02",119981,"Av. Paulo Libânio, 700, Centro","87.920-000","Willian Cezar Viega"]
["Santa Fé",0.78413018170404669,"10%","Maringá","76.291.418/0001-67",122396,"Av. Presidente Kennedy, 717","86.770-000","Edson Palotta Netto"]
["Santa Helena",0.79233796494165298,"10%","Toledo","76.206.457/0001-19",147894,"R. Paraguai, 1401 - Centro","85.892-000","Clademar João Maraskin"]
["Santa Inês",0.71552637241347217,"10%","Maringá","78.092.293/0001-71",122397,"R. Governador Munhoz da Rocha, 200","86.660-000","Adenilson Pacheco"]
["Santa Isabel do Ivaí",0.69658005490290753,"5%","Paranavaí","76.974.823/0001-80",119982,"Av. Manoel Ribas, 470, Centro","87.910-000","João Carlos da Silva Mendes"]
["Santa Izabel do Oeste",0.75287019312384773,"10%","Francisco Beltrão","76.205.715/0001-42",119983,"R. Acácia, 1317, Centro","85.650-000","Jean Pierr Catto"]
["Santa Lúcia",0.74064143195404497,"10%","Cascavel","95.594.776/0001-93",119984,"Av. do Rosário, 228, Centro","85.795-000","Silvano Tortelli"]
["Santa Maria do Oeste",0.63212953550487416,"5%","Pitanga","95.684.544/0001-26",119985,"R. José de França Pereira, 10","85.230-000","Oscar Delgado"]
["Santa Mariana",0.71663472484129576,"10%","Cornélio Procópio","75.392.019/0001-20",119986,"R. Antonio Manoel dos Santos, 151","86.350-000","José Marcelo Piovan Guimarães"]
["Santa Mônica",0.68126408916583348,"5%","Paranavaí","95.641.916/0001-37",119987,"R. Marieta Mocellin, 588","87.915-000","Luan Gustavo Frazatto"]
["Santa Tereza do Oeste",0.76163910232832122,"10%","Cascavel","80.882.095/0001-53",119989,"Av. Paraná, 61","85.825-000","Amarildo Rigolin"]
["Santa Terezinha de Itaipu",0.71664864607375656,"10%","Cascavel","75.425.314/0001-35",119990,"R. João Xxiii, 144, Centro","85.875-000","Antonio Luiz Bendo"]
["Santana do Itararé",0.74861069402107872,"10%","Jacarezinho","76.920.826/0001-30",119988,"Praça Frei Mathias de Gênova, 184, Centro","84.970-000","Elcio José Vidal"]
["Santo Antônio da Platina",0.67972774924949075,"5%","Jacarezinho","76.968.627/0001-00",119991,"Praça Nossa Senhora Aparecida, S/N, Centro","86.430-000","Gilson de Jesus Esteves"]
["Santo Antônio do Caiuá",0.73451844502415631,"10%","Paranavaí","75.483.230/0001-58",119992,"Av. São João, 415","87.730-000","José Gabriel Gonçalves Fachiano"]
["Santo Antônio do Paraíso",0.76753865094223139,"10%","Cornélio Procópio","75.832.170/0001-31",119993,"Av. Deputado Nilson Ribas, 886, Centro","86.315-000","Devanir Martinelli"]
["Santo Antônio do Sudoeste",0.73211062703757868,"10%","Francisco Beltrão","75.927.582/0001-55",122398,"Av. Brasil, 1431, Centro","85.710-000","Ricardo Antonio Ortina"]
["Santo Inácio",0.85177502068984312,"10%","Maringá","76.970.375/0001-46",214821,"R. Marcelino Alves de Alcântara, 133","86.650-000","Geny Violatto"]
["São Carlos do Ivaí",0.79596095512806697,"10%","Paranavaí","75.498.576/0001-20",122399,"Av. Ivaí, 890, Centro","87.770-000","Paulo Francisco Marinho Dutra"]
["São Jerônimo da Serra",0.59590117951432253,"5%","Cornélio Procópio","76.290.683/0001-20",119994,"Praça Coronel Deolindo, 151, Centro","86.270-000","Venicius Djalma Rosa"]
["São João",0.78409085119526944,"10%","Pato Branco","76.995.422/0001-06",122400,"Av. Xv de Novembro, 160","85.570-000","Clovis Mateus Cuccolotto"]
["São João do Caiuá",0.76298244361112444,"10%","Paranavaí","76.238.435/0001-30",122401,"R. Dom Pedro Ii, 800","87.740-000","Stefan Tomé Pauka"]
["São João do Ivaí",0.7397291954685361,"10%","Ivaiporã","75.741.355/0001-30",122402,"Av. Curitiba, 563","86.930-000","Fábio Hidek Miura"]
["São João do Triunfo",0.70598850124782331,"10%","Ponta Grossa","75.193.516/0001-07",119995,"R. Tenente Coronel Carlos Souza, 312, Centro","84.150-000","Mario Cezar da Silva"]
["São Jorge do Ivaí",0.7851803131003946,"10%","Maringá","76.282.649/0001-04",147918,"Praça Santa Cruz, 249, Centro","87.190-000","Agnaldo Carvalho Guimarães"]
["São Jorge do Patrocínio",0.78151894331824356,"10%","Umuarama","77.870.475/0001-63",119997,"Av. Carlos Spanhol, 164, Centro","87.555-000","Ronaldo Tinti"]
["São Jorge D'Oeste",0.79023473167284453,"10%","Dois Vizinhos","76.995.380/0001-03",119996,"Av. Iguaçu, 281","85.575-000","Gelson Coelho do Rosário"]
["São José da Boa Vista",0.68660161840003298,"5%","Jacarezinho","76.920.818/0001-94",119998,"R. Reinaldo Martins Gonçalves, 85, Centro","84.980-000","José Lazaro Ferraz"]
["São José Das Palmeiras",0.70407309085336933,"10%","Toledo","77.819.605/0001-33",119999,"R. Marechal Castelo Branco, 979, Centro","85.898-000","Franco Maria Alves Cabral"]
["São José Dos Pinhais",0.80866564045298484,"10%","Curitiba","76.105.543/0001-35",120000,"R. Passos de Oliveira, 1101, Centro","83.030-720","Margarida Maria Singer"]
["São Manoel do Paraná",0.81694477959156586,"10%","Cianorte","80.909.617/0001-63",120001,"Praça Paraná, 50, Centro","87.215-000","Vitor Hugo Rodrigues"]
["São Mateus do Sul",0.79187743574761849,"10%","União da Vitória","76.021.450/0001-22",147925,"R. Barão do Rio Branco, 431","83.900-000","Fernanda Garcia Sardanha"]
["São Miguel do Iguaçu",0.76309626084683624,"10%","Cascavel","76.206.499/0001-50",120002,"R. Vânio Ghellere, 64, Centro","85.877-000","Boaventura Manoel João Motta"]
["São Pedro do Iguaçu",0.71907517453499548,"10%","Toledo","95.583.597/0001-50",120003,"R. Niterói, 121, Centro","85.929-000","Jacir Danelli"]
["São Pedro do Ivaí",0.74820886505354078,"10%","Ivaiporã","75.771.311/0001-53",120004,"Praça Padre José Rossi, 354, Centro","86.945-000","Rildo Bernardes de Camargo"]
["São Pedro do Paraná",0.66058685777618542,"5%","Paranavaí","76.975.259/0001-10",120005,"Av. Paraná, 307","87.955-000","Vanderlei Caetano de Castro"]
["São Sebastião da Amoreira",0.68911637196802411,"5%","Cornélio Procópio","76.290.659/0001-91",120006,"R. Papa João Xxii, 1086, Centro","86.240-000","Exilaine Gaspar"]
["São Tomé",0.74631785201502465,"10%","Cianorte","75.381.178/0001-29",122411,"Praça Professor Pedro Fecchio, 248, Centro","87.220-000","João Paulo Travassos Raddi"]
["Sapopema",0.74726222122199315,"10%","Cornélio Procópio","76.167.733/0001-87",120007,"Av. Manoel Ribas, 858, Centro","84.290-000","Paulo Maximiano de Souza Junior"]
["Sarandi",0.70026332873963748,"10%","Maringá","78.200.482/0001-10",120008,"R. José Emiliano de Gusmão, 565, Centro","87.111-230","Carlos Alberto de Paula Júnior"]
["Saudade do Iguaçu",0.79561116998403847,"10%","Pato Branco","95.585.477/0001-92",120009,"R. Frei Vito Berscheid, 708, Centro","85.568-000","Rogerio Gallina"]
["Sengés",0.7833211941951288,"10%","Ponta Grossa","76.911.676/0001-07",120010,"Travesa Senador Souza Naves, 95, Centro","84.220-000","Gerson Nunes da Silva"]
["Serranópolis do Iguaçu",0.72872991978021373,"10%","Cascavel","01.613.052/0001-04",131898,"Av. Santos Dumont, 2021","85.885-000","Gilberto Marsaro"]
["Sertaneja",0.78156722959168812,"10%","Cornélio Procópio","75.393.082/0001-80",120011,"Av. Nossa Senhora do Rocio, 233, Centro","86.340-000","Samuel Carlos do Prado"]
["Sertanópolis",0.76087853692526031,"10%","Londrina","76.245.034/0001-08",120012,"Av. Doutor Vacyr Gonçalves Pereira, 342, Centro","86.170-000","Ana Ruth Secco Mattesco"]
["Siqueira Campos",0.80667351693531086,"10%","Jacarezinho","76.919.083/0001-89",147941,"R. Marechal Deodoro, 1837, Centro","84.940-000","Luiz Henrique Germano"]
["Sulina",0.76331564942810248,"10%","Pato Branco","80.869.886/0001-43",122403,"R. Tupinambá, 68, Centro","85.565-000","Gilberto João Rossi"]
["Tamarana",0.73385414143305117,"10%","Londrina","01.613.167/0001-90",120013,"R. Izaltino José Silvestre, 643","86.125-000","Luzia Harue Suzukawa"]
["Tamboara",0.79085241330173217,"10%","Paranavaí","76.978.519/0001-00",120014,"Praça Isabel Marcos Beltrame, 2000, Centro","87.760-000","Giovane Monteiro da Silva"]
["Tapejara",0.77590556162267765,"10%","Cianorte","76.247.345/0001-06",147945,"Av. Tancredo Neves, 442, Centro","87.430-000","Ronaldo Adriano Vilas Boas"]
["Tapira",0.75018590056948964,"10%","Umuarama","75.801.738/0001-57",120015,"R. Paranaguá, 518","87.830-000","Ronald Rogério Lopes Smarzaro"]
["Teixeira Soares",0.76281447882870379,"10%","Irati","75.963.850/0001-94",122404,"Praça Xv de Novembro, 135, Centro","84.530-000","Ivanor Luiz Muller"]
["Telêmaco Borba",0.81189028798199558,"10%","Ponta Grossa","76.170.240/0001-04",147552,"Praça Doutor Horácio Klabin, 37, Centro","84.261-170","Rita Mara de Paula Araujo"]
["Terra Boa",0.78092651621589482,"10%","Campo Mourão","75.793.786/0001-40",122332,"R. Presidente Tancredo de Almeida Neves, 240, Centro","87.240-000","Valter Peres"]
["Terra Rica",0.79433258315438449,"10%","Paranavaí","76.978.881/0001-81",120016,"Av. Euclides da Cunha, 1120, Centro","87.890-000","Agnaldo de Souza Costa"]
["Terra Roxa",0.75859932131966656,"10%","Toledo","75.587.204/0001-70",122405,"Av. Presidente Costa E Silva, 95, Centro","85.990-000","Ivan Reis da Silva"]
["Tibagi",0.69939620102213473,"5%","Ponta Grossa","76.170.257/0001-53",122406,"Praça Edmundo Mercer, 34, Centro","84.300-000","Rildo Emanoel Leonardi"]
["Tijucas do Sul",0.66653957716925694,"5%","Curitiba","76.105.584/0001-21",122407,"R. Xv de Novembro, 1438, Centro","83.190-000","José Altair Moreira"]
["Toledo",0.8582003860794144,"10%","Toledo","76.205.806/0001-88",120017,"R. Raimundo Leonardi, 1586","85.900-110","Mario Cesar Costenaro"]
["Tomazina",0.74608041206231457,"10%","Jacarezinho","75.697.094/0001-07",132301,"Praça João José Ribeiro, 99","84.935-000","Cezar Bueno de Melo"]
["Três Barras do Paraná",0.73925771399441453,"10%","Cascavel","78.121.936/0001-68",120018,"Av. Brasil, 245","85.485-000","Gerso Francisco Gusso"]
["Tunas do Paraná",0.65782328063814299,"5%","Curitiba","68.703.834/0001-05",132267,"R. Eros Ruppel Abdalla, 189","83.480-000","Marco Antonio Baldão"]
["Tuneiras do Oeste",0.6957500263836538,"5%","Cianorte","76.247.329/0001-13",147958,"R. Santa Catarina, 409, Centro","87.450-000","Guerino Mendonça dos Santos"]
["Tupãssi",0.76650232415731923,{"$f":"IF(B387<0.5,\"1%\",(IF(B387<0.7,\"5%\",(IF(B387>0.7001,\"10%\",\"ERRADO\")))))","v":"10%"},"Toledo","77.877.116/0001-38",120019,"Praça Santos Dumont, S/N, Centro","85.945-000","José Carlos Mariussi"]
["Turvo",0.72817219883324535,"10%","Guarapuava","78.279.973/0001-07",120020,"Av. Doze de Maio, 353, Centro","85.150-000","Antonio Marcos Seguro"]
["Ubiratã",0.81826124821704604,"10%","Campo Mourão","76.950.096/0001-10",120021,"Av. Nilza de Oliveira Pipino, 1852, Centro","85.440-000","Fabio de Oliveira Dalecio"]
["Umuarama",0.78274877992599123,"10%","Umuarama","76.247.378/0001-56",122408,"Av. Rio Branco, 3717","87.501-130","Antonio Fernando Scanavaca"]
["União da Vitória",0.78512587081826801,"10%","União da Vitória","75.967.760/0001-71",120022,"R. Cruz Machado, 205","84.600-000","Ary Carneiro Junior"]
["Uniflor",0.75665113663812311,"10%","Maringá","76.279.975/0001-62",147964,"Av. Das Flores, 118","87.640-000","Maycon Rodrigo Rodrigues de Souza"]
["Uraí",0.7467569846464005,"10%","Cornélio Procópio","75.424.507/0001-71",132280,"R. Rio de Janeiro, 496","86.280-000","Angelo Tarantini Filho"]
["Ventania",0.69553382421877219,"5%","Ponta Grossa","95.685.798/0001-69",147965,"Av. Anacleto Bueno de Camargo, 825, Centro","84.345-000","José Luiz Bittencourt"]
["Vera Cruz do Oeste",0.77846994636254652,"10%","Cascavel","78.101.821/0001-01",120023,"R. Rui Barbosa, 202, Centro","85.845-000","Ednei Sgobi"]
["Verê",0.79163303991528533,"10%","Francisco Beltrão","75.636.530/0001-20",120024,"R. Pioneiro Antônio Fabiane, 316, Centro","85.585-000","Paulo Roberto Weissheimer"]
["Virmond",0.76979154219601575,"10%","Laranjeiras Do Sul","95.587.622/0001-74",120025,"R. Xv de Novembro, 608, Centro","85.390-000","Fernando Mierzva"]
["Vitorino",0.71694383586868948,"10%","Pato Branco","76.995.463/0001-00",120034,"R. Barão de Capanema, 134, Centro","85.520-000","Marciano Vottri"]
["Wenceslau Braz",0.74059716329125125,"10%","Jacarezinho","76.920.800/0001-92",120026,"R. Barão do Rio Branco , 271, Centro","84.950-000","Luiz Carlos Vidal"]
["Xambrê",0.65966076628295334,"5%","Umuarama","76.247.360/0001-54",120027,"Av. Roque Gonzales, 480, Centro","87.535-000","Decio Jardim"]
["https://www.ipardes.pr.gov.br/Pagina/Indice-Ipardes-de-Desempenho-Municipal"]